{"text_format":"3","workbook":"xlsx","n_sheets":1,"sheets":["全部 "],"not_rendered":{"defined_names":1},"read":"whole","date_system":"1900"}

{"sheet":"全部 ","index":0,"n_rows":455,"n_cols":16,"rows_kept":455,"merged":[[0,0,0,15]]}
["长春市面向2025年普通高校毕业生开展“强师计划”招聘教师岗位及资格条件一览表（1号）"]
["序号","地区","主管部门","招聘单位","岗位名称","岗位职级","经费类型","招聘人数","性别","学历要求","学位要求","所学专业","其他要求","报名邮箱及报名电话","纪检监督电话","备注"]
[{"$f":"ROW()-2","v":1},"市直","长春市教育局","长春汽车职业技术大学","俄语教师","初级专业技术岗位","财政拨款",1,"不限","硕士研究生及以上学历","与报名学历相对应的学位","研究生：俄语笔译（055103）、俄语口译（055104）、俄语语言文学（050202）",null,"报名邮箱：2085447703@qq.com\n报名电话：0431-85751804","0431-88787036"]
[{"$f":"ROW()-2","v":2},"市直","长春市教育局","长春汽车职业技术大学","数学教师","初级专业技术岗位","财政拨款",1,"不限","硕士研究生及以上学历","与报名学历相对应的学位","研究生：数学（一级学科）（0701）",null,"报名邮箱：2085447703@qq.com\n报名电话：0431-85751804","0431-88787036"]
[3,"市直","长春市教育局","长春职业技术学院","思政教师","初级专业技术岗位","财政拨款",1,"不限","硕士研究生及以上学历","与报名学历相对应的学位","研究生：马克思主义基本原理（030501）、马克思主义发展史（030502）、马克思主义中国化研究（030503）、思想政治教育（030505）、中国近现代史基本问题研究（030506）、政治学（一级学科）（0302）","中共党员(包括中共预备党员)","报名邮箱：371610003@qq.com\n报名电话：0431-84602802","0431-88787036"]
[4,"市直","长春市教育局","长春开放大学","思政教师","初级专业技术岗位","财政拨款",1,"不限","硕士研究生及以上学历","与报名学历相对应的学位","研究生：政治学（一级学科）（0302）、马克思主义理论（一级学科）（0305）","中共党员(包括中共预备党员)","报名邮箱：463062957@qq.com\n报名电话：0431-82857710","0431-88787036"]
[5,"市直","长春市教育局","长春开放大学","数学教师","初级专业技术岗位","财政拨款",1,"不限","硕士研究生及以上学历","与报名学历相对应的学位","研究生：学科教学（数学）（专业学位）（045104）、数学（一级学科）（0701）",null,"报名邮箱：463062957@qq.com\n报名电话：0431-82857710","0431-88787036"]
[6,"市直","长春市教育局","长春开放大学","物理教师","初级专业技术岗位","财政拨款",1,"不限","硕士研究生及以上学历","与报名学历相对应的学位","研究生：学科教学（物理）（专业学位）（045105）、物理学（一级学科）（0702）",null,"报名邮箱：463062957@qq.com\n报名电话：0431-82857710","0431-88787036"]
[7,"市直","长春市教育局","长春教育学院","中国史教师","初级专业技术岗位","财政拨款",1,"不限","硕士研究生及以上学历","与报名学历相对应的学位","研究生：中国史（一级学科）（0602）",null,"报名邮箱：ccjyxyrenshichu@163.com\n报名电话：0431-80526918","0431-88787036"]
[8,"市直","长春市教育局","长春教育学院","汉语言文学教师","初级专业技术岗位","财政拨款",1,"不限","硕士研究生及以上学历","与报名学历相对应的学位","研究生：中国语言文学（一级学科）（0501）",null,"报名邮箱：ccjyxyrenshichu@163.com\n报名电话：0431-80526918","0431-88787036"]
[9,"市直","长春市教育局","长春教育学院","教育学教师","初级专业技术岗位","财政拨款",1,"不限","硕士研究生及以上学历","与报名学历相对应的学位","研究生：教育学（一级学科）（0401）、教育(一级学科）(专业学位)（0451)",null,"报名邮箱：ccjyxyrenshichu@163.com\n报名电话：0431-80526918","0431-88787036"]
[10,"市直","长春市教育局","长春教育学院","计算机科学与技术教师","初级专业技术岗位","财政拨款",1,"不限","硕士研究生及以上学历","与报名学历相对应的学位","研究生：计算机科学与技术（一级学科）(0775、0812)、计算机技术（专业学位）(085404)、软件工程（专业学位）(085405)、人工智能（专业学位）(085410)、大数据技术与工程（专业学位）(085411)",null,"报名邮箱：ccjyxyrenshichu@163.com\n报名电话：0431-80526918","0431-88787036"]
[11,"市直","长春市教育局","长春师范高等专科学校","心理咨询教师","初级专业技术岗位","财政拨款",1,"不限","硕士研究生及以上学历","与报名学历相对应的学位","研究生：应用心理学（040203）、应用心理（一级学科专业学位）（0454）、心理健康教育（专业学位）（045116）",null,"报名邮箱：ccszrsc@163.com\n报名电话：13756814897","0431-88787036"]
[{"$f":"ROW()-2","v":12},"市直","长春市教育局","长春师范高等专科学校","计算机教师","初级专业技术岗位","财政拨款",1,"不限","硕士研究生及以上学历","与报名学历相对应的学位","研究生：计算机科学与技术(一级学科)（0775、0812）、现代教育技术（专业学位）（045114）",null,"报名邮箱：ccszrsc@163.com\n报名电话：13756814897","0431-88787036"]
[13,"市直","长春市教育局","长春师范高等专科学校","思政教师","初级专业技术岗位","财政拨款",1,"不限","硕士研究生及以上学历","与报名学历相对应的学位","研究生：政治学（一级学科0302）、马克思主义理论（一级学科0305）","中共党员(包括中共预备党员)","报名邮箱：ccszrsc@163.com\n报名电话：13756814897","0431-88787036"]
[14,"市直","长春市教育局","长春师范高等专科学校","美术教师","初级专业技术岗位","财政拨款",1,"不限","硕士研究生及以上学历","与报名学历相对应的学位","研究生：艺术学（一级学科）（美术方向）（1301）、美术与书法（美术方向）（一级学科专业学位）（1356）",null,"报名邮箱：ccszrsc@163.com\n报名电话：13756814897","0431-88787036"]
[15,"市直","长春市教育局","长春市第一中学","高中数学教师","初级专业技术岗位","财政拨款",2,"不限","本科学历或硕士研究生及以上学历","与报名学历相对应的学位","研究生：学科教学(数学)（专业学位）(045104)、数学(一级学科)（0701）、课程与教学论(数学方向)（040102）\n本科：数学类(一级学科)（0701）","须在2025年7月31日前取得相应的教师资格证（在2025年7月31日前已经通过相应教师资格证笔试和面试考试未进行认定的，须在办理聘用备案手续前取得相应的教师资格证）","报名邮箱：2368218341@qq.com\n报名电话：0431-82887911     13604441270","0431-88787036"]
[16,"市直","长春市教育局","长春市第二中学","高中语文教师","初级专业技术岗位","财政拨款",1,"不限","本科学历或硕士研究生及以上学历","与报名学历相对应的学位","研究生：中国语言文学（一级学科）（0501）、学科教学（语文）（专业学位）（045103）、课程与教学论（语文）（040102）\n本科：中国语言文学类（一级学科）（0501）","须在2025年7月31日前取得相应的教师资格证（在2025年7月31日前已经通过相应教师资格证笔试和面试考试未进行认定的，须在办理聘用备案手续前取得相应的教师资格证）","报名邮箱：957016706@qq.com\n报名电话：0431-88563380","0431-88787036"]
[17,"市直","长春市教育局","长春市第二中学","高中化学教师","初级专业技术岗位","财政拨款",1,"不限","本科学历或硕士研究生及以上学历","与报名学历相对应的学位","研究生：化学（一级学科）（0703）、学科教学（化学）（专业学位）（045106）、课程与教学论（化学）（040102）\n本科：化学类（一级学科）（0703）","须在2025年7月31日前取得相应的教师资格证（在2025年7月31日前已经通过相应教师资格证笔试和面试考试未进行认定的，须在办理聘用备案手续前取得相应的教师资格证）","报名邮箱：957016706@qq.com\n报名电话：0431-88563382","0431-88787036"]
[18,"市直","长春市教育局","长春市第二中学","高中历史教师","初级专业技术岗位","财政拨款",1,"不限","本科学历或硕士研究生及以上学历","与报名学历相对应的学位","研究生：课程与教学论（历史）（040102）、学科教学（历史）（专业学位）（045109）、历史学（门类）（06）\n本科：历史学类（一级学科）（0601）","须在2025年7月31日前取得相应的教师资格证（在2025年7月31日前已经通过相应教师资格证笔试和面试考试未进行认定的，须在办理聘用备案手续前取得相应的教师资格证）","报名邮箱：957016706@qq.com\n报名电话：0431-88563383","0431-88787036"]
[19,"市直","长春市教育局","长春市第五中学","高中地理教师","初级专业技术岗位","财政拨款",1,"不限","本科学历或硕士研究生及以上学历","与报名学历相对应的学位","研究生：课程与教学论（地理）（040102）学科教学（地理）（专业学位）（045110）、地理学（一级学科）（0705）\n本科：地理科学类（一级学科）（0705）","须在2025年7月31日前取得相应的教师资格证（在2025年7月31日前已经通过相应教师资格证笔试和面试考试未进行认定的，须在办理聘用备案手续前取得相应的教师资格证）","报名邮箱：1520480127@qq.com\n报名电话：0431-88926363","0431-88787036"]
[20,"市直","长春市教育局","长春市第五中学","高中数学教师","初级专业技术岗位","财政拨款",1,"不限","本科学历或硕士研究生及以上学历","与报名学历相对应的学位","研究生：数学（一级学科）(0701)、学科教学（数学）(专业学位)（045104）、课程与教学论（数学）（040102）\n本科：数学类（一级学科）（0701）","须在2025年7月31日前取得相应的教师资格证（在2025年7月31日前已经通过相应教师资格证笔试和面试考试未进行认定的，须在办理聘用备案手续前取得相应的教师资格证）","报名邮箱：1520480127@qq.com\n报名电话：0431-88926363","0431-88787036"]
[21,"市直","长春市教育局","长春市第五中学","高中化学教师","初级专业技术岗位","财政拨款",1,"不限","本科学历或硕士研究生及以上学历","与报名学历相对应的学位","研究生：课程与教学论（化学）（040102）、学科教学（化学）（专业学位）（045106）、化学（一级学科）（0703）\n本科：化学类（一级学科）（0703）","须在2025年7月31日前取得相应的教师资格证（在2025年7月31日前已经通过相应教师资格证笔试和面试考试未进行认定的，须在办理聘用备案手续前取得相应的教师资格证）","报名邮箱：1520480127@qq.com\n报名电话：0431-88926363","0431-88787036"]
[{"$f":"ROW()-2","v":22},"市直","长春市教育局","长春市第五中学","高中电教教师","初级专业技术岗位","财政拨款",1,"不限","本科学历或硕士研究生及以上学历","与报名学历相对应的学位","研究生：计算机科学与技术(一级学科)（0775、0812）、计算机技术（专业学位）（085404）、教育技术学（040110）、现代教育技术（专业学位）（045114）、课程与教学论（信息技术）（040102）\n本科：教育技术学（040104）、计算机类（一级学科）（0809）","须在2025年7月31日前取得相应的教师资格证（在2025年7月31日前已经通过相应教师资格证笔试和面试考试未进行认定的，须在办理聘用备案手续前取得相应的教师资格证）","报名邮箱：1520480127@qq.com\n报名电话：0431-88926363","0431-88787036"]
[23,"市直","长春市教育局","长春市第五中学","高中生物教师","初级专业技术岗位","财政拨款",1,"不限","本科学历或硕士研究生及以上学历","与报名学历相对应的学位","研究生：生物学（一级学科）（0710）、学科教学（生物）（专业学位）（045107）、课程与教学论（生物）（040102）\n本科：生物科学类（一级学科）（0710）","须在2025年7月31日前取得相应的教师资格证（在2025年7月31日前已经通过相应教师资格证笔试和面试考试未进行认定的，须在办理聘用备案手续前取得相应的教师资格证）","报名邮箱：1520480127@qq.com\n报名电话：0431-88926363","0431-88787036"]
[24,"市直","长春市教育局","长春市第六中学","高中语文教师","初级专业技术岗位","财政拨款",1,"不限","本科学历或硕士研究生及以上学历","与报名学历相对应的学位","研究生：语言学及应用语言学（050102）、汉语言文字学（050103）、中国古典文献学（050104）、中国古代文学（050105）、中国现当代文学（050106）、学科教学（语文）（专业学位）（045103）课程与教学论（语文方向）（040102）\n本科：中国语言文学类(一级学科)（0501）","须在2025年7月31日前取得相应的教师资格证（在2025年7月31日前已经通过相应教师资格证笔试和面试考试未进行认定的，须在办理聘用备案手续前取得相应的教师资格证）","报名邮箱：409763846@qq.com\n报名电话：0431-84642496     15043086555","0431-88787036"]
[25,"市直","长春市教育局","长春市第六中学","高中英语教师","初级专业技术岗位","财政拨款",2,"不限","硕士研究生及以上学历","与报名学历相对应的学位","研究生：英语语言文学（050201）、外国语言学及应用语言学(英语方向)（050211）、学科教学(英语)(专业学位)（045108）、课程与教学论(英语方向)（040102）","须在2025年7月31日前取得相应的教师资格证（在2025年7月31日前已经通过相应教师资格证笔试和面试考试未进行认定的，须在办理聘用备案手续前取得相应的教师资格证）","报名邮箱：409763846@qq.com\n报名电话：0431-84642496     15043086555","0431-88787036"]
[26,"市直","长春市教育局","长春市第六中学","高中化学教师","初级专业技术岗位","财政拨款",1,"不限","硕士研究生及以上学历","与报名学历相对应的学位","研究生：化学(一级学科)（0703）、学科教学(化学)(专业学位)（045106）、课程与教学论(化学方向)（040102）","须在2025年7月31日前取得相应的教师资格证（在2025年7月31日前已经通过相应教师资格证笔试和面试考试未进行认定的，须在办理聘用备案手续前取得相应的教师资格证）","报名邮箱：409763846@qq.com\n报名电话：0431-84642496     15043086555","0431-88787036"]
[27,"市直","长春市教育局","长春市第六中学","高中心理教师","初级专业技术岗位","财政拨款",1,"不限","硕士研究生及以上学历","与报名学历相对应的学位","研究生：心理学（一级学科）（0402、0771）、心理健康教育（045116）、应用心理（专业学位）（0454）、课程与教学论（心理方向）（040102）","须在2025年7月31日前取得相应的教师资格证（在2025年7月31日前已经通过相应教师资格证笔试和面试考试未进行认定的，须在办理聘用备案手续前取得相应的教师资格证）","报名邮箱：409763846@qq.com\n报名电话：0431-84642496     15043086555","0431-88787036"]
[28,"市直","长春市教育局","长春市第六中学","高中数学教师","初级专业技术岗位","财政拨款",1,"不限","硕士研究生及以上学历","与报名学历相对应的学位","研究生：学科教学(数学)(专业学位)（045104）、数学(一级学科)（0701）、课程与教学论(数学方向)（040102）","须在2025年7月31日前取得相应的教师资格证（在2025年7月31日前已经通过相应教师资格证笔试和面试考试未进行认定的，须在办理聘用备案手续前取得相应的教师资格证）","报名邮箱：409763846@qq.com\n报名电话：0431-84642496     15043086555","0431-88787036"]
[29,"市直","长春市教育局","长春市第六中学","高中物理教师","初级专业技术岗位","财政拨款",1,"不限","本科学历或硕士研究生及以上学历","与报名学历相对应的学位","研究生：物理学（一级学科）（0702）、学科教学（物理）（专业学位）（045105）、课程与教学论（物理方向）（040102）\n本科：物理学类（一级学科）（0702）","须在2025年7月31日前取得相应的教师资格证（在2025年7月31日前已经通过相应教师资格证笔试和面试考试未进行认定的，须在办理聘用备案手续前取得相应的教师资格证）","报名邮箱：409763846@qq.com\n报名电话：0431-84642496     15043086555","0431-88787036"]
[30,"市直","长春市教育局","长春市第七中学","高中英语教师","初级专业技术岗位","财政拨款",1,"不限","硕士研究生及以上学历","与报名学历相对应的学位","研究生：英语语言文学（050201）、外国语言学及应用语言学（英语方向）（050211）、学科教学(英语)(专业学位）（045108）、040102课程与教学论(英语方向)","须在2025年7月31日前取得相应的教师资格证（在2025年7月31日前已经通过相应教师资格证笔试和面试考试未进行认定的，须在办理聘用备案手续前取得相应的教师资格证）","报名邮箱：1337944116@qq.com\n报名电话：13009100716","0431-88787036"]
[31,"市直","长春市教育局","长春市第七中学","高中体育教师","初级专业技术岗位","财政拨款",1,"不限","硕士研究生及以上学历","与报名学历相对应的学位","研究生：体育学(一级学科)（0403）、学科教学(体育)(专业学位)（045112）、课程与教学论（体育方向）（040102）、体育(专业学位）（一级学科)（0452）","须在2025年7月31日前取得相应的教师资格证（在2025年7月31日前已经通过相应教师资格证笔试和面试考试未进行认定的，须在办理聘用备案手续前取得相应的教师资格证）","报名邮箱：1337944116@qq.com\n报名电话：13009100716","0431-88787036"]
[{"$f":"ROW()-2","v":32},"市直","长春市教育局","长春市第八中学","高中数学教师","初级专业技术岗位","财政拨款",1,"不限","本科学历或硕士研究生及以上学历","与报名学历相对应的学位","研究生：学科教学(数学)(专业学位)（045104）、数学(一级学科)（0701）、课程与教学论(数学方向)（040102）\n本科：数学类(一级学科)（0701）","须在2025年7月31日前取得相应的教师资格证（在2025年7月31日前已经通过相应教师资格证笔试和面试考试未进行认定的，须在办理聘用备案手续前取得相应的教师资格证）","报名邮箱：16788998@qq.com\n报名电话：0431-88689157","0431-88787036"]
[33,"市直","长春市教育局","长春市第八中学","高中英语教师","初级专业技术岗位","财政拨款",1,"不限","本科学历或硕士研究生及以上学历","与报名学历相对应的学位","研究生：外国语言文学（一级学科）（英语方向）（0502）、学科教学（英语）(专业学位)（045108）、英语笔译（专业学位）（055101）、英语口译（专业学位）（055102）、课程与教学论（英语方向）（040102）\n本科：英语（050201）","须在2025年7月31日前取得相应的教师资格证（在2025年7月31日前已经通过相应教师资格证笔试和面试考试未进行认定的，须在办理聘用备案手续前取得相应的教师资格证）","报名邮箱：16788998@qq.com\n报名电话：0431-88689157","0431-88787036"]
[34,"市直","长春市教育局","长春市第八中学","高中物理教师","初级专业技术岗位","财政拨款",1,"不限","本科学历或硕士研究生及以上学历","与报名学历相对应的学位","研究生：物理学（一级学科）（0702）、学科教学（物理）（专业学位）（045105）、课程与教学论（物理方向）（040102）\n本科：物理学类（一级学科）（0702）","须在2025年7月31日前取得相应的教师资格证（在2025年7月31日前已经通过相应教师资格证笔试和面试考试未进行认定的，须在办理聘用备案手续前取得相应的教师资格证）","报名邮箱：16788998@qq.com\n报名电话：0431-88689157","0431-88787036"]
[35,"市直","长春市教育局","长春市第九中学","高中语文教师","初级专业技术岗位","财政拨款",1,"不限","本科学历或硕士研究生及以上学历","与报名学历相对应的学位","研究生：中国语言文学(一级学科)（0501）、学科教学(语文)(专业学位)（045103）、课程与教学论(语文方向)（040102）\n本科：中国语言文学类(一级学科)（0501）","须在2025年7月31日前取得相应的教师资格证（在2025年7月31日前已经通过相应教师资格证笔试和面试考试未进行认定的，须在办理聘用备案手续前取得相应的教师资格证）","报名邮箱：799648901@qq.com\n报名电话：0431-81133958 18166868273","0431-88787036"]
[36,"市直","长春市教育局","长春市第九中学","高中英语教师","初级专业技术岗位","财政拨款",1,"不限","本科学历或硕士研究生及以上学历","与报名学历相对应的学位","研究生：英语语言文学（050201）、外国语言学及应用语言学（英语方向）（050211）、学科教学(英语)(专业学位）（045108）、课程与教学论(英语方向)（040102）\n本科：英语（050201）","须在2025年7月31日前取得相应的教师资格证（在2025年7月31日前已经通过相应教师资格证笔试和面试考试未进行认定的，须在办理聘用备案手续前取得相应的教师资格证）","报名邮箱：799648901@qq.com\n报名电话：0431-81133958 18166868273","0431-88787036"]
[37,"市直","长春市教育局","长春市第九中学","高中化学教师","初级专业技术岗位","财政拨款",1,"不限","本科学历或硕士研究生及以上学历","与报名学历相对应的学位","研究生：化学(一级学科)（0703）、学科教学(化学)（专业学位）（045106）、课程与教学论（化学方向）（040102）\n本科：化学（070301）、应用化学（070302）","须在2025年7月31日前取得相应的教师资格证（在2025年7月31日前已经通过相应教师资格证笔试和面试考试未进行认定的，须在办理聘用备案手续前取得相应的教师资格证）","报名邮箱：799648901@qq.com\n报名电话：0431-81133958 18166868273","0431-88787036"]
[38,"市直","长春市教育局","长春市第九中学","高中体育教师","初级专业技术岗位","财政拨款",1,"不限","本科学历或硕士研究生及以上学历","与报名学历相对应的学位","研究生：体育学(一级学科)（0403）、学科教学(体育)(专业学位)（045112）、课程与教学论（体育方向）（040102）、体育(专业学位）（一级学科)（0452）\n本科：体育学类(一级学科)（0402）","须在2025年7月31日前取得相应的教师资格证（在2025年7月31日前已经通过相应教师资格证笔试和面试考试未进行认定的，须在办理聘用备案手续前取得相应的教师资格证）","报名邮箱：799648901@qq.com\n报名电话：0431-81133958 18166868273","0431-88787036"]
[39,"市直","长春市教育局","长春市第十中学","高中数学教师","初级专业技术岗位","财政拨款",1,"不限","本科学历或硕士研究生及以上学历","与报名学历相对应的学位","研究生：学科教学(数学)(专业学位)（045104）、数学(一级学科)（0701）\n本科：数学类(一级学科)（0701）","须在2025年7月31日前取得相应的教师资格证（在2025年7月31日前已经通过相应教师资格证笔试和面试考试未进行认定的，须在办理聘用备案手续前取得相应的教师资格证）","报名邮箱：17491733@qq.com\n报名电话：18643189066","0431-88787036"]
[40,"市直","长春市教育局","长春市十一高中","高中语文教师","初级专业技术岗位","财政拨款",5,"不限","本科学历或硕士研究生及以上学历","与报名学历相对应的学位","研究生：中国语言文学(一级学科)（0501）、学科教学(语文)（专业学位）(045103)、课程与教学论(语文方向）（040102)\n本科：中国语言文学类(一级学科）（0501)","须在2025年7月31日前取得相应的教师资格证（在2025年7月31日前已经通过相应教师资格证笔试和面试考试未进行认定的，须在办理聘用备案手续前取得相应的教师资格证）","报名邮箱：48796989@qq.com\n报名电话：0431-87621345","0431-88787036"]
[41,"市直","长春市教育局","长春市十一高中","高中数学教师","初级专业技术岗位","财政拨款",3,"不限","本科学历或硕士研究生及以上学历","与报名学历相对应的学位","研究生：学科教学(数学)（专业学位）(045104)、数学(一级学科)（0701）、课程与教学论(数学方向)（040102）\n本科：数学类(一级学科)（0701）","须在2025年7月31日前取得相应的教师资格证（在2025年7月31日前已经通过相应教师资格证笔试和面试考试未进行认定的，须在办理聘用备案手续前取得相应的教师资格证）","报名邮箱：48796989@qq.com\n报名电话：0431-87621345","0431-88787036"]
[{"$f":"ROW()-2","v":42},"市直","长春市教育局","长春市十一高中","高中英语教师","初级专业技术岗位","财政拨款",4,"不限","本科学历或硕士研究生及以上学历","与报名学历相对应的学位","研究生：英语语言文学（050201）、外语教育（0502Z2）、英语口译(055102)、英语笔译(055101)、学科教学(英语)（专业学位）(045108)、课程与教学论(英语方向)（040102)\n本科：英语（050201）、商务英语（050262）","须在2025年7月31日前取得相应的教师资格证（在2025年7月31日前已经通过相应教师资格证笔试和面试考试未进行认定的，须在办理聘用备案手续前取得相应的教师资格证）","报名邮箱：48796989@qq.com\n报名电话：0431-87621345","0431-88787036"]
[43,"市直","长春市教育局","长春市十一高中","高中物理教师1","初级专业技术岗位","财政拨款",3,"不限","本科学历或硕士研究生及以上学历","与报名学历相对应的学位","研究生：物理学（一级学科）（0702）、学科教学（物理）（专业学位）（045105）、课程与教学论（物理方向）（040102）\n本科：物理学类（一级学科）（0702）","须在2025年7月31日前取得相应的教师资格证（在2025年7月31日前已经通过相应教师资格证笔试和面试考试未进行认定的，须在办理聘用备案手续前取得相应的教师资格证）","报名邮箱：48796989@qq.com\n报名电话：0431-87621345","0431-88787036"]
[44,"市直","长春市教育局","长春市十一高中","高中物理教师2","初级专业技术岗位","财政拨款",1,"不限","博士研究生及以上学历","与报名学历相对应的学位","研究生：物理学（一级学科0702）、一般力学与力学基础（080101）、物理电子学（080901）、电路与系统（080902）","须在2025年7月31日前取得相应的教师资格证（在2025年7月31日前已经通过相应教师资格证笔试和面试考试未进行认定的，须在办理聘用备案手续前取得相应的教师资格证）","报名邮箱：48796989@qq.com\n报名电话：0431-87621345","0431-88787036"]
[45,"市直","长春市教育局","长春市十一高中","高中化学教师","初级专业技术岗位","财政拨款",4,"不限","本科学历或硕士研究生及以上学历","与报名学历相对应的学位","研究生：化学(一级学科）（0703)、学科教学(化学)（专业学位）(045106)、课程与教学论(化学方向)（040102)\n本科：化学类(一级学科）（0703)","须在2025年7月31日前取得相应的教师资格证（在2025年7月31日前已经通过相应教师资格证笔试和面试考试未进行认定的，须在办理聘用备案手续前取得相应的教师资格证）","报名邮箱：48796989@qq.com\n报名电话：0431-87621345","0431-88787036"]
[46,"市直","长春市教育局","长春市十一高中","高中生物教师","初级专业技术岗位","财政拨款",4,"不限","本科学历或硕士研究生及以上学历","与报名学历相对应的学位","研究生：生物学(一级学科）（0710)、生态学(一级学科）（0713)、学科教学(生物)（专业学位）(045107)、课程与教学论(生物方向)（040102)\n本科：生物科学类(一级学科）（0710)","须在2025年7月31日前取得相应的教师资格证（在2025年7月31日前已经通过相应教师资格证笔试和面试考试未进行认定的，须在办理聘用备案手续前取得相应的教师资格证）","报名邮箱：48796989@qq.com\n报名电话：0431-87621345","0431-88787036"]
[47,"市直","长春市教育局","长春市十一高中","高中政治教师","初级专业技术岗位","财政拨款",3,"不限","本科学历或硕士研究生及以上学历","与报名学历相对应的学位","研究生：学科教学(思政)（专业学位）(045102)、政治学(一级学科）（0302)、马克思主义理论(一级学科）（0305)、课程与教学论(思政方向)（040102)、马克思主义哲学（010101）\n本科：政治学类(一级学科）（0302)、马克思主义理论类(一级学科）（0305)","须在2025年7月31日前取得相应的教师资格证（在2025年7月31日前已经通过相应教师资格证笔试和面试考试未进行认定的，须在办理聘用备案手续前取得相应的教师资格证）","报名邮箱：48796989@qq.com\n报名电话：0431-87621345","0431-88787036"]
[48,"市直","长春市教育局","长春市十一高中","高中历史教师","初级专业技术岗位","财政拨款",3,"不限","本科学历或硕士研究生及以上学历","与报名学历相对应的学位","研究生：中国史(一级学科）（0602)、世界史(一级学科）（0603)、考古学（一级学科）（0601）、学科教学(历史)（专业学位）(045109)、课程与教学论(历史方向)（040102)、博物馆（专业学位）（0651）\n本科：历史学类(一级学科）（0601)","须在2025年7月31日前取得相应的教师资格证（在2025年7月31日前已经通过相应教师资格证笔试和面试考试未进行认定的，须在办理聘用备案手续前取得相应的教师资格证）","报名邮箱：48796989@qq.com\n报名电话：0431-87621345","0431-88787036"]
[49,"市直","长春市教育局","长春市十一高中","高中地理教师","初级专业技术岗位","财政拨款",2,"不限","本科学历或硕士研究生及以上学历","与报名学历相对应的学位","研究生：地理学（一级学科）（0705）、课程与教学论（地理方向）（040102)、学科教学（地理）（专业学位）（045110）\n本科：地理科学类（一级学科0705）","须在2025年7月31日前取得相应的教师资格证（在2025年7月31日前已经通过相应教师资格证笔试和面试考试未进行认定的，须在办理聘用备案手续前取得相应的教师资格证）","报名邮箱：48796989@qq.com\n报名电话：0431-87621345","0431-88787036"]
[50,"市直","长春市教育局","长春市十一高中","高中信息技术教师","初级专业技术岗位","财政拨款",1,"不限","本科学历或硕士研究生及以上学历","与报名学历相对应的学位","研究生：计算机科学与技术(一级学科)（0775、0812）、计算机技术（专业学位）(085404)、教育技术学(040110)\n本科：计算机科学与技术（080901）、教育技术学（040104）","须在2025年7月31日前取得相应的教师资格证（在2025年7月31日前已经通过相应教师资格证笔试和面试考试未进行认定的，须在办理聘用备案手续前取得相应的教师资格证）","报名邮箱：48796989@qq.com\n报名电话：0431-87621345","0431-88787036"]
[51,"市直","长春市教育局","长春市第十六中学","高中物理教师","初级专业技术岗位","财政拨款",1,"不限","本科学历或硕士研究生及以上学历","与报名学历相对应的学位","研究生：物理学（一级学科）（0702）、学科教学（物理）（专业学位）（045105）、课程与教学论（物理方向）（040102）\n本科：物理学类（一级学科）（0702）","须在2025年7月31日前取得相应的教师资格证（在2025年7月31日前已经通过相应教师资格证笔试和面试考试未进行认定的，须在办理聘用备案手续前取得相应的教师资格证）","报名邮箱：531934694@qq.com\n报名电话：17386854860          13904326620","0431-88787036"]
[{"$f":"ROW()-2","v":52},"市直","长春市教育局","长春市第十六中学","高中数学教师","初级专业技术岗位","财政拨款",2,"不限","本科学历或硕士研究生及以上学历","与报名学历相对应的学位","研究生：数学(一级学科)（0701）、学科教学(数学)(专业学位)（045104）、课程与教学论(数学方向)（040102）\n本科：数学类(一级学科)（0701）","须在2025年7月31日前取得相应的教师资格证（在2025年7月31日前已经通过相应教师资格证笔试和面试考试未进行认定的，须在办理聘用备案手续前取得相应的教师资格证）","报名邮箱：531934694@qq.com\n报名电话：17386854860          13904326620","0431-88787036"]
[53,"市直","长春市教育局","长春市第十六中学","高中化学教师","初级专业技术岗位","财政拨款",1,"不限","本科学历或硕士研究生及以上学历","与报名学历相对应的学位","研究生：化学(一级学科)（0703）、学科教学(化学)(专业学位)（045106）、课程与教学论(化学方向)（040102）\n本科：化学类(一级学科)（0703）","须在2025年7月31日前取得相应的教师资格证（在2025年7月31日前已经通过相应教师资格证笔试和面试考试未进行认定的，须在办理聘用备案手续前取得相应的教师资格证）","报名邮箱：531934694@qq.com\n报名电话：17386854860          13904326620","0431-88787036"]
[54,"市直","长春市教育局","长春市第十七中学","高中物理教师","初级专业技术岗位","财政拨款",1,"不限","本科学历或硕士研究生及以上学历","与报名学历相对应的学位","研究生：物理学(一级学科)（0702）、学科教学(物理)(专业学位)（045105）、课程与教学论(物理方向)（040102）\n本科：物理学类(一级学科)（0702）","须在2025年7月31日前取得相应的教师资格证（在2025年7月31日前已经通过相应教师资格证笔试和面试考试未进行认定的，须在办理聘用备案手续前取得相应的教师资格证）","报名邮箱：156901923@qq.com\n报名电话：0431-85658422","0431-88787036"]
[55,"市直","长春市教育局","长春市第十七中学","高中地理教师","初级专业技术岗位","财政拨款",1,"不限","本科学历或硕士研究生及以上学历","与报名学历相对应的学位","研究生：学科教学(地理)(专业学位)(045110)、地理学(一级学科)(0705)、课程与教学论(地理方向)（040102）\n本科：地理科学类(一级学科)","须在2025年7月31日前取得相应的教师资格证（在2025年7月31日前已经通过相应教师资格证笔试和面试考试未进行认定的，须在办理聘用备案手续前取得相应的教师资格证）","报名邮箱：156901923@qq.com\n报名电话：0431-85658422","0431-88787036"]
[56,"市直","长春市教育局","长春市第十九中学","高中物理教师","初级专业技术岗位","财政拨款",1,"不限","本科学历或硕士研究生及以上学历","与报名学历相对应的学位","研究生：物理学(一级学科)（0702）、学科教学(物理)(专业学位)（045105）、课程与教学论（物理方向）(040102)\n本科：物理学类(一级学科)（0702）","须在2025年7月31日前取得相应的教师资格证（在2025年7月31日前已经通过相应教师资格证笔试和面试考试未进行认定的，须在办理聘用备案手续前取得相应的教师资格证）","报名邮箱：1584279661@qq.com\n报名电话：17549534873","0431-88787036"]
[57,"市直","长春市教育局","长春市第二十中学","高中物理教师","初级专业技术岗位","财政拨款",1,"不限","本科学历或硕士研究生及以上学历","与报名学历相对应的学位","研究生：物理学（一级学科）（0702）、学科教学（物理）（专业学位）（045105）、课程与教学论（物理方向）（040102）\n本科：物理学类（一级学科）（0702）","须在2025年7月31日前取得相应的教师资格证（在2025年7月31日前已经通过相应教师资格证笔试和面试考试未进行认定的，须在办理聘用备案手续前取得相应的教师资格证）","报名邮箱：cc20zx@163.com\n报名电话：17684398651","0431-88787036"]
[58,"市直","长春市教育局","长春市第二十中学","高中体育教师","初级专业技术岗位","财政拨款",1,"不限","本科学历或硕士研究生及以上学历","与报名学历相对应的学位","研究生：体育人文社会学（040301）、运动人体科学（040302）、体育教育训练学（040303）、学科教学（体育）（专业学位）（045112）、体育（一级学科）（0452）\n本科:体育教育（040201）、运动训练（040202K）、体能训练（040208T）、","须在2025年7月31日前取得相应的教师资格证（在2025年7月31日前已经通过相应教师资格证笔试和面试考试未进行认定的，须在办理聘用备案手续前取得相应的教师资格证）","报名邮箱：cc20zx@163.com\n报名电话：17684398651","0431-88787036"]
[59,"市直","长春市教育局","长春市第二十九中学","高中数学教师","初级专业技术岗位","财政拨款",1,"不限","本科学历或硕士研究生及以上学历","与报名学历相对应的学位","研究生：数学（一级学科）（0701）、学科教学（数学）（专业学位）（045104）\n本科：数学类（一级学科）（0701）","须在2025年7月31日前取得相应的教师资格证（在2025年7月31日前已经通过相应教师资格证笔试和面试考试未进行认定的，须在办理聘用备案手续前取得相应的教师资格证）","报名邮箱：1185702842@qq.com\n报名电话：18043137462","0431-88787036"]
[60,"市直","长春市教育局","长春市一三六中学","高中生物教师","初级专业技术岗位","财政拨款",2,"不限","硕士研究生及以上学历","与报名学历相对应的学位","研究生：生物学(一级学科)（0710）、生态学(一级学科)（0713）、学科教学(生物)(专业学位)（045107）","须在2025年7月31日前取得相应的教师资格证（在2025年7月31日前已经通过相应教师资格证笔试和面试考试未进行认定的，须在办理聘用备案手续前取得相应的教师资格证）","报名邮箱：1025645812@qq.com\n报名电话：0431-82536512","0431-88787036"]
[61,"市直","长春市教育局","长春市一三七中学","高中数学教师","初级专业技术岗位","财政拨款",1,"不限","本科学历或硕士研究生及以上学历","与报名学历相对应的学位","研究生：学科教学(数学)(专业学位)（045104 ）、数学(一级学科)（0701）、课程与教学论(数学方向)070101\n本科：数学类(一级学科)（070101）","须在2025年7月31日前取得相应的教师资格证（在2025年7月31日前已经通过相应教师资格证笔试和面试考试未进行认定的，须在办理聘用备案手续前取得相应的教师资格证）","报名邮箱：936599728@qq.com\n报名电话：0431-81337895","0431-88787036"]
[{"$f":"ROW()-2","v":62},"市直","长春市教育局","长春艺术实验中学","高中政治教师","初级专业技术岗位","财政拨款",1,"不限","本科学历或硕士研究生及以上学历","与报名学历相对应的学位","研究生：哲学（一级学科）（0101）、政治学（一级学科）（0302）、马克思主义理论（一级学科）（0305）、学科教学（政治）（专业学位）（045102）\n本科：政治学类（一级学科）（0302）、马克思主义理论类（一级学科）（0305）","须在2025年7月31日前取得相应的教师资格证（在2025年7月31日前已经通过相应教师资格证笔试和面试考试未进行认定的，须在办理聘用备案手续前取得相应的教师资格证）","报名邮箱：81326094@qq.com\n报名电话：0431-85385570","0431-88787036"]
[63,"市直","长春市教育局","长春希望高中","高中物理教师","初级专业技术岗位","财政拨款",1,"不限","本科学历或硕士研究生及以上学历","与报名学历相对应的学位","研究生：物理学（一级学科）（0702）、学科教学（物理）（专业学位）（045105）、课程与教学论（物理方向）（040102）\n本科：物理学类（一级学科）（0702）","须在2025年7月31日前取得相应的教师资格证（在2025年7月31日前已经通过相应教师资格证笔试和面试考试未进行认定的，须在办理聘用备案手续前取得相应的教师资格证）","报名邮箱：707065445@qq.com\n报名电话：0431-81120016","0431-88787036"]
[64,"市直","长春市教育局","长春市养正高级中学","高中语文教师","初级专业技术岗位","财政拨款",1,"不限","本科学历或硕士研究生及以上学历","与报名学历相对应的学位","研究生：中国语言文学(一级学科)（0501）、学科教学(语文)(专业学位)（045103）\n本科：中国语言文学类(一级学科)（0501）","须在2025年7月31日前取得相应的教师资格证(在2025年7月31日前已经通过相应教师资格证笔试和面试考试未进行认定的，须在办理聘用备案手续前取得相应的教师资格证)","报名邮箱：724397901@qq.com\n报名电话：\n郑老师 15734445670\n赵老师 13944839895","0431-88787036"]
[65,"市直","长春市教育局","长春市实验中学","高中语文教师","初级专业技术岗位","财政拨款",1,"不限","本科学历或硕士研究生及以上学历","与报名学历相对应的学位","研究生：中国语言文学（一级学科）（0510）、学科教学（语文）（专业学位）（045103）、课程与教学论（语文）（040102）\n本科：中国语言文学类（一级学科）（0501）","须在2025年7月31日前取得相应的教师资格证（在2025年7月31日前已经通过相应教师资格证笔试和面试考试未进行认定的，须在办理聘用备案手续前取得相应的教师资格证）","报名邮箱：ssyzxzp@163.com\n报名电话：0431-86801693\n13674311350","0431-88787036"]
[66,"市直","长春市教育局","长春市实验中学","高中数学教师","初级专业技术岗位","财政拨款",1,"不限","本科学历或硕士研究生及以上学历","与报名学历相对应的学位","研究生：学科教学（数学）（专业学位）（045104）、课程与教学论（数学）（040102）、数学类（一级学科）（0701）\n本科：数学类（一级学科）（0701）","须在2025年7月31日前取得相应的教师资格证（在2025年7月31日前已经通过相应教师资格证笔试和面试考试未进行认定的，须在办理聘用备案手续前取得相应的教师资格证）","报名邮箱：ssyzxzp@163.com\n报名电话：0431-86801693\n13674311350","0431-88787036"]
[67,"市直","长春市教育局","长春市实验中学","高中英语教师","初级专业技术岗位","财政拨款",1,"不限","本科学历或硕士研究生及以上学历","与报名学历相对应的学位","研究生：学科教学（英语）（专业学位）（045108）、外国语言文学（一级学科）（英语方向）（0502）\n本科：外国语言文学类（一级学科）（英语方向）（0502）","须在2025年7月31日前取得相应的教师资格证（在2025年7月31日前已经通过相应教师资格证笔试和面试考试未进行认定的，须在办理聘用备案手续前取得相应的教师资格证）","报名邮箱：ssyzxzp@163.com\n报名电话：0431-86801693\n13674311350","0431-88787036"]
[68,"市直","长春市教育局","长春市实验中学","高中物理教师","初级专业技术岗位","财政拨款",1,"不限","本科学历或硕士研究生及以上学历","与报名学历相对应的学位","研究生：物理学（一级学科）（0702）、学科教学（物理）（专业学位）（045105）、课程与教学论（物理）（040102）\n本科：物理学类（一级学科）（0702）","须在2025年7月31日前取得相应的教师资格证（在2025年7月31日前已经通过相应教师资格证笔试和面试考试未进行认定的，须在办理聘用备案手续前取得相应的教师资格证）","报名邮箱：ssyzxzp@163.com\n报名电话：0431-86801693\n13674311350","0431-88787036"]
[69,"市直","长春市教育局","长春市实验中学","高中化学教师","初级专业技术岗位","财政拨款",1,"不限","本科学历或硕士研究生及以上学历","与报名学历相对应的学位","研究生：学科教学（化学）（专业学位）（045106）、课程与教学论（化学）（040102）、化学（一级学科）（0703）\n本科：化学类（一级学科）（0703）","须在2025年7月31日前取得相应的教师资格证（在2025年7月31日前已经通过相应教师资格证笔试和面试考试未进行认定的，须在办理聘用备案手续前取得相应的教师资格证）","报名邮箱：ssyzxzp@163.com\n报名电话：0431-86801693\n13674311350","0431-88787036"]
[70,"市直","长春市教育局","长春市实验中学","高中生物教师","初级专业技术岗位","财政拨款",1,"不限","本科学历或硕士研究生及以上学历","与报名学历相对应的学位","研究生：生物学(一级学科)（0710）、学科教学(生物)(专业学位)（045107）、课程与教学论(生物方向)（040102）\n本科：生物科学类(一级学科)（0710）","须在2025年7月31日前取得相应的教师资格证（在2025年7月31日前已经通过相应教师资格证笔试和面试考试未进行认定的，须在办理聘用备案手续前取得相应的教师资格证）","报名邮箱：ssyzxzp@163.com\n报名电话：0431-86801693\n13674311350","0431-88787036"]
[71,"市直","长春市教育局","长春市实验中学","高中政治教师","初级专业技术岗位","财政拨款",1,"不限","本科学历或硕士研究生及以上学历","与报名学历相对应的学位","研究生：学科教学(思政)(专业学位)（045102）、马克思主义基本原理（030501）、马克思主义发展史（030502）、马克思主义中国化研究（030503）、思想政治教育（030505）、中国近现代史基本问题研究（030506）、课程与教学论(思政方向)（040102）\n本科：政治学类(一级学科)（0302）、马克思主义理论类(一级学科)（0305）","须在2025年7月31日前取得相应的教师资格证（在2025年7月31日前已经通过相应教师资格证笔试和面试考试未进行认定的，须在办理聘用备案手续前取得相应的教师资格证）","报名邮箱：ssyzxzp@163.com\n报名电话：0431-86801693\n13674311350","0431-88787036"]
[{"$f":"ROW()-2","v":72},"市直","长春市教育局","长春市实验中学","高中信息技术教师","初级专业技术岗位","财政拨款",1,"不限","本科学历或硕士研究生及以上学历","与报名学历相对应的学位","研究生：计算机科学与技术(一级学科)（0775、0812）、计算机技术(专业学位)（085211）、教育技术学(专业学位)（040110）\n本科：计算机科学与技术（080901）、教育技术学（040104）","须在2025年7月31日前取得相应的教师资格证（在2025年7月31日前已经通过相应教师资格证笔试和面试考试未进行认定的，须在办理聘用备案手续前取得相应的教师资格证）","报名邮箱：ssyzxzp@163.com\n报名电话：0431-86801693\n13674311350","0431-88787036"]
[73,"市直","长春市教育局","长春市第二实验中学","高中数学教师","初级专业技术岗位","财政拨款",2,"不限","本科学历或硕士研究生及以上学历","与报名学历相对应的学位","研究生：学科教学(数学)(专业学位)（045104）、数学(一级学科)（0701）、课程与教学论(数学方向)（040102）\n本科：数学类(一级学科)（0701）","须在2025年7月31日前取得相应的教师资格证（在2025年7月31日前已经通过相应教师资格证笔试和面试考试未进行认定的，须在办理聘用备案手续前取得相应的教师资格证）","报名邮箱：ccesyzp@163.com\n报名电话：0431-85338778/18844008988","0431-88787036"]
[74,"市直","长春市教育局","长春市第二实验中学","高中物理教师","初级专业技术岗位","财政拨款",2,"不限","本科学历或硕士研究生及以上学历","与报名学历相对应的学位","研究生：物理学（一级学科）（0702）、学科教学（物理）（专业学位）（045105）、课程与教学论（物理方向）（040102）\n本科：物理学类（一级学科）（0702）","须在2025年7月31日前取得相应的教师资格证（在2025年7月31日前已经通过相应教师资格证笔试和面试考试未进行认定的，须在办理聘用备案手续前取得相应的教师资格证）","报名邮箱：ccesyzp@163.com\n报名电话：0431-85338778/18844008988","0431-88787036"]
[75,"市直","长春市教育局","长春市第二实验中学","高中化学教师","初级专业技术岗位","财政拨款",2,"不限","本科学历或硕士研究生及以上学历","与报名学历相对应的学位","研究生：化学(一级学科)（0703）、学科教学(化学)(专业学位)（045106）、课程与教学论(化学方向)（040102）\n本科：化学类(一级学科)（0703）","须在2025年7月31日前取得相应的教师资格证（在2025年7月31日前已经通过相应教师资格证笔试和面试考试未进行认定的，须在办理聘用备案手续前取得相应的教师资格证）","报名邮箱：ccesyzp@163.com\n报名电话：0431-85338778/18844008988","0431-88787036"]
[76,"市直","长春市教育局","长春市第二实验中学","高中地理教师","初级专业技术岗位","财政拨款",1,"不限","本科学历或硕士研究生及以上学历","与报名学历相对应的学位","研究生：地理学(一级学科)（0705）、学科教学(地理)(专业学位)（045110）、课程与教学论(地理方向)（040102）\n本科：地理科学类(一级学科)（0705）","须在2025年7月31日前取得相应的教师资格证（在2025年7月31日前已经通过相应教师资格证笔试和面试考试未进行认定的，须在办理聘用备案手续前取得相应的教师资格证）","报名邮箱：ccesyzp@163.com\n报名电话：0431-85338778/18844008988","0431-88787036"]
[77,"市直","长春市教育局","长春市第二实验中学","高中生物教师","初级专业技术岗位","财政拨款",3,"不限","本科学历或硕士研究生及以上学历","与报名学历相对应的学位","研究生：生物学(一级学科)（0710）、生态学(一级学科)（0713）、学科教学(生物)(专业学位)（045107）、课程与教学论(生物方向)（040102）\n本科：生物科学类(一级学科)（0710）","须在2025年7月31日前取得相应的教师资格证（在2025年7月31日前已经通过相应教师资格证笔试和面试考试未进行认定的，须在办理聘用备案手续前取得相应的教师资格证）","报名邮箱：ccesyzp@163.com\n报名电话：0431-85338778/18844008988","0431-88787036"]
[78,"市直","长春市教育局","长春市第二实验中学","初中历史教师","初级专业技术岗位","财政拨款",1,"不限","本科学历或硕士研究生及以上学历","与报名学历相对应的学位","研究生：中国史(一级学科)（0602）、世界史(一级学科)（0603）、学科教学(历史)(专业学位)（045109）、课程与教学论(历史方向)（040102）、考古学（0601）\n本科：历史学类(一级学科)（0601）","须在2025年7月31日前取得相应的教师资格证（在2025年7月31日前已经通过相应教师资格证笔试和面试考试未进行认定的，须在办理聘用备案手续前取得相应的教师资格证）","报名邮箱：ccesyzp@163.com\n报名电话：0431-85338778/18844008988","0431-88787036"]
[79,"市直","长春市教育局","长春市第二实验中学","中学体育教师","初级专业技术岗位","财政拨款",2,"不限","本科学历或硕士研究生及以上学历","与报名学历相对应的学位","研究生：体育学(一级学科)（0452）、学科教学(体育)(专业学位)（045112）、体育(一级学科专业学位)（0452）、课程与教学论(体育方向)（040102）\n本科：体育学类(一级学科)（0452）","须在2025年7月31日前取得相应的教师资格证（在2025年7月31日前已经通过相应教师资格证笔试和面试考试未进行认定的，须在办理聘用备案手续前取得相应的教师资格证）","报名邮箱：ccesyzp@163.com\n报名电话：0431-85338778/18844008988","0431-88787036"]
[80,"市直","长春市教育局","长春市第二实验中学","高中信息技术教师","初级专业技术岗位","财政拨款",2,"不限","本科学历或硕士研究生及以上学历","与报名学历相对应的学位","研究生：计算机科学与技术（一级学科0775、0812）、电子信息（一级学科）（0854）、现代教育技术（专业学位）（045114）\n本科：计算机类（一级学科）（0809）、电子信息类（一级学科）（0807）、教育技术学（040104）","须在2025年7月31日前取得相应的教师资格证（在2025年7月31日前已经通过相应教师资格证笔试和面试考试未进行认定的，须在办理聘用备案手续前取得相应的教师资格证）","报名邮箱：ccesyzp@163.com\n报名电话：0431-85338778/18844008988","0431-88787036"]
[81,"市直","长春市教育局","长春市朝鲜族中学","高中语文教师","初级专业技术岗位","财政拨款",1,"不限","本科学历或硕士研究生及以上学历","与报名学历相对应的学位","研究生：中国语言文学(一级学科)0501、学科教学(语文)(专业学位)（045103）、课程与教学论(语文方向)（040102）\n本科：中国语言文学类(一级学科)（0501）","须在2025年7月31日前取得相应的教师资格证（在2025年7月31日前已经通过相应教师资格证笔试和面试考试未进行认定的，须在办理聘用备案手续前取得相应的教师资格证）","报名邮箱：\n404705713@qq.com\n报名电话：\n0431-85800795","0431-88787036"]
[{"$f":"ROW()-2","v":82},"市直","长春市教育局","长春市特殊教育学校","数学教师","初级专业技术岗位","财政拨款",1,"不限","本科学历或硕士研究生及以上学历","与报名学历相对应的学位","研究生：数学(一级学科)（0701）、课程与教学论(数学方向)（040102）、学科教学(数学)(专业学位)（045104）\n本科：数学类(一级学科)（0701）","须在2025年7月31日前取得高中及以上相应的教师资格证（在2025年7月31日前已经通过相应教师资格证笔试和面试考试未进行认定的，须在办理聘用备案手续前取得相应的教师资格证）","报名邮箱：583146588@qq.com\n报名电话：13756144043","0431-88787036"]
[83,"市直","长春市教育局","长春市特殊教育学校","教育技术教师","初级专业技术岗位","财政拨款",1,"不限","本科学历或硕士研究生及以上学历","与报名学历相对应的学位","研究生：现代教育技术(专业学位)（045114）、教育技术学（040110）\n本科：教育技术学（040104）","须在2025年7月31日前取得高中及以上相应的教师资格证（在2025年7月31日前已经通过相应教师资格证笔试和面试考试未进行认定的，须在办理聘用备案手续前取得相应的教师资格证）","报名邮箱：583146588@qq.com\n报名电话：13756144043","0431-88787036"]
[84,"市直","长春市教育局","长春市第一中等专业学校","数学教师","初级专业技术岗位","财政拨款",1,"不限","本科学历或硕士研究生及以上学历","与报名学历相对应的学位","研究生：数学(一级学科)（0701）、学科教学(数学)(专业学位)（045104）\n本科：数学类(一级学科)（0701）","须在2025年7月31日前取得相应的教师资格证（在2025年7月31日前已经通过相应教师资格证笔试和面试考试未进行认定的，须在办理聘用备案手续前取得相应的教师资格证）","报名邮箱：5886556@qq.com\n报名电话：17604316358","0431-88787036"]
[85,"市直","长春市教育局","长春市机械工业学校","心理教师","初级专业技术岗位","财政拨款",1,"不限","硕士研究生及以上学历","与报名学历相对应的学位","研究生：心理学（一级学科）（0402、0771）、心理健康教育（专业学位）（045116）、应用心理（一级学科专业学位）（0454）","须在2025年7月31日前取得相应的教师资格证（在2025年7月31日前已经通过相应教师资格证笔试和面试考试未进行认定的，须在办理聘用备案手续前取得相应的教师资格证）","报名邮箱：234591169@qq.com\n报名电话：0431-81819318/18186807082","0431-88787036"]
[86,"市直","长春市教育局","长春职业技术学校","语文教师","初级专业技术岗位","财政拨款",2,"不限","本科学历或硕士研究生及以上学历","与报名学历相对应的学位","研究生：中国语言文学(一级学科)（0501）、学科教学(语文)(专业学位)（045103）、课程与教学论(语文方向)（040102）\n本科：中国语言文学类(一级学科)（0501）","须在2025年7月31日前取得相应的教师资格证（在2025年7月31日前已经通过相应教师资格证笔试和面试考试未进行认定的，须在办理聘用备案手续前取得相应的教师资格证）","报名邮箱：191180600@qq.com\n报名电话：　13159611928","0431-88787036"]
[87,"市直","长春市教育局","长春职业技术学校","英语教师","初级专业技术岗位","财政拨款",1,"不限","本科学历或硕士研究生及以上学历","与报名学历相对应的学位","研究生：英语语言文学（050201）、外国语言学及应用语言学(英语方向)（050211）、学科教学(英语)(专业学位)（045108）\n本科：英语（050201）、商务英语（050262）","须在2025年7月31日前取得相应的教师资格证（在2025年7月31日前已经通过相应教师资格证笔试和面试考试未进行认定的，须在办理聘用备案手续前取得相应的教师资格证）","报名邮箱：191180600@qq.com\n报名电话：13159611928","0431-88787036"]
[88,"市直","长春市卫生健康委员会","长春医学高等专科学校","政治学教师","初级专业技术岗位","财政拨款",1,"不限","硕士研究生及以上学历","与报名学历相对应的学位","研究生：政治学（一级学科）（0302）","1.中共党员(包括中共预备党员)\n2.具有本科学历学士学位","报名邮箱：rsccmc@163.com\n报名电话：0431-84826461","0431-84825101"]
[89,"市直","长春市卫生健康委员会","长春医学高等专科学校","计算机教师","初级专业技术岗位","财政拨款",1,"不限","硕士研究生及以上学历","与报名学历相对应的学位","研究生：计算机科学与技术（一级学科）（0775、0812）、软件工程（一级学科）（0835）、计算机技术（专业学位）（085404）、软件工程（专业学位）（085405）、大数据技术与工程（专业学位）（085411）、教育技术学（040110）","具有本科学历学士学位","报名邮箱：rsccmc@163.com\n报名电话：0431-84826461","0431-84825101"]
[90,"市直","长春市卫生健康委员会","长春医学高等专科学校","体育教师","初级专业技术岗位","财政拨款",1,"不限","硕士研究生及以上学历","与报名学历相对应的学位","研究生：体育学（一级学科）（0403）、体育（一级学科专业学位）（0452）、学科教学（体育）（专业学位）","具有本科学历学士学位","报名邮箱：rsccmc@163.com\n报名电话：0431-84826461","0431-84825101"]
[91,"市直","长春市卫生健康委员会","长春医学高等专科学校","心理学教师","初级专业技术岗位","财政拨款",1,"不限","硕士研究生及以上学历","与报名学历相对应的学位","研究生：心理学（一级学科）（0402、0771）、心理健康教育（专业学位）（045116）、应用心理（一级学科专业学位）（0454）","具有本科学历学士学位","报名邮箱：rsccmc@163.com\n报名电话：0431-84826461","0431-84825101"]
[{"$f":"ROW()-2","v":92},"朝阳区","长春市朝阳区教育局","长春市朝阳区北安小学校","小学体育教师","初级专业技术岗位","财政拨款",1,"不限","本科学历或硕士研究生及以上学历","与报名学历相对应的学位","研究生专业为：体育学（一级学科）（0403）、学科教学(体育)（专业学位）（045112）、体育（一级学科专业学位）（0452）、课程与教学论（体育方向）（040102）\n本科专业为：体育学类（一级学科）（0402）","须在2025年7月31日前取得相应的教师资格证（在2025年7月31日前已经通过相应教师资格证笔试和面试考试未进行认定的，须在办理聘用备案手续前取得相应的教师资格证）","报名邮箱：13387950907@163.com\n报名电话：18404312770（学校）、\n0431-89898118（教育局）","0431-85102036"]
[93,"朝阳区","长春市朝阳区教育局","长春市朝阳区北安小学校","小学音乐教师","初级专业技术岗位","财政拨款",1,"不限","本科学历或硕士研究生及以上学历","与报名学历相对应的学位","研究生专业为：艺术学（音乐方向）（舞蹈方向）（一级学科）（1301）、学科教学(音乐）（专业学位）（045111）、课程与教学论（音乐方向）（040102）、音乐（专业学位）（135200）、舞蹈（专业学位）（135300）\n本科专业为：音乐与舞蹈学类（一级学科）（1302）","须在2025年7月31日前取得相应的教师资格证（在2025年7月31日前已经通过相应教师资格证笔试和面试考试未进行认定的，须在办理聘用备案手续前取得相应的教师资格证）","报名邮箱：13387950907@163.com\n报名电话：18404312770（学校）、\n0431-89898118（教育局）","0431-85102036"]
[94,"朝阳区","长春市朝阳区教育局","长春市朝阳区解放大路小学校","小学语文教师","初级专业技术岗位","财政拨款",2,"不限","本科学历或硕士研究生及以上学历","与报名学历相对应的学位","研究生专业为：中国语言文学（一级学科)(0501）、学科教学（语文）（专业学位）(045103)、国际中文教育（一级学科专业学位）(0453)、课程与教学论（语文方向）(040102）、小学教育（语文）(专业学位)(045115)\n本科专业为：中国语言文学类（一级学科)(0501）、小学教育(040107）","须在2025年7月31日前取得相应的教师资格证（在2025年7月31日前已经通过相应教师资格证笔试和面试考试未进行认定的，须在办理聘用备案手续前取得相应的教师资格证）","报名邮箱：cyjfdlxx@163.com\n报名电话：15144165622（学校）、\n0431-89898118（教育局）","0431-85102036"]
[95,"朝阳区","长春市朝阳区教育局","长春市朝阳区明德小学校","小学数学教师","初级专业技术岗位","财政拨款",2,"不限","本科学历或硕士研究生及以上学历","与报名学历相对应的学位","研究生专业为：数学（一级学科)(0701）、统计学（一级学科)(0714）、学科教学（数学）（专业学位)(045104）、课程与教学论（数学方向）(040102） 、小学教育（数学）（专业学位）(045115)\n本科专业为：数学类（一级学科)(0701）、统计学类（一级学科)(0712）、小学教育(040107）","须在2025年7月31日前取得相应的教师资格证（在2025年7月31日前已经通过相应教师资格证笔试和面试考试未进行认定的，须在办理聘用备案手续前取得相应的教师资格证）","报名邮箱：mingde726@163.com\n报名电话：13596118073（学校）、\n0431-89898118（教育局）","0431-85102036"]
[96,"朝阳区","长春市朝阳区教育局","长春市朝阳区明德小学校","小学体育教师","初级专业技术岗位","财政拨款",2,"不限","本科学历或硕士研究生及以上学历","与报名学历相对应的学位","研究生专业为：体育学（一级学科）（0403）、学科教学(体育)（专业学位）（045112）、体育（一级学科专业学位）（0452）、课程与教学论（体育方向）（040102）\n本科专业为：体育学类（一级学科）（0402）","须在2025年7月31日前取得相应的教师资格证（在2025年7月31日前已经通过相应教师资格证笔试和面试考试未进行认定的，须在办理聘用备案手续前取得相应的教师资格证）","报名邮箱：mingde726@163.com\n报名电话：13596118073（学校）、\n0431-89898118（教育局）","0431-85102036"]
[97,"朝阳区","长春市朝阳区教育局","长春市朝阳区安达小学","小学数学教师","初级专业技术岗位","财政拨款",1,"不限","本科学历或硕士研究生及以上学历","与报名学历相对应的学位","研究生专业为：数学（一级学科)(0701）、统计学（一级学科)(0714）、学科教学（数学）（专业学位)(045104）、课程与教学论（数学方向）(040102） 、小学教育（数学）（专业学位）(045115)\n本科专业为：数学类（一级学科)(0701）、统计学类（一级学科)(0712）、小学教育(040107）","须在2025年7月31日前取得相应的教师资格证（在2025年7月31日前已经通过相应教师资格证笔试和面试考试未进行认定的，须在办理聘用备案手续前取得相应的教师资格证）","报名邮箱：andaxiaoxue99@163.com\n报名电话：13324314697（学校）、\n0431-89898118（教育局）","0431-85102036"]
[98,"朝阳区","长春市朝阳区教育局","长春市朝阳区慧达小学","小学语文教师","初级专业技术岗位","财政拨款",1,"不限","本科学历或硕士研究生及以上学历","与报名学历相对应的学位","研究生专业为：中国语言文学（一级学科)(0501）、学科教学（语文）（专业学位）(045103)、国际中文教育（一级学科专业学位）(0453)、课程与教学论（语文方向）(040102）、小学教育（语文）(专业学位)(045115)\n本科专业为：中国语言文学类（一级学科)(0501）、小学教育(040107）","须在2025年7月31日前取得相应的教师资格证（在2025年7月31日前已经通过相应教师资格证笔试和面试考试未进行认定的，须在办理聘用备案手续前取得相应的教师资格证）","报名邮箱：13166812473@163.com\n报名电话：18117141477（学校）、\n0431-89898118（教育局）","0431-85102036"]
[99,"朝阳区","长春市朝阳区教育局","长春市朝阳区安民街小学校","小学语文教师","初级专业技术岗位","财政拨款",1,"不限","本科学历或硕士研究生及以上学历","与报名学历相对应的学位","研究生专业为：中国语言文学（一级学科)(0501）、学科教学（语文）（专业学位）(045103)、国际中文教育（一级学科专业学位）(0453)、课程与教学论（语文方向）(040102）、小学教育（语文）(专业学位)(045115)\n本科专业为：中国语言文学类（一级学科)(0501）、小学教育(040107）","须在2025年7月31日前取得相应的教师资格证（在2025年7月31日前已经通过相应教师资格证笔试和面试考试未进行认定的，须在办理聘用备案手续前取得相应的教师资格证）","报名邮箱：anmin1232024@163.com\n报名电话：13756066111（学校）、\n0431-89898118（教育局）","0431-85102036"]
[100,"朝阳区","长春市朝阳区教育局","长春市朝阳区艳春小学","小学语文教师","初级专业技术岗位","财政拨款",2,"不限","本科学历或硕士研究生及以上学历","与报名学历相对应的学位","研究生专业为：中国语言文学（一级学科)(0501）、学科教学（语文）（专业学位）(045103)、国际中文教育（一级学科专业学位）(0453)、课程与教学论（语文方向）(040102）、小学教育（语文）(专业学位)(045115)\n本科专业为：中国语言文学类（一级学科)(0501）、小学教育(040107）","须在2025年7月31日前取得相应的教师资格证（在2025年7月31日前已经通过相应教师资格证笔试和面试考试未进行认定的，须在办理聘用备案手续前取得相应的教师资格证）","报名邮箱：cyycxiaoxue@163.com\n报名电话：17808086896（学校）、\n0431-89898118（教育局）","0431-85102036"]
[101,"朝阳区","长春市朝阳区教育局","长春市朝阳区富锋镇中心小学","小学数学教师","初级专业技术岗位","财政拨款",1,"不限","本科学历或硕士研究生及以上学历","与报名学历相对应的学位","研究生专业为：数学（一级学科)(0701）、统计学（一级学科)(0714）、学科教学（数学）（专业学位)(045104）、课程与教学论（数学方向）(040102） 、小学教育（数学）（专业学位）(045115)\n本科专业为：数学类（一级学科)(0701）、统计学类（一级学科)(0712）、小学教育(040107）","须在2025年7月31日前取得相应的教师资格证（在2025年7月31日前已经通过相应教师资格证笔试和面试考试未进行认定的，须在办理聘用备案手续前取得相应的教师资格证）","报名邮箱：fufengxiaoxue2024@163.com\n报名电话：13578895549（学校）、\n0431-89898118（教育局）","0431-85102036"]
[{"$f":"ROW()-2","v":102},"朝阳区","长春市朝阳区教育局","长春市朝阳区富锋镇中心小学","小学体育教师","初级专业技术岗位","财政拨款",4,"不限","本科学历或硕士研究生及以上学历","与报名学历相对应的学位","研究生专业为：体育学（一级学科）（0403）、学科教学(体育)（专业学位）（045112）、体育（一级学科专业学位）（0452）、课程与教学论（体育方向）（040102）\n本科专业为：体育学类（一级学科）（0402）","须在2025年7月31日前取得相应的教师资格证（在2025年7月31日前已经通过相应教师资格证笔试和面试考试未进行认定的，须在办理聘用备案手续前取得相应的教师资格证）","报名邮箱：fufengxiaoxue2024@163.com\n报名电话：13578895549（学校）、\n0431-89898118（教育局）","0431-85102036"]
[103,"朝阳区","长春市朝阳区教育局","长春市朝阳区富锋镇中心小学","小学音乐教师","初级专业技术岗位","财政拨款",1,"不限","本科学历或硕士研究生及以上学历","与报名学历相对应的学位","研究生专业为：艺术学（音乐方向）（舞蹈方向）（一级学科）（1301）、学科教学(音乐）（专业学位）（045111）、课程与教学论（音乐方向）（040102）、音乐（专业学位）（135200）、舞蹈（专业学位）（135300）\n本科专业为：音乐与舞蹈学类（一级学科）（1302）","须在2025年7月31日前取得相应的教师资格证（在2025年7月31日前已经通过相应教师资格证笔试和面试考试未进行认定的，须在办理聘用备案手续前取得相应的教师资格证）","报名邮箱：fufengxiaoxue2024@163.com\n报名电话：13578895549（学校）、\n0431-89898118（教育局）","0431-85102036"]
[104,"朝阳区","长春市朝阳区教育局","长春市朝阳区乐山镇中心小学校","小学语文教师","初级专业技术岗位","财政拨款",2,"不限","本科学历或硕士研究生及以上学历","与报名学历相对应的学位","研究生专业为：中国语言文学（一级学科)(0501）、学科教学（语文）（专业学位）(045103)、国际中文教育（一级学科专业学位）(0453)、课程与教学论（语文方向）(040102）、小学教育（语文）(专业学位)(045115)\n本科专业为：中国语言文学类（一级学科)(0501）、小学教育(040107）","须在2025年7月31日前取得相应的教师资格证（在2025年7月31日前已经通过相应教师资格证笔试和面试考试未进行认定的，须在办理聘用备案手续前取得相应的教师资格证）","报名邮箱：17604454246@163.com\n报名电话：17604454246（学校）、\n0431-89898118（教育局）","0431-85102036"]
[105,"朝阳区","长春市朝阳区教育局","长春市朝阳区乐山镇中心小学校","小学体育教师","初级专业技术岗位","财政拨款",1,"不限","本科学历或硕士研究生及以上学历","与报名学历相对应的学位","研究生专业为：体育学（一级学科）（0403）、学科教学(体育)（专业学位）（045112）、体育（一级学科专业学位）（0452）、课程与教学论（体育方向）（040102）\n本科专业为：体育学类（一级学科）（0402）","须在2025年7月31日前取得相应的教师资格证（在2025年7月31日前已经通过相应教师资格证笔试和面试考试未进行认定的，须在办理聘用备案手续前取得相应的教师资格证）","报名邮箱：17604454246@163.com\n报名电话：17604454246（学校）、\n0431-89898118（教育局）","0431-85102036"]
[106,"朝阳区","长春市朝阳区教育局","长春市朝阳区乐山镇中心小学校","小学信息技术教师","初级专业技术岗位","财政拨款",1,"不限","本科学历或硕士研究生及以上学历","与报名学历相对应的学位","研究生专业为：计算机科学与技术(一级学科)（0775、0812）、现代教育技术（专业学位）(045114)、教育技术学(040110）、课程与教学论（计算机）(040102）、软件工程（一级学科)(0835）、计算机技术（专业学位）(085404)、软件工程(专业学位)(085405)\n本科专业为：计算机类（一级学科)(0809）、教育技术学(040104）","须在2025年7月31日前取得相应的教师资格证（在2025年7月31日前已经通过相应教师资格证笔试和面试考试未进行认定的，须在办理聘用备案手续前取得相应的教师资格证）","报名邮箱：17604454246@163.com\n报名电话：17604454246（学校）、\n0431-89898118（教育局）","0431-85102036"]
[107,"朝阳区","长春市朝阳区教育局","长春市朝阳区乐山镇中心小学校","小学音乐教师","初级专业技术岗位","财政拨款",1,"不限","本科学历或硕士研究生及以上学历","与报名学历相对应的学位","研究生专业为：艺术学（音乐方向）（舞蹈方向）（一级学科）（1301）、学科教学(音乐）（专业学位）（045111）、课程与教学论（音乐方向）（040102）、音乐（专业学位）（135200）、舞蹈（专业学位）（135300）\n本科专业为：音乐与舞蹈学类（一级学科）（1302）","须在2025年7月31日前取得相应的教师资格证（在2025年7月31日前已经通过相应教师资格证笔试和面试考试未进行认定的，须在办理聘用备案手续前取得相应的教师资格证）","报名邮箱：17604454246@163.com\n报名电话：17604454246（学校）、\n0431-89898118（教育局）","0431-85102036"]
[108,"朝阳区","长春市朝阳区教育局","长春市朝阳区永春镇中心小学校","小学科学教师","初级专业技术岗位","财政拨款",1,"不限","本科学历或硕士研究生及以上学历","与报名学历相对应的学位","研究生专业为：化学(一级学科）（0703)、物理学（一级学科）（0702）、生态学（一级学科）（0713）、生物学（一级学科）（0710）、学科教学(化学)(专业学位)（045106）、学科教学（物理）（专业学位）（045105）、学科教学（生物）（专业学位）（045107）、课程与教学论(化学方向、物理方向、生物方向)（040102）、应用化学（081704）、科学与技术教育(专业学位)（045117）\n本科专业为：化学类(一级学科）（0703)、物理学类（一级学科）（0702）、生物科学类（一级学科）（0710）、科学教育（040102）","须在2025年7月31日前取得相应的教师资格证（在2025年7月31日前已经通过相应教师资格证笔试和面试考试未进行认定的，须在办理聘用备案手续前取得相应的教师资格证）","报名邮箱：yongchun60@163.com\n报名电话：15943055019（学校）、\n0431-89898118（教育局）","0431-85102036"]
[109,"朝阳区","长春市朝阳区教育局","长春市朝阳区永春镇中心小学校","小学英语教师","初级专业技术岗位","财政拨款",1,"不限","本科学历或硕士研究生及以上学历","与报名学历相对应的学位","研究生专业为：英语语言文学(050201）、外国语言学及应用语言学（英语）(050211）、英语笔译（专业学位）(055101)、英语口译（专业学位）(055102)、学科教学（英语）（专业学位）(045108)、课程与教学论（英语方向）(040102）、小学教育(英语)(专业学位)(045115 )\n本科专业为：英语(050201）、翻译(英语方向)(050261）、商务英语(050262）、小学教育(040107）","须在2025年7月31日前取得相应的教师资格证（在2025年7月31日前已经通过相应教师资格证笔试和面试考试未进行认定的，须在办理聘用备案手续前取得相应的教师资格证）","报名邮箱：yongchun60@163.com\n报名电话：15943055019（学校）、\n0431-89898118（教育局）","0431-85102036"]
[110,"朝阳区","长春市朝阳区教育局","长春市朝阳区永春镇中心小学校","小学数学教师","初级专业技术岗位","财政拨款",2,"不限","本科学历或硕士研究生及以上学历","与报名学历相对应的学位","研究生专业为：数学（一级学科)(0701）、统计学（一级学科)(0714）、学科教学（数学）（专业学位)(045104）、课程与教学论（数学方向）(040102） 、小学教育（数学）（专业学位）(045115)\n本科专业为：数学类（一级学科)(0701）、统计学类（一级学科)(0712）、小学教育(040107）","须在2025年7月31日前取得相应的教师资格证（在2025年7月31日前已经通过相应教师资格证笔试和面试考试未进行认定的，须在办理聘用备案手续前取得相应的教师资格证）","报名邮箱：yongchun60@163.com\n报名电话：15943055019（学校）、\n0431-89898118（教育局）","0431-85102036"]
[111,"朝阳区","长春市朝阳区教育局","长春市朝阳区永春镇中心小学校","小学体育教师","初级专业技术岗位","财政拨款",1,"不限","本科学历或硕士研究生及以上学历","与报名学历相对应的学位","研究生专业为：体育学（一级学科）（0403）、学科教学(体育)（专业学位）（045112）、体育（一级学科专业学位）（0452）、课程与教学论（体育方向）（040102）\n本科专业为：体育学类（一级学科）（0402）","须在2025年7月31日前取得相应的教师资格证（在2025年7月31日前已经通过相应教师资格证笔试和面试考试未进行认定的，须在办理聘用备案手续前取得相应的教师资格证）","报名邮箱：yongchun60@163.com\n报名电话：15943055019（学校）、\n0431-89898118（教育局）","0431-85102036"]
[{"$f":"ROW()-2","v":112},"朝阳区","长春市朝阳区教育局","长春市朝阳区永春镇中心小学校","小学美术教师","初级专业技术岗位","财政拨款",1,"不限","本科学历或硕士研究生及以上学历","与报名学历相对应的学位","研究生专业为：艺术学（美术方向）（一级学科）（1301）、美术与书法(专业学位）（135600）、设计(专业学位）（135700）、学科教学(美术)（专业学位）（045113）、课程与教学论（美术方向）（040102 ）\n本科专业为：美术学类（一级学科）（1304）、设计学类（一级学科）（1305）、动画（130310）","须在2025年7月31日前取得相应的教师资格证（在2025年7月31日前已经通过相应教师资格证笔试和面试考试未进行认定的，须在办理聘用备案手续前取得相应的教师资格证）","报名邮箱：yongchun60@163.com\n报名电话：15943055019（学校）、\n0431-89898118（教育局）","0431-85102036"]
[113,"朝阳区","长春市朝阳区教育局","长春市第六十八中学","初中语文教师","初级专业技术岗位","财政拨款",2,"不限","本科学历或硕士研究生及以上学历","与报名学历相对应的学位","研究生专业为：中国语言文学（一级学科)(0501）、学科教学（语文）（专业学位）(045103)、国际中文教育（一级学科专业学位）(0453)、课程与教学论（语文方向）(040102）\n本科专业为：中国语言文学类（一级学科)(0501）","须在2025年7月31日前取得相应的教师资格证（在2025年7月31日前已经通过相应教师资格证笔试和面试考试未进行认定的，须在办理聘用备案手续前取得相应的教师资格证）","报名邮箱：710865922@qq.com\n报名电话：18943117171（学校）、\n0431-89898118（教育局）","0431-85102036"]
[114,"朝阳区","长春市朝阳区教育局","长春市第六十八中学","初中英语教师","初级专业技术岗位","财政拨款",1,"不限","本科学历或硕士研究生及以上学历","与报名学历相对应的学位","研究生专业为：英语语言文学(050201）、外国语言学及应用语言学（英语）(050211）、英语笔译（专业学位）(055101)、英语口译（专业学位）(055102)、学科教学（英语）（专业学位）(045108)、课程与教学论（英语方向）(040102）\n本科专业为：英语(050201）、翻译(英语方向)(050261）、商务英语(050262）","须在2025年7月31日前取得相应的教师资格证（在2025年7月31日前已经通过相应教师资格证笔试和面试考试未进行认定的，须在办理聘用备案手续前取得相应的教师资格证）","报名邮箱：710865922@qq.com\n报名电话：18943117171（学校）、\n0431-89898118（教育局）","0431-85102036"]
[115,"朝阳区","长春市朝阳区教育局","长春市九十中学","初中英语教师","初级专业技术岗位","财政拨款",1,"不限","本科学历或硕士研究生及以上学历","与报名学历相对应的学位","研究生专业为：英语语言文学(050201）、外国语言学及应用语言学（英语）(050211）、英语笔译（专业学位）(055101)、英语口译（专业学位）(055102)、学科教学（英语）（专业学位）(045108)、课程与教学论（英语方向）(040102）\n本科专业为：英语(050201）、翻译(英语方向)(050261）、商务英语(050262）","须在2025年7月31日前取得相应的教师资格证（在2025年7月31日前已经通过相应教师资格证笔试和面试考试未进行认定的，须在办理聘用备案手续前取得相应的教师资格证）","报名邮箱：13844160083@163.com\n报名电话：13844160083（学校）、\n0431-89898118（教育局）","0431-85102036"]
[116,"朝阳区","长春市朝阳区教育局","长春市朝阳实验学校","初中历史教师","初级专业技术岗位","财政拨款",1,"不限","本科学历或硕士研究生及以上学历","与报名学历相对应的学位","研究生专业为：考古学（一级学科）（0601）、中国史（一级学科）（0602）、世界史（一级学科）（0603）、学科教学（历史）（专业学位）（045109）、课程与教学论（历史方向）（040102）、博物馆（专业学位)(065100）\n本科专业为：历史学类（一级学科）（0601）","须在2025年7月31日前取得相应的教师资格证（在2025年7月31日前已经通过相应教师资格证笔试和面试考试未进行认定的，须在办理聘用备案手续前取得相应的教师资格证）","报名邮箱：411212253@qq.com\n报名电话：15948756391（学校）、\n0431-89898118（教育局）","0431-85102036"]
[117,"朝阳区","长春市朝阳区教育局","长春市第六十中学校","初中生物教师","初级专业技术岗位","财政拨款",1,"不限","本科学历或硕士研究生及以上学历","与报名学历相对应的学位","研究生专业为：生物学（一级学科）（0710）、生态学（一级学科）（0713）、学科教学（生物）（专业学位）（045107）、课程与教学论（生物方向）（040102）\n本科专业为：生物科学类（一级学科）（0710）","须在2025年7月31日前取得相应的教师资格证（在2025年7月31日前已经通过相应教师资格证笔试和面试考试未进行认定的，须在办理聘用备案手续前取得相应的教师资格证）","报名邮箱：yongchun60@163.com\n报名电话：15943055019（学校）、\n0431-89898118（教育局）","0431-85102036"]
[118,"朝阳区","长春市朝阳区教育局","长春市清华实验学校","初中道德与法治教师","初级专业技术岗位","财政拨款",1,"不限","本科学历或硕士研究生及以上学历","与报名学历相对应的学位","研究生专业为：哲学（一级学科）（0101）、政治学（一级学科）（0302）、马克思主义理论（一级学科）（0305）、学科教学（思政）（专业学位）（045102）、课程与教学论（思政方向）（040102）\n本科专业为：哲学类（一级学科）（0101）、政治学类（一级学科）（0302）、马克思主义理论类（一级学科）（0305）","须在2025年7月31日前取得相应的教师资格证（在2025年7月31日前已经通过相应教师资格证笔试和面试考试未进行认定的，须在办理聘用备案手续前取得相应的教师资格证）","报名邮箱：qhsy3174055832@163com\n报名电话：13943061133（学校）、\n0431-89898118（教育局）","0431-85102036"]
[119,"朝阳区","长春市朝阳区教育局","长春市清华实验学校","初中美术教师","初级专业技术岗位","财政拨款",1,"不限","本科学历或硕士研究生及以上学历","与报名学历相对应的学位","研究生专业为：艺术学（美术方向）（一级学科）（1301）、美术与书法(专业学位）（135600）、设计(专业学位）（135700）、学科教学(美术)（专业学位）（045113）、课程与教学论（美术方向）（040102 ）\n本科专业为：美术学类（一级学科）（1304）、设计学类（一级学科）（1305）、动画（130310）","须在2025年7月31日前取得相应的教师资格证（在2025年7月31日前已经通过相应教师资格证笔试和面试考试未进行认定的，须在办理聘用备案手续前取得相应的教师资格证）","报名邮箱：qhsy3174055832@163com\n报名电话：13943061133（学校）、\n0431-89898118（教育局）","0431-85102036"]
[120,"朝阳区","长春市朝阳区教育局","长春市第一一二中学校","初中物理教师","初级专业技术岗位","财政拨款",1,"不限","本科学历或硕士研究生及以上学历","与报名学历相对应的学位","研究生专业为：物理学（一级学科）（0702）、学科教学（物理）（专业学位）（045105）、课程与教学论（物理方向）（040102）\n本科专业为：物理学类（一级学科）（0702）","须在2025年7月31日前取得相应的教师资格证（在2025年7月31日前已经通过相应教师资格证笔试和面试考试未进行认定的，须在办理聘用备案手续前取得相应的教师资格证）","报名邮箱：CC112MiddleSchool@163.com\n报名电话：15543113747（学校）、\n0431-89898118（教育局）","0431-85102036"]
[121,"朝阳区","长春市朝阳区教育局","长春市第一一二中学校","初中英语教师","初级专业技术岗位","财政拨款",1,"不限","本科学历或硕士研究生及以上学历","与报名学历相对应的学位","研究生专业为：英语语言文学(050201）、外国语言学及应用语言学（英语）(050211）、英语笔译（专业学位）(055101)、英语口译（专业学位）(055102)、学科教学（英语）（专业学位）(045108)、课程与教学论（英语方向）(040102）\n本科专业为：英语(050201）、翻译(英语方向)(050261）、商务英语(050262）","须在2025年7月31日前取得相应的教师资格证（在2025年7月31日前已经通过相应教师资格证笔试和面试考试未进行认定的，须在办理聘用备案手续前取得相应的教师资格证）","报名邮箱：CC112MiddleSchool@163.com\n报名电话：15543113747（学校）、\n0431-89898118（教育局）","0431-85102036"]
[{"$f":"ROW()-2","v":122},"南关区","长春市南关区教育局","长春市南关区第四实验学校","小学数学教师","初级专业技术岗位","财政拨款",1,"不限","本科学历或硕士研究生及以上学历","与报名学历相对应的学位","研究生专业为：数学(一级学科)(0701)、学科教学(数学)(专业学位)(045104)、课程与教学论(数学方向)（040102）、小学教育（数学方向）（专业学位)(045115）\n本科专业为：数学类(一级学科）（0701)、小学教育(040107）","须在2025年7月31日前取得相应的教师资格证（在2025年7月31日前已经通过相应教师资格证笔试和面试考试未进行认定的，须在办理聘用备案手续前取得相应的教师资格证）","报名邮箱：185187489@qq.com\n报名电话：18043649009","0431-88912802"]
[123,"南关区","长春市南关区教育局","长春市南关区第四实验学校","小学语文教师","初级专业技术岗位","财政拨款",2,"不限","本科学历或硕士研究生及以上学历","与报名学历相对应的学位","研究生专业为：中国语言文学(一级学科)(0501)、国际中文教育(一级学科专业学位)(0453)、学科教学（语文）(专业学位)(045103)、课程与教学论（语文方向）(040102)、小学教育(专业学位)(045115)\n本科专业为：中国语言文学类(一级学科)(0501)、小学教育(040107）","须在2025年7月31日前取得相应的教师资格证（在2025年7月31日前已经通过相应教师资格证笔试和面试考试未进行认定的，须在办理聘用备案手续前取得相应的教师资格证）","报名邮箱：185187489@qq.com\n报名电话：18043649009","0431-88912802"]
[124,"南关区","长春市南关区教育局","长春市南关区第四实验学校","小学英语教师","初级专业技术岗位","财政拨款",1,"不限","本科学历或硕士研究生及以上学历","与报名学历相对应的学位","研究生专业为：英语语言文学（050201）、外国语言学及应用语言学（英语方向）(050211)、学科教学(英语)(专业学位）（045108)、翻译(英语方向)(一级学科专业学位)(0551)、小学教育（英语）（专业学位)(045115)\n本科专业为：英语(050201）、商务英语(050262）、翻译(050261）、小学教育(040107）","须在2025年7月31日前取得相应的教师资格证（在2025年7月31日前已经通过相应教师资格证笔试和面试考试未进行认定的，须在办理聘用备案手续前取得相应的教师资格证）","报名邮箱：185187489@qq.com\n报名电话：18043649009","0431-88912802"]
[125,"南关区","长春市南关区教育局","长春市南关区第四实验学校","小学道法教师","初级专业技术岗位","财政拨款",1,"不限","本科学历或硕士研究生及以上学历","与报名学历相对应的学位","研究生专业为：哲学（一级学科)(0101）、政治学（一级学科)(0302）、思想政治教育(030505）、学科教学（思政）（专业学位)(045102）、课程与教学论(040102)\n本科专业为：哲学类（一级学科)(0101）、政治学类（一级学科)(0302）、思想政治教育(030503）、小学教育(040107）、马克思主义理论类(一级学科)(0305)","须在2025年7月31日前取得相应的教师资格证（在2025年7月31日前已经通过相应教师资格证笔试和面试考试未进行认定的，须在办理聘用备案手续前取得相应的教师资格证）","报名邮箱：185187489@qq.com\n报名电话：18043649009","0431-88912802"]
[126,"南关区","长春市南关区教育局","长春市南关区第四实验学校","小学美术教师","初级专业技术岗位","财政拨款",1,"不限","本科学历或硕士研究生及以上学历","与报名学历相对应的学位","研究生专业为：艺术学（美术方向）(一级学科)(1301)、设计学(一级学科)(1305)、美术与书法(专业学位)(135600)、学科教学(美术)(045113)、设计（专业学位）（135700）\n本科专业为：美术学类(一级学科)(1304）、设计学类(一级学科)(1305）、动画)(130310）","须在2025年7月31日前取得相应的教师资格证（在2025年7月31日前已经通过相应教师资格证笔试和面试考试未进行认定的，须在办理聘用备案手续前取得相应的教师资格证）","报名邮箱：185187489@qq.com\n报名电话：18043649009","0431-88912802"]
[127,"南关区","长春市南关区教育局","长春市南关区第四实验学校","小学心理教师","初级专业技术岗位","财政拨款",1,"不限","本科学历或硕士研究生及以上学历","与报名学历相对应的学位","研究生专业为：心理学(一级学科）（0402)、心理健康教育(专业学位）（045116)、应用心理(一级学科专业学位）(0454)\n本科专业为：心理学类(一级学科）（0711)","须在2025年7月31日前取得相应的教师资格证（在2025年7月31日前已经通过相应教师资格证笔试和面试考试未进行认定的，须在办理聘用备案手续前取得相应的教师资格证）","报名邮箱：185187489@qq.com\n报名电话：18043649009","0431-88912802"]
[128,"南关区","长春市南关区教育局","长春市南关区第四实验学校","初中数学教师","初级专业技术岗位","财政拨款",2,"不限","本科学历或硕士研究生及以上学历","与报名学历相对应的学位","研究生专业为：数学(一级学科)(0701)、学科教学(数学)(专业学位)(045104)、课程与教学论(数学方向)（040102）\n本科专业为：数学类(一级学科）（0701)","须在2025年7月31日前取得相应的教师资格证（在2025年7月31日前已经通过相应教师资格证笔试和面试考试未进行认定的，须在办理聘用备案手续前取得相应的教师资格证）","报名邮箱：25624690@qq.com\n报名电话：18946503353","0431-88912802"]
[129,"南关区","长春市南关区教育局","长春市南关区第四实验学校","初中语文教师","初级专业技术岗位","财政拨款",2,"不限","本科学历或硕士研究生及以上学历","与报名学历相对应的学位","研究生专业为：中国语言文学(一级学科）（0501)、汉语国际教育(一级学科专业学位)(0453)、学科教学(语文)(专业学位)(045103)、课程与教学论(语文方向)（040102）\n本科专业为：中国语言文学类(一级学科）（0501)","须在2025年7月31日前取得相应的教师资格证（在2025年7月31日前已经通过相应教师资格证笔试和面试考试未进行认定的，须在办理聘用备案手续前取得相应的教师资格证）","报名邮箱：25624690@qq.com\n报名电话：18946503353","0431-88912802"]
[130,"南关区","长春市南关区教育局","长春市南关区第四实验学校","初中英语教师","初级专业技术岗位","财政拨款",1,"不限","本科学历或硕士研究生及以上学历","与报名学历相对应的学位","研究生专业为：英语语言文学（050201）、外国语言学及应用语言学（英语方向）(050211)、学科教学(英语)(专业学位）（045108)、翻译(英语方向)(一级学科专业学位)(0551)\n本科专业为：英语(050201）、商务英语(050262）、翻译(050261）","须在2025年7月31日前取得相应的教师资格证（在2025年7月31日前已经通过相应教师资格证笔试和面试考试未进行认定的，须在办理聘用备案手续前取得相应的教师资格证）","报名邮箱：25624690@qq.com\n报名电话：18946503353","0431-88912802"]
[131,"南关区","长春市南关区教育局","长春市南关区第四实验学校","初中物理教师","初级专业技术岗位","财政拨款",1,"不限","本科学历或硕士研究生及以上学历","与报名学历相对应的学位","研究生专业为：物理学（一级学科)(0702）、学科教学（专业学位)(045105）、课程与教学论(040102）\n本科专业为：物理学类（一级学科)(0702）","须在2025年7月31日前取得相应的教师资格证（在2025年7月31日前已经通过相应教师资格证笔试和面试考试未进行认定的，须在办理聘用备案手续前取得相应的教师资格证）","报名邮箱：25624690@qq.com\n报名电话：18946503353","0431-88912802"]
[{"$f":"ROW()-2","v":132},"南关区","长春市南关区教育局","长春市南关区第四实验学校","初中体育教师","初级专业技术岗位","财政拨款",3,"不限","本科学历或硕士研究生及以上学历","与报名学历相对应的学位","研究生专业为：体育学（一级学科）（0403）、学科教学（体育)(专业学位）（045112)、体育(一级学科专业学位）（0452）、课程与教学论(体育方向)（040102）\n本科专业为：体育学类（一级学科专业学位）（0402）","须在2025年7月31日前取得相应的教师资格证（在2025年7月31日前已经通过相应教师资格证笔试和面试考试未进行认定的，须在办理聘用备案手续前取得相应的教师资格证）","报名邮箱：25624690@qq.com\n报名电话：18946503353","0431-88912802"]
[133,"南关区","长春市南关区教育局","长春市南关区第四实验学校","初中心理教师","初级专业技术岗位","财政拨款",1,"不限","本科学历或硕士研究生及以上学历","与报名学历相对应的学位","研究生专业为：心理学(一级学科）（0402)、心理健康教育(专业学位）（045116)、应用心理(一级学科专业学位）(0454)\n本科专业为：心理学类(一级学科）（0711)","须在2025年7月31日前取得相应的教师资格证（在2025年7月31日前已经通过相应教师资格证笔试和面试考试未进行认定的，须在办理聘用备案手续前取得相应的教师资格证）","报名邮箱：25624690@qq.com\n报名电话：18946503353","0431-88912802"]
[134,"南关区","长春市南关区教育局","长春市南关区华泽学校","小学语文教师","初级专业技术岗位","财政拨款",2,"不限","本科学历或硕士研究生及以上学历","与报名学历相对应的学位","研究生专业为：中国语言文学(一级学科)(0501)、国际中文教育(一级学科专业学位)(0453)、学科教学（语文）(专业学位)(045103)、课程与教学论（语文方向）(040102)、小学教育(专业学位)(045115)\n本科专业为：中国语言文学类(一级学科)(0501)、小学教育(040107）","须在2025年7月31日前取得相应的教师资格证（在2025年7月31日前已经通过相应教师资格证笔试和面试考试未进行认定的，须在办理聘用备案手续前取得相应的教师资格证）","报名邮箱：419916469@qq.com\n报名电话：18943971278","0431-88912802"]
[135,"南关区","长春市南关区教育局","长春市南关区华泽学校","小学数学教师","初级专业技术岗位","财政拨款",1,"不限","本科学历或硕士研究生及以上学历","与报名学历相对应的学位","研究生专业为：数学(一级学科)(0701)、学科教学(数学)(专业学位)(045104)、课程与教学论(数学方向)（040102）、小学教育（数学方向）（专业学位)(045115）\n本科专业为：数学类(一级学科）（0701)、小学教育(040107）","须在2025年7月31日前取得相应的教师资格证（在2025年7月31日前已经通过相应教师资格证笔试和面试考试未进行认定的，须在办理聘用备案手续前取得相应的教师资格证）","报名邮箱：419916469@qq.com\n报名电话：18943971278","0431-88912802"]
[136,"南关区","长春市南关区教育局","长春市南关区华泽学校","小学美术教师","初级专业技术岗位","财政拨款",1,"不限","本科学历或硕士研究生及以上学历","与报名学历相对应的学位","研究生专业为：艺术学（美术方向）(一级学科)(1301)、设计学(一级学科)(1305)、美术与书法(专业学位)(135600)、学科教学(美术)(045113)、设计（专业学位）（135700）\n本科专业为：美术学类(一级学科)(1304）、设计学类(一级学科)(1305）、动画(130310）","须在2025年7月31日前取得相应的教师资格证（在2025年7月31日前已经通过相应教师资格证笔试和面试考试未进行认定的，须在办理聘用备案手续前取得相应的教师资格证）","报名邮箱：419916469@qq.com\n报名电话：18943971278","0431-88912802"]
[137,"南关区","长春市南关区教育局","长春市南关区华泽学校","小学音乐教师","初级专业技术岗位","财政拨款",1,"不限","本科学历或硕士研究生及以上学历","与报名学历相对应的学位","研究生专业为：艺术学（音乐方向）（舞蹈方向）（一级学科)(1301）、学科教学（音乐）(专业学位)(045111)、音乐（专业学位)(1352）、舞蹈（专业学位)(1353）、课程与教学论（音乐方向）（040102）\n本科专业为：音乐与舞蹈学类（一级学科)(1302）","须在2025年7月31日前取得相应的教师资格证（在2025年7月31日前已经通过相应教师资格证笔试和面试考试未进行认定的，须在办理聘用备案手续前取得相应的教师资格证）","报名邮箱：419916469@qq.com\n报名电话：18943971278","0431-88912802"]
[138,"南关区","长春市南关区教育局","长春市南关区华泽学校","小学道法教师","初级专业技术岗位","财政拨款",1,"不限","本科学历或硕士研究生及以上学历","与报名学历相对应的学位","研究生专业为：哲学（一级学科)(0101）、政治学（一级学科)(0302）、思想政治教育(030505）、学科教学（思政）（专业学位)(045102）、课程与教学论(040102)\n本科专业为：哲学类（一级学科)(0101）、政治学类（一级学科)(0302）、思想政治教育(030503）、小学教育(040107）、马克思主义理论类(一级学科)(0305)","须在2025年7月31日前取得相应的教师资格证（在2025年7月31日前已经通过相应教师资格证笔试和面试考试未进行认定的，须在办理聘用备案手续前取得相应的教师资格证）","报名邮箱：419916469@qq.com\n报名电话：18943971278","0431-88912802"]
[139,"南关区","长春市南关区教育局","长春市南关区华泽学校","小学体育教师","初级专业技术岗位","财政拨款",1,"不限","本科学历或硕士研究生及以上学历","与报名学历相对应的学位","研究生专业为：体育学（一级学科）（0403）、学科教学（体育)(专业学位）（045112)、体育(一级学科专业学位）（0452）、课程与教学论(体育方向)（040102）\n本科专业为：体育学类（一级学科专业学位）（0402）","须在2025年7月31日前取得相应的教师资格证（在2025年7月31日前已经通过相应教师资格证笔试和面试考试未进行认定的，须在办理聘用备案手续前取得相应的教师资格证）","报名邮箱：419916469@qq.com\n报名电话：18943971278","0431-88912802"]
[140,"南关区","长春市南关区教育局","长春市南关区华泽学校","初中心理教师","初级专业技术岗位","财政拨款",1,"不限","本科学历或硕士研究生及以上学历","与报名学历相对应的学位","研究生专业为：心理学(一级学科）（0402)、心理健康教育(专业学位）（045116)、应用心理(一级学科专业学位）(0454)\n本科专业为：心理学类(一级学科）（0711)","须在2025年7月31日前取得相应的教师资格证（在2025年7月31日前已经通过相应教师资格证笔试和面试考试未进行认定的，须在办理聘用备案手续前取得相应的教师资格证）","报名邮箱：419916469@qq.com\n报名电话：18943971278","0431-88912802"]
[141,"南关区","长春市南关区教育局","长春市南关区华泽学校","初中体育教师","初级专业技术岗位","财政拨款",4,"不限","本科学历或硕士研究生及以上学历","与报名学历相对应的学位","研究生专业为：体育学（一级学科）（0403）、学科教学（体育)(专业学位）（045112)、体育(一级学科专业学位）（0452）、课程与教学论(体育方向)（040102）\n本科专业为：体育学类（一级学科专业学位）（0402）","须在2025年7月31日前取得相应的教师资格证（在2025年7月31日前已经通过相应教师资格证笔试和面试考试未进行认定的，须在办理聘用备案手续前取得相应的教师资格证）","报名邮箱：419916469@qq.com\n报名电话：18943971278","0431-88912802"]
[{"$f":"ROW()-2","v":142},"南关区","长春市南关区教育局","长春市南关区华泽学校","初中物理教师","初级专业技术岗位","财政拨款",1,"不限","本科学历或硕士研究生及以上学历","与报名学历相对应的学位","研究生专业为：物理学（一级学科)(0702）、学科教学（专业学位)(045105）、课程与教学论(040102）\n本科专业为：物理学类（一级学科)(0702）","须在2025年7月31日前取得相应的教师资格证（在2025年7月31日前已经通过相应教师资格证笔试和面试考试未进行认定的，须在办理聘用备案手续前取得相应的教师资格证）","报名邮箱：419916469@qq.com\n报名电话：18943971278","0431-88912802"]
[143,"南关区","长春市南关区教育局","长春市南关区华泽学校","初中化学教师","初级专业技术岗位","财政拨款",1,"不限","本科学历或硕士研究生及以上学历","与报名学历相对应的学位","研究生专业为：化学(一级学科)(0703)、学科教学(化学)(专业学位)(045106)、课程与教学论(化学方向)(040102）\n本科专业为：化学类（一级学科)(0703）","须在2025年7月31日前取得相应的教师资格证（在2025年7月31日前已经通过相应教师资格证笔试和面试考试未进行认定的，须在办理聘用备案手续前取得相应的教师资格证）","报名邮箱：419916469@qq.com\n报名电话：18943971278","0431-88912802"]
[144,"南关区","长春市南关区教育局","长春市第一0三中学校","初中数学教师","初级专业技术岗位","财政拨款",2,"不限","本科学历或硕士研究生及以上学历","与报名学历相对应的学位","研究生专业为：数学(一级学科)(0701)、学科教学(数学)(专业学位)(045104)、课程与教学论(数学方向)（040102）\n本科专业为：数学类(一级学科）（0701)","须在2025年7月31日前取得相应的教师资格证（在2025年7月31日前已经通过相应教师资格证笔试和面试考试未进行认定的，须在办理聘用备案手续前取得相应的教师资格证）","报名邮箱：1248869190@qq.com\n报名电话：15734381075","0431-88912802"]
[145,"南关区","长春市南关区教育局","长春市第一0三中学校","初中语文教师","初级专业技术岗位","财政拨款",2,"不限","本科学历或硕士研究生及以上学历","与报名学历相对应的学位","研究生专业为：中国语言文学(一级学科）（0501)、汉语国际教育(一级学科专业学位)(0453)、学科教学(语文)(专业学位)(045103)、课程与教学论(语文方向)（040102）\n本科专业为：中国语言文学类(一级学科）（0501)","须在2025年7月31日前取得相应的教师资格证（在2025年7月31日前已经通过相应教师资格证笔试和面试考试未进行认定的，须在办理聘用备案手续前取得相应的教师资格证）","报名邮箱：1248869190@qq.com\n报名电话：15734381075","0431-88912802"]
[146,"南关区","长春市南关区教育局","长春市第一0三中学校","初中道法教师","初级专业技术岗位","财政拨款",1,"不限","本科学历或硕士研究生及以上学历","与报名学历相对应的学位","研究生专业为：政治学(一级学科)(0302)、马克思主义理论(一级学科)(0305)、学科教学(思政)(专业学位)(045102)、课程与教学论(思政方向)(040102）、马克思主义哲学(010101）\n本科专业为：政治学类(一级学科)(0302)、马克思主义理论类(一级学科)(0305)","须在2025年7月31日前取得相应的教师资格证（在2025年7月31日前已经通过相应教师资格证笔试和面试考试未进行认定的，须在办理聘用备案手续前取得相应的教师资格证）","报名邮箱：1248869190@qq.com\n报名电话：15734381075","0431-88912802"]
[147,"南关区","长春市南关区教育局","长春市第一0三中学校","初中历史教师","初级专业技术岗位","财政拨款",1,"不限","本科学历或硕士研究生及以上学历","与报名学历相对应的学位","研究生专业为：中国史(一级学科)(0602)、世界史(一级学科)(0603)、学科教学(历史)(专业学位)(045109)、课程与教学论(历史方向)(040102）\n本科专业为：历史学类(一级学科)(0601)","须在2025年7月31日前取得相应的教师资格证（在2025年7月31日前已经通过相应教师资格证笔试和面试考试未进行认定的，须在办理聘用备案手续前取得相应的教师资格证）","报名邮箱：1248869190@qq.com\n报名电话：15734381075","0431-88912802"]
[148,"南关区","长春市南关区教育局","长春市第一0三中学校","初中信息技术教师","初级专业技术岗位","财政拨款",1,"不限","本科学历或硕士研究生及以上学历","与报名学历相对应的学位","研究生专业为：计算机科学与技术(一级学科)(0775、0812)、计算机技术(专业学位)(085404)、现代教育技术(专业学位)(045114)、课程与教学论(信息方向)（040102）\n本科专业为：计算机类(一级学科)(0809)、教育技术学(040104）","须在2025年7月31日前取得相应的教师资格证（在2025年7月31日前已经通过相应教师资格证笔试和面试考试未进行认定的，须在办理聘用备案手续前取得相应的教师资格证）","报名邮箱：1248869190@qq.com\n报名电话：15734381075","0431-88912802"]
[149,"南关区","长春市南关区教育局","长春市第一0三中学校","初中化学教师","初级专业技术岗位","财政拨款",1,"不限","本科学历或硕士研究生及以上学历","与报名学历相对应的学位","研究生专业为：化学(一级学科)(0703)、学科教学(化学)(专业学位)(045106)、课程与教学论(化学方向)(040102）\n本科专业为：化学类(一级学科)(0703)","须在2025年7月31日前取得相应的教师资格证（在2025年7月31日前已经通过相应教师资格证笔试和面试考试未进行认定的，须在办理聘用备案手续前取得相应的教师资格证）","报名邮箱：1248869190@qq.com\n报名电话：15734381075","0431-88912802"]
[150,"南关区","长春市南关区教育局","长春市第一0三中学校","初中体育教师","初级专业技术岗位","财政拨款",2,"不限","本科学历或硕士研究生及以上学历","与报名学历相对应的学位","研究生专业为：体育学（一级学科）（0403）、学科教学（体育)(专业学位）（045112)、体育(一级学科专业学位）（0452）、课程与教学论(体育方向)（040102）\n本科专业为：体育学类（一级学科专业学位）（0402）","须在2025年7月31日前取得相应的教师资格证（在2025年7月31日前已经通过相应教师资格证笔试和面试考试未进行认定的，须在办理聘用备案手续前取得相应的教师资格证）","报名邮箱：1248869190@qq.com\n报名电话：15734381075","0431-88912802"]
[151,"南关区","长春市南关区教育局","长春市第一0三中学校","小学体育教师","初级专业技术岗位","财政拨款",1,"不限","本科学历或硕士研究生及以上学历","与报名学历相对应的学位","研究生专业为：体育学（一级学科）（0403）、学科教学（体育)(专业学位）（045112)、体育(一级学科专业学位）（0452）、课程与教学论(体育方向)（040102）\n本科专业为：体育学类（一级学科专业学位）（0402）","须在2025年7月31日前取得相应的教师资格证（在2025年7月31日前已经通过相应教师资格证笔试和面试考试未进行认定的，须在办理聘用备案手续前取得相应的教师资格证）","报名邮箱：1248869190@qq.com\n报名电话：15734381075","0431-88912802"]
[{"$f":"ROW()-2","v":152},"南关区","长春市南关区教育局","长春市南关区十一高中南溪学校","初中语文教师","初级专业技术岗位","财政拨款",1,"不限","本科学历或硕士研究生及以上学历","与报名学历相对应的学位","研究生专业为：中国语言文学(一级学科）（0501)、汉语国际教育(一级学科专业学位)(0453)、学科教学(语文)(专业学位)(045103)、课程与教学论(语文方向)（040102）\n本科专业为：中国语言文学类(一级学科）（0501)","须在2025年7月31日前取得相应的教师资格证（在2025年7月31日前已经通过相应教师资格证笔试和面试考试未进行认定的，须在办理聘用备案手续前取得相应的教师资格证）","报名邮箱：2298894380@qq.com\n报名电话：15948075950","0431-88912802"]
[153,"南关区","长春市南关区教育局","长春市南关区十一高中南溪学校","初中英语教师","初级专业技术岗位","财政拨款",1,"不限","本科学历或硕士研究生及以上学历","与报名学历相对应的学位","研究生专业为：英语语言文学（050201）、外国语言学及应用语言学（英语方向）(050211)、学科教学(英语)(专业学位）（045108)、翻译(英语方向)(一级学科专业学位)(0551)\n本科专业为：英语(050201）、商务英语(050262）、翻译(050261）","须在2025年7月31日前取得相应的教师资格证（在2025年7月31日前已经通过相应教师资格证笔试和面试考试未进行认定的，须在办理聘用备案手续前取得相应的教师资格证）","报名邮箱：2298894380@qq.com\n报名电话：15948075950","0431-88912802"]
[154,"南关区","长春市南关区教育局","长春市南关区十一高中南溪学校","初中政治教师","初级专业技术岗位","财政拨款",1,"不限","本科学历或硕士研究生及以上学历","与报名学历相对应的学位","研究生专业为：政治学(一级学科)(0302)、马克思主义理论(一级学科)(0305 )、学科教学(思政)(专业学位)(045102)、课程与教学论(思政方向)（040102）\n本科专业为：政治学类(一级学科)(0302)、马克思主义理论类(一级学科)(0305)","须在2025年7月31日前取得相应的教师资格证（在2025年7月31日前已经通过相应教师资格证笔试和面试考试未进行认定的，须在办理聘用备案手续前取得相应的教师资格证）","报名邮箱：2298894380@qq.com\n报名电话：15948075950","0431-88912802"]
[155,"南关区","长春市南关区教育局","长春市南关区十一高中南溪学校","初中历史教师","初级专业技术岗位","财政拨款",1,"不限","本科学历或硕士研究生及以上学历","与报名学历相对应的学位","研究生专业为：中国史(一级学科)(0602)、世界史(一级学科)(0603)、学科教学(历史)(专业学位)(045109)、课程与教学论(历史方向)(040102）\n本科专业为：历史学类(一级学科)(0601)","须在2025年7月31日前取得相应的教师资格证（在2025年7月31日前已经通过相应教师资格证笔试和面试考试未进行认定的，须在办理聘用备案手续前取得相应的教师资格证）","报名邮箱：2298894380@qq.com\n报名电话：15948075950","0431-88912802"]
[156,"南关区","长春市南关区教育局","长春市南关区十一高中南溪学校","初中体育教师","初级专业技术岗位","财政拨款",1,"不限","本科学历或硕士研究生及以上学历","与报名学历相对应的学位","研究生专业为：体育学（一级学科）（0403）、学科教学（体育)(专业学位）（045112)、体育(一级学科专业学位）（0452）、课程与教学论(体育方向)（040102）\n本科专业为：体育学类（一级学科专业学位）（0402）","须在2025年7月31日前取得相应的教师资格证（在2025年7月31日前已经通过相应教师资格证笔试和面试考试未进行认定的，须在办理聘用备案手续前取得相应的教师资格证）","报名邮箱：2298894380@qq.com\n报名电话：15948075950","0431-88912802"]
[157,"南关区","长春市南关区教育局","长春市南关区十一高中南溪学校","初中信息技术教师","初级专业技术岗位","财政拨款",1,"不限","本科学历或硕士研究生及以上学历","与报名学历相对应的学位","研究生专业为：计算机科学与技术(一级学科)(0775、0812)、计算机技术(专业学位)(085404)、现代教育技术(专业学位)(045114)、课程与教学论(信息方向)（040102）\n本科专业为：计算机类(一级学科)(0809)、教育技术学(040104）","须在2025年7月31日前取得相应的教师资格证（在2025年7月31日前已经通过相应教师资格证笔试和面试考试未进行认定的，须在办理聘用备案手续前取得相应的教师资格证）","报名邮箱：2298894380@qq.com\n报名电话：15948075950","0431-88912802"]
[158,"南关区","长春市南关区教育局","长春市南关区十一高中南溪学校","初中美术教师","初级专业技术岗位","财政拨款",1,"不限","本科学历或硕士研究生及以上学历","与报名学历相对应的学位","研究生专业为：艺术学（美术方向）(一级学科)(1301)、设计学(一级学科)(1305)、美术与书法(专业学位)(135600)、学科教学(美术)(045113)、设计（专业学位）（135700）\n本科专业为：美术学类(一级学科)(1304）、设计学类(一级学科)(1305）、动画","须在2025年7月31日前取得相应的教师资格证（在2025年7月31日前已经通过相应教师资格证笔试和面试考试未进行认定的，须在办理聘用备案手续前取得相应的教师资格证）","报名邮箱：2298894380@qq.com\n报名电话：15948075950","0431-88912802"]
[159,"南关区","长春市南关区教育局","长春市南关区十一高中南溪学校","初中心理教师","初级专业技术岗位","财政拨款",1,"不限","本科学历或硕士研究生及以上学历","与报名学历相对应的学位","研究生专业为：心理学(一级学科）（0402)、心理健康教育(专业学位）（045116)、应用心理(一级学科专业学位）(0454)\n本科专业为：心理学类(一级学科）（0711)","须在2025年7月31日前取得相应的教师资格证（在2025年7月31日前已经通过相应教师资格证笔试和面试考试未进行认定的，须在办理聘用备案手续前取得相应的教师资格证）","报名邮箱：2298894380@qq.com\n报名电话：15948075950","0431-88912802"]
[160,"南关区","长春市南关区教育局","吉林省实验繁荣学校","初中语文教师","初级专业技术岗位","财政拨款",1,"不限","本科学历或硕士研究生及以上学历","与报名学历相对应的学位","研究生专业为：中国语言文学(一级学科）（0501)、汉语国际教育(一级学科专业学位)(0453)、学科教学(语文)(专业学位)(045103)、课程与教学论(语文方向)（040102）\n本科专业为：中国语言文学类(一级学科）（0501)","须在2025年7月31日前取得相应的教师资格证（在2025年7月31日前已经通过相应教师资格证笔试和面试考试未进行认定的，须在办理聘用备案手续前取得相应的教师资格证）","报名邮箱：2124646965@qq,com\n报名电话：18004443332","0431-88912802"]
[161,"南关区","长春市南关区教育局","吉林省实验繁荣学校","初中数学教师","初级专业技术岗位","财政拨款",2,"不限","本科学历或硕士研究生及以上学历","与报名学历相对应的学位","研究生专业为：数学(一级学科)(0701)、学科教学(数学)(专业学位)(045104)、课程与教学论(数学方向)（040102）\n本科专业为：数学类(一级学科）（0701)","须在2025年7月31日前取得相应的教师资格证（在2025年7月31日前已经通过相应教师资格证笔试和面试考试未进行认定的，须在办理聘用备案手续前取得相应的教师资格证）","报名邮箱：2124646965@qq,com\n报名电话：18004443332","0431-88912802"]
[{"$f":"ROW()-2","v":162},"南关区","长春市南关区教育局","吉林省实验繁荣学校","初中英语教师","初级专业技术岗位","财政拨款",1,"不限","本科学历或硕士研究生及以上学历","与报名学历相对应的学位","研究生专业为：英语语言文学（050201）、外国语言学及应用语言学（英语方向）(050211)、学科教学(英语)(专业学位）（045108)、翻译(英语方向)(一级学科专业学位)(0551)\n本科专业为：英语(050201）、商务英语(050262）、翻译(050261）","须在2025年7月31日前取得相应的教师资格证（在2025年7月31日前已经通过相应教师资格证笔试和面试考试未进行认定的，须在办理聘用备案手续前取得相应的教师资格证）","报名邮箱：2124646965@qq,com\n报名电话：18004443332","0431-88912802"]
[163,"南关区","长春市南关区教育局","吉林省实验繁荣学校","初中道法教师","初级专业技术岗位","财政拨款",1,"不限","本科学历或硕士研究生及以上学历","与报名学历相对应的学位","研究生专业为：政治学(一级学科)(0302)、马克思主义理论(一级学科)(0305)、学科教学(思政)(专业学位)(045102)、课程与教学论(思政方向)(040102）、马克思主义哲学(010101）\n本科专业为：政治学类(一级学科)(0302)、马克思主义理论类(一级学科)(0305)","须在2025年7月31日前取得相应的教师资格证（在2025年7月31日前已经通过相应教师资格证笔试和面试考试未进行认定的，须在办理聘用备案手续前取得相应的教师资格证）","报名邮箱：2124646965@qq,com\n报名电话：18004443332","0431-88912802"]
[164,"南关区","长春市南关区教育局","吉林省实验繁荣学校","初中历史教师","初级专业技术岗位","财政拨款",1,"不限","本科学历或硕士研究生及以上学历","与报名学历相对应的学位","研究生专业为：中国史(一级学科)(0602)、世界史(一级学科)(0603)、学科教学(历史)(专业学位)(045109)、课程与教学论(历史方向)(040102）\n本科专业为：历史学类(一级学科)(0601)","须在2025年7月31日前取得相应的教师资格证（在2025年7月31日前已经通过相应教师资格证笔试和面试考试未进行认定的，须在办理聘用备案手续前取得相应的教师资格证）","报名邮箱：2124646965@qq,com\n报名电话：18004443332","0431-88912802"]
[165,"南关区","长春市南关区教育局","吉林省实验繁荣学校","初中体育教师","初级专业技术岗位","财政拨款",1,"不限","本科学历或硕士研究生及以上学历","与报名学历相对应的学位","研究生专业为：体育学（一级学科）（0403）、学科教学（体育)(专业学位）（045112)、体育(一级学科专业学位）（0452）、课程与教学论(体育方向)（040102）\n本科专业为：体育学类（一级学科专业学位）（0402）","须在2025年7月31日前取得相应的教师资格证（在2025年7月31日前已经通过相应教师资格证笔试和面试考试未进行认定的，须在办理聘用备案手续前取得相应的教师资格证）","报名邮箱：2124646965@qq,com\n报名电话：18004443332","0431-88912802"]
[166,"南关区","长春市南关区教育局","长春市第二十六中学","初中语文教师","初级专业技术岗位","财政拨款",1,"不限","本科学历或硕士研究生及以上学历","与报名学历相对应的学位","研究生专业为：中国语言文学(一级学科）（0501)、汉语国际教育(一级学科专业学位)(0453)、学科教学(语文)(专业学位)(045103)、课程与教学论(语文方向)（040102）\n本科专业为：中国语言文学类(一级学科）（0501)","须在2025年7月31日前取得相应的教师资格证（在2025年7月31日前已经通过相应教师资格证笔试和面试考试未进行认定的，须在办理聘用备案手续前取得相应的教师资格证）","报名邮箱：867730405@qq.com\n报名电话：13756299092","0431-88912802"]
[167,"南关区","长春市南关区教育局","长春市第二十六中学","初中物理教师","初级专业技术岗位","财政拨款",1,"不限","本科学历或硕士研究生及以上学历","与报名学历相对应的学位","研究生专业为：物理学（一级学科)(0702）、学科教学（专业学位)(045105）、课程与教学论(040102）\n本科专业为：物理学类（一级学科)(0702）","须在2025年7月31日前取得相应的教师资格证（在2025年7月31日前已经通过相应教师资格证笔试和面试考试未进行认定的，须在办理聘用备案手续前取得相应的教师资格证）","报名邮箱：867730405@qq.com\n报名电话：13756299092","0431-88912802"]
[168,"南关区","长春市南关区教育局","长春市第二十六中学","初中生物教师","初级专业技术岗位","财政拨款",1,"不限","本科学历或硕士研究生及以上学历","与报名学历相对应的学位","研究生专业为：生物学(一级学科0710)、学科教学(生物)(专业学位)(045107)、课程与教学论(生物方向)（040102）\n本科专业为：生物科学类(一级学科)(0710)","须在2025年7月31日前取得相应的教师资格证（在2025年7月31日前已经通过相应教师资格证笔试和面试考试未进行认定的，须在办理聘用备案手续前取得相应的教师资格证）","报名邮箱：867730405@qq.com\n报名电话：13756299092","0431-88912802"]
[169,"南关区","长春市南关区教育局","长春市第二十六中学","初中心理教师","初级专业技术岗位","财政拨款",1,"不限","本科学历或硕士研究生及以上学历","与报名学历相对应的学位","研究生专业为：心理学(一级学科）（0402)、心理健康教育(专业学位）（045116)、应用心理(一级学科专业学位）(0454)\n本科专业为：心理学类(一级学科）（0711)","须在2025年7月31日前取得相应的教师资格证（在2025年7月31日前已经通过相应教师资格证笔试和面试考试未进行认定的，须在办理聘用备案手续前取得相应的教师资格证）","报名邮箱：867730405@qq.com\n报名电话：13756299092","0431-88912802"]
[170,"南关区","长春市南关区教育局","长春市南关区树勋小学","小学语文教师","初级专业技术岗位","财政拨款",3,"不限","本科学历或硕士研究生及以上学历","与报名学历相对应的学位","研究生专业为：中国语言文学(一级学科)(0501)、国际中文教育(一级学科专业学位)(0453)、学科教学（语文）(专业学位)(045103)、课程与教学论（语文方向）(040102)、小学教育(专业学位)(045115)\n本科专业为：中国语言文学类(一级学科)(0501)、小学教育(040107）","须在2025年7月31日前取得相应的教师资格证（在2025年7月31日前已经通过相应教师资格证笔试和面试考试未进行认定的，须在办理聘用备案手续前取得相应的教师资格证）","报名邮箱：691093721@qq.com\n报名电话：18943986189","0431-88912802"]
[171,"南关区","长春市南关区教育局","长春市南关区树勋小学","小学数学教师","初级专业技术岗位","财政拨款",1,"不限","本科学历或硕士研究生及以上学历","与报名学历相对应的学位","研究生专业为：数学(一级学科)(0701)、学科教学(数学)(专业学位)(045104)、课程与教学论(数学方向)（040102）、小学教育（数学方向）（专业学位)(045115）\n本科专业为：数学类(一级学科）（0701)、小学教育(040107）","须在2025年7月31日前取得相应的教师资格证（在2025年7月31日前已经通过相应教师资格证笔试和面试考试未进行认定的，须在办理聘用备案手续前取得相应的教师资格证）","报名邮箱：691093721@qq.com\n报名电话：18943986189","0431-88912802"]
[{"$f":"ROW()-2","v":172},"南关区","长春市南关区教育局","长春市南关区树勋小学","小学英语教师","初级专业技术岗位","财政拨款",1,"不限","本科学历或硕士研究生及以上学历","与报名学历相对应的学位","研究生专业为：英语语言文学（050201）、外国语言学及应用语言学（英语方向）(050211)、学科教学(英语)(专业学位）（045108)、翻译(英语方向)(一级学科专业学位)(0551)、小学教育（英语）（专业学位)(045115)\n本科专业为：英语(050201）、商务英语(050262）、翻译(050261）、小学教育(040107）","须在2025年7月31日前取得相应的教师资格证（在2025年7月31日前已经通过相应教师资格证笔试和面试考试未进行认定的，须在办理聘用备案手续前取得相应的教师资格证）","报名邮箱：691093721@qq.com\n报名电话：18943986189","0431-88912802"]
[173,"南关区","长春市南关区教育局","长春外国语实验学校","小学数学教师","初级专业技术岗位","财政拨款",3,"不限","本科学历或硕士研究生及以上学历","与报名学历相对应的学位","研究生专业为：数学(一级学科)(0701)、学科教学(数学)(专业学位)(045104)、课程与教学论(数学方向)（040102）、小学教育（数学方向）（专业学位)(045115）\n本科专业为：数学类(一级学科）（0701)、小学教育(040107）","须在2025年7月31日前取得相应的教师资格证（在2025年7月31日前已经通过相应教师资格证笔试和面试考试未进行认定的，须在办理聘用备案手续前取得相应的教师资格证）","报名邮箱：742043130@qq.com\n报名电话：13756914806","0431-88912802"]
[174,"南关区","长春市南关区教育局","长春外国语实验学校","小学科学教师","初级专业技术岗位","财政拨款",1,"不限","本科学历或硕士研究生及以上学历","与报名学历相对应的学位","研究生专业为：化学(一级学科)(0703)、物理学(一级学科)(0702)、生态学(一级学科)(0713)、生物学(一级学科)(0710)、学科教学(化学)(专业学位)(045106)、课程与教学论(物理方向、生物方向）(040102)、学科教学(物理)（专业学位)(045105)、学科教学(生物)(专业学位)(045107)、科学与技术教育(专业学位)(045117)\n本科专业为：化学类(一级学科)(0703)、物理学类(一级学科)(0702)、生物科学类(一级学科)(0710)、科学教育(040102）","须在2025年7月31日前取得相应的教师资格证（在2025年7月31日前已经通过相应教师资格证笔试和面试考试未进行认定的，须在办理聘用备案手续前取得相应的教师资格证）","报名邮箱：742043130@qq.com\n报名电话：13756914806","0431-88912802"]
[175,"南关区","长春市南关区教育局","长春外国语实验学校","小学体育教师","初级专业技术岗位","财政拨款",2,"不限","本科学历或硕士研究生及以上学历","与报名学历相对应的学位","研究生专业为：体育学（一级学科）（0403）、学科教学（体育)(专业学位）（045112)、体育(一级学科专业学位）（0452）、课程与教学论(体育方向)（040102）\n本科专业为：体育学类（一级学科专业学位）（0402）","须在2025年7月31日前取得相应的教师资格证（在2025年7月31日前已经通过相应教师资格证笔试和面试考试未进行认定的，须在办理聘用备案手续前取得相应的教师资格证）","报名邮箱：742043130@qq.com\n报名电话：13756914806","0431-88912802"]
[176,"南关区","长春市南关区教育局","长春外国语实验学校","小学音乐教师","初级专业技术岗位","财政拨款",1,"不限","本科学历或硕士研究生及以上学历","与报名学历相对应的学位","研究生专业为：艺术学（音乐方向）（舞蹈方向）（一级学科)(1301）、学科教学（音乐）(专业学位)(045111)、音乐（专业学位)(1352）、舞蹈（专业学位)(1353）、课程与教学论（音乐方向）（040102）\n本科专业为：音乐与舞蹈学类（一级学科)(1302）","须在2025年7月31日前取得相应的教师资格证（在2025年7月31日前已经通过相应教师资格证笔试和面试考试未进行认定的，须在办理聘用备案手续前取得相应的教师资格证）","报名邮箱：742043130@qq.com\n报名电话：13756914806","0431-88912802"]
[177,"南关区","长春市南关区教育局","长春市第一0四中学校","初中英语教师","初级专业技术岗位","财政拨款",1,"不限","本科学历或硕士研究生及以上学历","与报名学历相对应的学位","研究生专业为：英语语言文学（050201）、外国语言学及应用语言学（英语方向）(050211)、学科教学(英语)(专业学位）（045108)、翻译(英语方向)(一级学科专业学位)(0551)\n本科专业为：英语(050201）、商务英语(050262）、翻译(050261）","须在2025年7月31日前取得相应的教师资格证（在2025年7月31日前已经通过相应教师资格证笔试和面试考试未进行认定的，须在办理聘用备案手续前取得相应的教师资格证）","报名邮箱：419916469@qq.com\n报名电话：18943971278","0431-88912802"]
[178,"南关区","长春市南关区教育局","长春市南关区第三实验学校","小学体育教师","初级专业技术岗位","财政拨款",2,"不限","本科学历或硕士研究生及以上学历","与报名学历相对应的学位","研究生专业为：体育学（一级学科）（0403）、学科教学（体育)(专业学位）（045112)、体育(一级学科专业学位）（0452）、课程与教学论(体育方向)（040102）\n本科专业为：体育学类（一级学科专业学位）（0402）","须在2025年7月31日前取得相应的教师资格证（在2025年7月31日前已经通过相应教师资格证笔试和面试考试未进行认定的，须在办理聘用备案手续前取得相应的教师资格证）","报名邮箱：404310515@qq.com\n报名电话：13844822175","0431-88912802"]
[179,"南关区","长春市南关区教育局","长春市南关区第三实验学校","小学美术教师","初级专业技术岗位","财政拨款",1,"不限","本科学历或硕士研究生及以上学历","与报名学历相对应的学位","研究生专业为：艺术学（美术方向）(一级学科)(1301)、设计学(一级学科)(1305)、美术与书法(专业学位)(135600)、学科教学(美术)(045113)、设计（专业学位）（135700）\n本科专业为：美术学类(一级学科)(1304）、设计学类(一级学科)(1305）、动画(130310）","须在2025年7月31日前取得相应的教师资格证（在2025年7月31日前已经通过相应教师资格证笔试和面试考试未进行认定的，须在办理聘用备案手续前取得相应的教师资格证）","报名邮箱：404310515@qq.com\n报名电话：13844822175","0431-88912802"]
[180,"南关区","长春市南关区教育局","长春市南关区第三实验学校","小学信息技术教师","初级专业技术岗位","财政拨款",1,"不限","本科学历或硕士研究生及以上学历","与报名学历相对应的学位","研究生专业为：计算机科学与技术(一级学科)(0775、0812)、计算机技术(专业学位)(085404)、现代教育技术(专业学位)(045114)、课程与教学论(信息方向)（040102）\n本科专业为：计算机类(一级学科)(0809)、教育技术学(040104）","须在2025年7月31日前取得相应的教师资格证（在2025年7月31日前已经通过相应教师资格证笔试和面试考试未进行认定的，须在办理聘用备案手续前取得相应的教师资格证）","报名邮箱：404310515@qq.com\n报名电话：13844822175","0431-88912802"]
[181,"南关区","长春市南关区教育局","长春市南关区第三实验学校","初中政治教师","初级专业技术岗位","财政拨款",1,"不限","本科学历或硕士研究生及以上学历","与报名学历相对应的学位","研究生专业为：政治学(一级学科)(0302)、马克思主义理论(一级学科)(0305 )、学科教学(思政)(专业学位)(045102)、课程与教学论(思政方向)（040102）\n本科专业为：政治学类(一级学科)(0302)、马克思主义理论类(一级学科)(0305)","须在2025年7月31日前取得相应的教师资格证（在2025年7月31日前已经通过相应教师资格证笔试和面试考试未进行认定的，须在办理聘用备案手续前取得相应的教师资格证）","报名邮箱：404310515@qq.com\n报名电话：13844822175","0431-88912802"]
[{"$f":"ROW()-2","v":182},"南关区","长春市南关区教育局","长春市南关区第三实验学校","初中历史教师","初级专业技术岗位","财政拨款",1,"不限","本科学历或硕士研究生及以上学历","与报名学历相对应的学位","研究生专业为：中国史(一级学科)(0602)、世界史(一级学科)(0603)、学科教学(历史)(专业学位)(045109)、课程与教学论(历史方向)(040102）\n本科专业为：历史学类(一级学科)(0601)","须在2025年7月31日前取得相应的教师资格证（在2025年7月31日前已经通过相应教师资格证笔试和面试考试未进行认定的，须在办理聘用备案手续前取得相应的教师资格证）","报名邮箱：404310515@qq.com\n报名电话：13844822175","0431-88912802"]
[183,"宽城区","长春市宽城区教育局","长春市第七十二中学","初中语文教师","初级专业技术岗位","财政拨款",4,"不限","本科学历或硕士研究生及以上学历","与报名学历相对应的学位","研究生专业为：中国语言文学(一级学科)(0501)，学科教学(语文)(专业学位)(045103)；\n本科专业为：中国语言文学类(一级学科)(0501)","须在2025年7月31日前取得相应的教师资格证（在2025年7月31日前已经通过相应教师资格证笔试和面试考试未进行认定的，须在办理聘用备案手续前取得相应的教师资格证）","报名邮箱：kcqsjh2023@163.com\n报名电话：0431-89990233","0431-89990296"]
[184,"宽城区","长春市宽城区教育局","长春市第七十二中学","初中数学教师","初级专业技术岗位","财政拨款",4,"不限","本科学历或硕士研究生及以上学历","与报名学历相对应的学位","研究生专业为：数学(一级学科)(0701)，学科教学(数学)(专业学位)(045104)；\n本科专业为：数学类(一级学科)(0701)","须在2025年7月31日前取得相应的教师资格证（在2025年7月31日前已经通过相应教师资格证笔试和面试考试未进行认定的，须在办理聘用备案手续前取得相应的教师资格证）","报名邮箱：kcqsjh2023@163.com\n报名电话：0431-89990233","0431-89990296"]
[185,"宽城区","长春市宽城区教育局","长春市第七十二中学","初中英语教师","初级专业技术岗位","财政拨款",2,"不限","本科学历或硕士研究生及以上学历","与报名学历相对应的学位","研究生专业为：英语语言文学(050201)，英语笔译(专业学位)(055101)，英语口译(专业学位)(055102)，学科教学(英语)(专业学位)(045108)；\n本科专业为：英语(050201)","须在2025年7月31日前取得相应的教师资格证（在2025年7月31日前已经通过相应教师资格证笔试和面试考试未进行认定的，须在办理聘用备案手续前取得相应的教师资格证）","报名邮箱：kcqsjh2023@163.com\n报名电话：0431-89990233","0431-89990296"]
[186,"宽城区","长春市宽城区教育局","长春市第七十二中学","初中物理教师","初级专业技术岗位","财政拨款",1,"不限","本科学历或硕士研究生及以上学历","与报名学历相对应的学位","研究生专业为：物理学(一级学科)(0702)、学科教学(物理)(专业学位)(045105)；\n本科专业为：物理学类(一级学科)(0702)","须在2025年7月31日前取得相应的教师资格证（在2025年7月31日前已经通过相应教师资格证笔试和面试考试未进行认定的，须在办理聘用备案手续前取得相应的教师资格证）","报名邮箱：kcqsjh2023@163.com\n报名电话：0431-89990233","0431-89990296"]
[187,"宽城区","长春市宽城区教育局","长春市第七十二中学","初中化学教师","初级专业技术岗位","财政拨款",1,"不限","本科学历或硕士研究生及以上学历","与报名学历相对应的学位","研究生专业为：化学(一级学科)(0703)、学科教学(化学)(专业学位)(045106)；\n本科专业为：化学类(一级学科)(0703)","须在2025年7月31日前取得相应的教师资格证（在2025年7月31日前已经通过相应教师资格证笔试和面试考试未进行认定的，须在办理聘用备案手续前取得相应的教师资格证）","报名邮箱：kcqsjh2023@163.com\n报名电话：0431-89990233","0431-89990296"]
[188,"宽城区","长春市宽城区教育局","长春市第七十二中学","初中生物教师","初级专业技术岗位","财政拨款",1,"不限","本科学历或硕士研究生及以上学历","与报名学历相对应的学位","研究生专业为：生物学(一级学科)(0710)，学科教学(生物)(专业学位)(045107)；\n本科专业为：生物科学类(一级学科)(0710)","须在2025年7月31日前取得相应的教师资格证（在2025年7月31日前已经通过相应教师资格证笔试和面试考试未进行认定的，须在办理聘用备案手续前取得相应的教师资格证）","报名邮箱：kcqsjh2023@163.com\n报名电话：0431-89990233","0431-89990296"]
[189,"宽城区","长春市宽城区教育局","长春市第七十二中学","初中道法教师","初级专业技术岗位","财政拨款",1,"不限","本科学历或硕士研究生及以上学历","与报名学历相对应的学位","研究生专业为：政治学(一级学科)(0302)，马克思主义理论(一级学科)(0305)，学科教学(思政)(专业学位)(045102)；\n本科专业为：政治学类(一级学科)(0302)，马克思主义理论类(一级学科)(0305)","须在2025年7月31日前取得相应的教师资格证（在2025年7月31日前已经通过相应教师资格证笔试和面试考试未进行认定的，须在办理聘用备案手续前取得相应的教师资格证）","报名邮箱：kcqsjh2023@163.com\n报名电话：0431-89990233","0431-89990296"]
[190,"宽城区","长春市宽城区教育局","长春市第七十二中学","初中历史教师","初级专业技术岗位","财政拨款",1,"不限","本科学历或硕士研究生及以上学历","与报名学历相对应的学位","研究生专业为：中国史(一级学科)(0602)，世界史(一级学科)(0603)，学科教学(历史)(专业学位)(045109)；\n本科专业为：历史学类(一级学科)(0601)","须在2025年7月31日前取得相应的教师资格证（在2025年7月31日前已经通过相应教师资格证笔试和面试考试未进行认定的，须在办理聘用备案手续前取得相应的教师资格证）","报名邮箱：kcqsjh2023@163.com\n报名电话：0431-89990233","0431-89990296"]
[191,"宽城区","长春市宽城区教育局","长春市第七十二中学","初中地理教师","初级专业技术岗位","财政拨款",1,"不限","本科学历或硕士研究生及以上学历","与报名学历相对应的学位","研究生专业为：地理学(一级学科)(0705)，学科教学(地理)(专业学位)(045110)；\n本科专业为：地理科学类(一级学科)(0705)","须在2025年7月31日前取得相应的教师资格证（在2025年7月31日前已经通过相应教师资格证笔试和面试考试未进行认定的，须在办理聘用备案手续前取得相应的教师资格证）","报名邮箱：kcqsjh2023@163.com\n报名电话：0431-89990233","0431-89990296"]
[{"$f":"ROW()-2","v":192},"宽城区","长春市宽城区教育局","长春市第七十二中学","初中体育教师","初级专业技术岗位","财政拨款",2,"不限","本科学历或硕士研究生及以上学历","与报名学历相对应的学位","研究生专业为：体育学(一级学科)(0403)，学科教学(体育)(专业学位)(045112)，体育(一级学科，专业学位)(0452)；\n本科专业为：体育学类(一级学科)(0402)","须在2025年7月31日前取得相应的教师资格证（在2025年7月31日前已经通过相应教师资格证笔试和面试考试未进行认定的，须在办理聘用备案手续前取得相应的教师资格证）","报名邮箱：kcqsjh2023@163.com\n报名电话：0431-89990233","0431-89990296"]
[193,"宽城区","长春市宽城区教育局","长春市第七十二中学","小学语文教师","初级专业技术岗位","财政拨款",2,"不限","本科学历或硕士研究生及以上学历","与报名学历相对应的学位","研究生专业为：中国语言文学(一级学科)(0501)，学科教学(语文)(专业学位)(045103)，小学教育(专业学位)(045115)；\n本科专业为：中国语言文学类(一级学科)(0501)，小学教育(040107)","须在2025年7月31日前取得相应的教师资格证（在2025年7月31日前已经通过相应教师资格证笔试和面试考试未进行认定的，须在办理聘用备案手续前取得相应的教师资格证）","报名邮箱：kcqsjh2023@163.com\n报名电话：0431-89990233","0431-89990296"]
[194,"宽城区","长春市宽城区教育局","长春市第七十二中学","小学数学教师","初级专业技术岗位","财政拨款",1,"不限","本科学历或硕士研究生及以上学历","与报名学历相对应的学位","研究生专业为：数学(一级学科)(0701)，学科教学(数学)(专业学位)(045104)，小学教育(专业学位)(045115)；\n本科专业为：数学类(一级学科)(0701)，小学教育(040107)","须在2025年7月31日前取得相应的教师资格证（在2025年7月31日前已经通过相应教师资格证笔试和面试考试未进行认定的，须在办理聘用备案手续前取得相应的教师资格证）","报名邮箱：kcqsjh2023@163.com\n报名电话：0431-89990233","0431-89990296"]
[195,"宽城区","长春市宽城区教育局","长春市第一〇六中学","初中历史教师","初级专业技术岗位","财政拨款",1,"不限","本科学历或硕士研究生及以上学历","与报名学历相对应的学位","研究生专业为：中国史(一级学科)(0602)，世界史(一级学科)(0603)，学科教学(历史)(专业学位)(045109)；\n本科专业为：历史学类(一级学科)(0601)","须在2025年7月31日前取得相应的教师资格证（在2025年7月31日前已经通过相应教师资格证笔试和面试考试未进行认定的，须在办理聘用备案手续前取得相应的教师资格证）","报名邮箱：kcqsjh2023@163.com\n报名电话：0431-89990233","0431-89990296"]
[196,"宽城区","长春市宽城区教育局","长春市宽城区第三实验小学","小学语文教师","初级专业技术岗位","财政拨款",1,"不限","本科学历或硕士研究生及以上学历","与报名学历相对应的学位","研究生专业为：中国语言文学(一级学科)(0501)，学科教学(语文)(专业学位)(045103)，小学教育(专业学位)(045115)；\n本科专业为：中国语言文学类(一级学科)(0501)，小学教育(040107)","须在2025年7月31日前取得相应的教师资格证（在2025年7月31日前已经通过相应教师资格证笔试和面试考试未进行认定的，须在办理聘用备案手续前取得相应的教师资格证）","报名邮箱：kcqsjh2023@163.com\n报名电话：0431-89990233","0431-89990296"]
[197,"宽城区","长春市宽城区教育局","长春市宽城区第三实验小学","小学数学教师","初级专业技术岗位","财政拨款",1,"不限","本科学历或硕士研究生及以上学历","与报名学历相对应的学位","研究生专业为：数学(一级学科)(0701)，学科教学(数学)(专业学位)(045104)，小学教育(专业学位)(045115)；\n本科专业为：数学类(一级学科)(0701)，小学教育(040107)","须在2025年7月31日前取得相应的教师资格证（在2025年7月31日前已经通过相应教师资格证笔试和面试考试未进行认定的，须在办理聘用备案手续前取得相应的教师资格证）","报名邮箱：kcqsjh2023@163.com\n报名电话：0431-89990233","0431-89990296"]
[198,"宽城区","长春市宽城区教育局","长春市宽城区蓝田小学","小学体育教师","初级专业技术岗位","财政拨款",1,"不限","本科学历或硕士研究生及以上学历","与报名学历相对应的学位","研究生专业为：体育学(一级学科)(0403)，学科教学(体育)(专业学位)(045112)，体育(一级学科，专业学位)(0452)；\n本科专业为：体育学类(一级学科)(0402)","须在2025年7月31日前取得相应的教师资格证（在2025年7月31日前已经通过相应教师资格证笔试和面试考试未进行认定的，须在办理聘用备案手续前取得相应的教师资格证）","报名邮箱：kcqsjh2023@163.com\n报名电话：0431-89990233","0431-89990296"]
[199,"宽城区","长春市宽城区教育局","长春市蓝田中学","初中语文教师","初级专业技术岗位","财政拨款",4,"不限","本科学历或硕士研究生及以上学历","与报名学历相对应的学位","研究生专业为：中国语言文学(一级学科)(0501)，学科教学(语文)(专业学位)(045103)；\n本科专业为：中国语言文学类(一级学科)(0501)","须在2025年7月31日前取得相应的教师资格证（在2025年7月31日前已经通过相应教师资格证笔试和面试考试未进行认定的，须在办理聘用备案手续前取得相应的教师资格证）","报名邮箱：kcqsjh2023@163.com\n报名电话：0431-89990233","0431-89990296"]
[200,"宽城区","长春市宽城区教育局","长春市蓝田中学","初中数学教师","初级专业技术岗位","财政拨款",4,"不限","本科学历或硕士研究生及以上学历","与报名学历相对应的学位","研究生专业为：数学(一级学科)(0701)，学科教学(数学)(专业学位)(045104)；\n本科专业为：数学类(一级学科)(0701)","须在2025年7月31日前取得相应的教师资格证（在2025年7月31日前已经通过相应教师资格证笔试和面试考试未进行认定的，须在办理聘用备案手续前取得相应的教师资格证）","报名邮箱：kcqsjh2023@163.com\n报名电话：0431-89990233","0431-89990296"]
[201,"宽城区","长春市宽城区教育局","长春市蓝田中学","初中英语教师","初级专业技术岗位","财政拨款",2,"不限","本科学历或硕士研究生及以上学历","与报名学历相对应的学位","研究生专业为：英语语言文学(050201)，英语笔译(专业学位)(055101)，英语口译(专业学位)(055102)，学科教学(英语)(专业学位)(045108)；\n本科专业为：英语(050201)","须在2025年7月31日前取得相应的教师资格证（在2025年7月31日前已经通过相应教师资格证笔试和面试考试未进行认定的，须在办理聘用备案手续前取得相应的教师资格证）","报名邮箱：kcqsjh2023@163.com\n报名电话：0431-89990233","0431-89990296"]
[{"$f":"ROW()-2","v":202},"宽城区","长春市宽城区教育局","长春市蓝田中学","初中道法教师","初级专业技术岗位","财政拨款",1,"不限","本科学历或硕士研究生及以上学历","与报名学历相对应的学位","研究生专业为：政治学(一级学科)(0302)，马克思主义理论(一级学科)(0305)，学科教学(思政)(专业学位)(045102)；\n本科专业为：政治学类(一级学科)(0302)，马克思主义理论类(一级学科)(0305)","须在2025年7月31日前取得相应的教师资格证（在2025年7月31日前已经通过相应教师资格证笔试和面试考试未进行认定的，须在办理聘用备案手续前取得相应的教师资格证）","报名邮箱：kcqsjh2023@163.com\n报名电话：0431-89990233","0431-89990296"]
[203,"宽城区","长春市宽城区教育局","长春市蓝田中学","初中历史教师","初级专业技术岗位","财政拨款",1,"不限","本科学历或硕士研究生及以上学历","与报名学历相对应的学位","研究生专业为：中国史(一级学科)(0602)，世界史(一级学科)(0603)，学科教学(历史)(专业学位)(045109)；\n本科专业为：历史学类(一级学科)(0601)","须在2025年7月31日前取得相应的教师资格证（在2025年7月31日前已经通过相应教师资格证笔试和面试考试未进行认定的，须在办理聘用备案手续前取得相应的教师资格证）","报名邮箱：kcqsjh2023@163.com\n报名电话：0431-89990233","0431-89990296"]
[204,"宽城区","长春市宽城区教育局","长春市蓝田中学","初中地理教师","初级专业技术岗位","财政拨款",1,"不限","本科学历或硕士研究生及以上学历","与报名学历相对应的学位","研究生专业为：地理学(一级学科)(0705)，学科教学(地理)(专业学位)(045110)；\n本科专业为：地理科学类(一级学科)(0705)","须在2025年7月31日前取得相应的教师资格证（在2025年7月31日前已经通过相应教师资格证笔试和面试考试未进行认定的，须在办理聘用备案手续前取得相应的教师资格证）","报名邮箱：kcqsjh2023@163.com\n报名电话：0431-89990233","0431-89990296"]
[205,"宽城区","长春市宽城区教育局","长春市蓝田中学","初中体育教师","初级专业技术岗位","财政拨款",1,"不限","本科学历或硕士研究生及以上学历","与报名学历相对应的学位","研究生专业为：体育学(一级学科)(0403)，学科教学(体育)(专业学位)(045112)，体育(一级学科，专业学位)(0452)；\n本科专业为：体育学类(一级学科)(0402)","须在2025年7月31日前取得相应的教师资格证（在2025年7月31日前已经通过相应教师资格证笔试和面试考试未进行认定的，须在办理聘用备案手续前取得相应的教师资格证）","报名邮箱：kcqsjh2023@163.com\n报名电话：0431-89990233","0431-89990296"]
[206,"宽城区","长春市宽城区教育局","长春市蓝田中学","初中美术教师","初级专业技术岗位","财政拨款",1,"不限","本科学历或硕士研究生及以上学历","与报名学历相对应的学位","研究生专业为：艺术学（一级学科）（美术方向）（1301）、美术与书法(专业学位)(1356)、学科教学(美术)(专业学位)(045113)\n本科专业为：美术学类(一级学科)(1304)","须在2025年7月31日前取得相应的教师资格证（在2025年7月31日前已经通过相应教师资格证笔试和面试考试未进行认定的，须在办理聘用备案手续前取得相应的教师资格证）","报名邮箱：kcqsjh2023@163.com\n报名电话：0431-89990233","0431-89990296"]
[207,"宽城区","长春市宽城区教育局","长春市盛华学校","初中语文教师","初级专业技术岗位","财政拨款",1,"不限","本科学历或硕士研究生及以上学历","与报名学历相对应的学位","研究生专业为：中国语言文学(一级学科)(0501)，学科教学(语文)(专业学位)(045103)；\n本科专业为：中国语言文学类(一级学科)(0501)","须在2025年7月31日前取得相应的教师资格证（在2025年7月31日前已经通过相应教师资格证笔试和面试考试未进行认定的，须在办理聘用备案手续前取得相应的教师资格证）","报名邮箱：kcqsjh2023@163.com\n报名电话：0431-89990233","0431-89990296"]
[208,"宽城区","长春市宽城区教育局","长春市盛华学校","初中数学教师","初级专业技术岗位","财政拨款",1,"不限","本科学历或硕士研究生及以上学历","与报名学历相对应的学位","研究生专业为：数学(一级学科)(0701)，学科教学(数学)(专业学位)(045104)；\n本科专业为：数学类(一级学科)(0701)","须在2025年7月31日前取得相应的教师资格证（在2025年7月31日前已经通过相应教师资格证笔试和面试考试未进行认定的，须在办理聘用备案手续前取得相应的教师资格证）","报名邮箱：kcqsjh2023@163.com\n报名电话：0431-89990233","0431-89990296"]
[209,"宽城区","长春市宽城区教育局","长春市盛华学校","初中英语教师","初级专业技术岗位","财政拨款",1,"不限","本科学历或硕士研究生及以上学历","与报名学历相对应的学位","研究生专业为：英语语言文学(050201)，英语笔译(专业学位)(055101)，英语口译(专业学位)(055102)，学科教学(英语)(专业学位)(045108)；\n本科专业为：英语(050201)","须在2025年7月31日前取得相应的教师资格证（在2025年7月31日前已经通过相应教师资格证笔试和面试考试未进行认定的，须在办理聘用备案手续前取得相应的教师资格证）","报名邮箱：kcqsjh2023@163.com\n报名电话：0431-89990233","0431-89990296"]
[210,"宽城区","长春市宽城区教育局","长春市盛华学校","初中道法教师","初级专业技术岗位","财政拨款",1,"不限","本科学历或硕士研究生及以上学历","与报名学历相对应的学位","研究生专业为：政治学(一级学科)(0302)，马克思主义理论(一级学科)(0305)，学科教学(思政)(专业学位)(045102)；\n本科专业为：政治学类(一级学科)(0302)，马克思主义理论类(一级学科)(0305)","须在2025年7月31日前取得相应的教师资格证（在2025年7月31日前已经通过相应教师资格证笔试和面试考试未进行认定的，须在办理聘用备案手续前取得相应的教师资格证）","报名邮箱：kcqsjh2023@163.com\n报名电话：0431-89990233","0431-89990296"]
[211,"宽城区","长春市宽城区教育局","长春市盛华学校","初中历史教师","初级专业技术岗位","财政拨款",1,"不限","本科学历或硕士研究生及以上学历","与报名学历相对应的学位","研究生专业为：中国史(一级学科)(0602)，世界史(一级学科)(0603)，学科教学(历史)(专业学位)(045109)；\n本科专业为：历史学类(一级学科)(0601)","须在2025年7月31日前取得相应的教师资格证（在2025年7月31日前已经通过相应教师资格证笔试和面试考试未进行认定的，须在办理聘用备案手续前取得相应的教师资格证）","报名邮箱：kcqsjh2023@163.com\n报名电话：0431-89990233","0431-89990296"]
[{"$f":"ROW()-2","v":212},"宽城区","长春市宽城区教育局","长春市盛华学校","初中地理教师","初级专业技术岗位","财政拨款",1,"不限","本科学历或硕士研究生及以上学历","与报名学历相对应的学位","研究生专业为：地理学(一级学科)(0705)，学科教学(地理)(专业学位)(045110)；\n本科专业为：地理科学类(一级学科)(0705)","须在2025年7月31日前取得相应的教师资格证（在2025年7月31日前已经通过相应教师资格证笔试和面试考试未进行认定的，须在办理聘用备案手续前取得相应的教师资格证）","报名邮箱：kcqsjh2023@163.com\n报名电话：0431-89990233","0431-89990296"]
[213,"宽城区","长春市宽城区教育局","长春市盛华学校","初中体育教师","初级专业技术岗位","财政拨款",1,"不限","本科学历或硕士研究生及以上学历","与报名学历相对应的学位","研究生专业为：体育学(一级学科)(0403)，学科教学(体育)(专业学位)(045112)，体育(一级学科，专业学位)(0452)；\n本科专业为：体育学类(一级学科)(0402)","须在2025年7月31日前取得相应的教师资格证（在2025年7月31日前已经通过相应教师资格证笔试和面试考试未进行认定的，须在办理聘用备案手续前取得相应的教师资格证）","报名邮箱：kcqsjh2023@163.com\n报名电话：0431-89990233","0431-89990296"]
[214,"宽城区","长春市宽城区教育局","长春市宽城区宋家幼儿园","幼儿园教师","初级专业技术岗位","财政拨款",1,"不限","本科学历或硕士研究生及以上学历","与报名学历相对应的学位","研究生专业为：学前教育学(040105)、学前教育(专业学位)(045118)；\n本科专业为：学前教育(040106)","须在2025年7月31日前取得相应的教师资格证（在2025年7月31日前已经通过相应教师资格证笔试和面试考试未进行认定的，须在办理聘用备案手续前取得相应的教师资格证）","报名邮箱：kcqsjh2023@163.com\n报名电话：0431-89990291","0431-89990296"]
[215,"宽城区","长春市宽城区教育局","长春市宽城区柳影幼儿园","幼儿园教师","初级专业技术岗位","财政拨款",1,"不限","本科学历或硕士研究生及以上学历","与报名学历相对应的学位","研究生专业为：学前教育学(040105)、学前教育(专业学位)(045118)；\n本科专业为：学前教育(040106)","须在2025年7月31日前取得相应的教师资格证（在2025年7月31日前已经通过相应教师资格证笔试和面试考试未进行认定的，须在办理聘用备案手续前取得相应的教师资格证）","报名邮箱：kcqsjh2023@163.com\n报名电话：0431-89990291","0431-89990296"]
[216,"宽城区","长春市宽城区教育局","长春市宽城区第三实验幼儿园","幼儿园教师","初级专业技术岗位","财政拨款",1,"不限","本科学历或硕士研究生及以上学历","与报名学历相对应的学位","研究生专业为：学前教育学(040105)、学前教育(专业学位)(045118)；\n本科专业为：学前教育(040106)","须在2025年7月31日前取得相应的教师资格证（在2025年7月31日前已经通过相应教师资格证笔试和面试考试未进行认定的，须在办理聘用备案手续前取得相应的教师资格证）","报名邮箱：kcqsjh2023@163.com\n报名电话：0431-89990291","0431-89990296"]
[217,"宽城区","长春市宽城区教育局","长春市宽城区泽葵幼儿园","幼儿园教师","初级专业技术岗位","财政拨款",1,"不限","本科学历或硕士研究生及以上学历","与报名学历相对应的学位","研究生专业为：学前教育学(040105)、学前教育(专业学位)(045118)；\n本科专业为：学前教育(040106)","须在2025年7月31日前取得相应的教师资格证（在2025年7月31日前已经通过相应教师资格证笔试和面试考试未进行认定的，须在办理聘用备案手续前取得相应的教师资格证）","报名邮箱：kcqsjh2023@163.com\n报名电话：0431-89990291","0431-89990296"]
[218,"宽城区","长春市宽城区教育局","长春市宽城区北兴幼儿园","幼儿园教师","初级专业技术岗位","财政拨款",1,"不限","本科学历或硕士研究生及以上学历","与报名学历相对应的学位","研究生专业为：学前教育学(040105)、学前教育(专业学位)(045118)；\n本科专业为：学前教育(040106)","须在2025年7月31日前取得相应的教师资格证（在2025年7月31日前已经通过相应教师资格证笔试和面试考试未进行认定的，须在办理聘用备案手续前取得相应的教师资格证）","报名邮箱：kcqsjh2023@163.com\n报名电话：0431-89990291","0431-89990296"]
[219,"二道区","长春市二道区教育局","长春市二道区长江学校","小学语文教师","初级专业技术岗位","财政拨款",1,"不限","本科学历或硕士研究生及以上学历","与报名学历相对应的学位","研究生专业为：中国语言文学(一级学科)0501、汉语国际教育(专业学位一级学科)0453、学科教学(语文)(专业学位)045103、课程与教学论(语文方向)040102、小学教育（语文）(专业学位)045115\n本科专业为：中国语言文学类(一级学科)0501、小学教育040107","须在2025年7月31日前取得相应的教师资格证（在2025年7月31日前已经通过相应教师资格证笔试和面试考试未进行认定的，须在办理聘用备案手续前取得相应的教师资格证）","报名邮箱：504895474@qq.com\n报名电话：0431-84941448","0431-89680355"]
[220,"二道区","长春市二道区教育局","长春市二道区长江学校","小学数学教师","初级专业技术岗位","财政拨款",1,"不限","本科学历或硕士研究生及以上学历","与报名学历相对应的学位","研究生专业为：数学(一级学科)0701、课程与教学论(数学方向)040102、小学教育(数学)(专业学位)045115、学科教学(数学)(专业学位)045104\n本科专业为：数学类(一级学科)0701、小学教育040107","须在2025年7月31日前取得相应的教师资格证（在2025年7月31日前已经通过相应教师资格证笔试和面试考试未进行认定的，须在办理聘用备案手续前取得相应的教师资格证）","报名邮箱：504895474@qq.com\n报名电话：0431-84941448","0431-89680355"]
[221,"二道区","长春市二道区教育局","长春市二道区长江学校","小学音乐教师","初级专业技术岗位","财政拨款",2,"不限","本科学历或硕士研究生及以上学历","与报名学历相对应的学位","研究生专业为：学科教学(音乐)(专业学位)045111、音乐与舞蹈学(一级学科)1302、音乐(专业学位)135200、舞蹈(专业学位)135300、课程与教学论(音乐方向)040102\n本科专业为：音乐表演130201、音乐学130202、作曲与作曲技术理论130203、舞蹈表演130204、舞蹈学130205、舞蹈编导130206、舞蹈教育130207T","须在2025年7月31日前取得相应的教师资格证（在2025年7月31日前已经通过相应教师资格证笔试和面试考试未进行认定的，须在办理聘用备案手续前取得相应的教师资格证）","报名邮箱：504895474@qq.com\n报名电话：0431-84941448","0431-89680355"]
[{"$f":"ROW()-2","v":222},"二道区","长春市二道区教育局","长春市二道区长江学校","小学体育教师","初级专业技术岗位","财政拨款",3,"不限","本科学历或硕士研究生及以上学历","与报名学历相对应的学位","研究生专业为：学科教学(体育)(专业学位)045112、体育学(一级学科)0403、体育(专业学位一级学科)0452、课程与教学论(体育方向)040102\n本科专业为：体育教育040201、运动训练040202K、社会体育指导与管理040203、武术与民族传统体育040204K、运动人体科学040205、运动康复040206T、休闲体育040207T","须在2025年7月31日前取得相应的教师资格证（在2025年7月31日前已经通过相应教师资格证笔试和面试考试未进行认定的，须在办理聘用备案手续前取得相应的教师资格证）","报名邮箱：504895474@qq.com\n报名电话：0431-84941448","0431-89680355"]
[223,"二道区","长春市二道区教育局","长春市第五十七中学校","初中体育教师","初级专业技术岗位","财政拨款",2,"不限","本科学历或硕士研究生及以上学历","与报名学历相对应的学位","研究生专业为：学科教学(体育)(专业学位)045112、体育学(一级学科)0403、体育(专业学位一级学科)0452、课程与教学论(体育方向)040102\n本科专业为：体育教育040201、运动训练040202K、社会体育指导与管理040203、武术与民族传统体育040204K、运动人体科学040205、运动康复040206T、休闲体育040207T","须在2025年7月31日前取得相应的教师资格证（在2025年7月31日前已经通过相应教师资格证笔试和面试考试未进行认定的，须在办理聘用备案手续前取得相应的教师资格证）","报名邮箱：504895474@qq.com\n报名电话：0431-84941448","0431-89680355"]
[224,"二道区","长春市二道区教育局","长春市第五十七中学校","初中地理教师","初级专业技术岗位","财政拨款",1,"不限","本科学历或硕士研究生及以上学历","与报名学历相对应的学位","研究生专业为：地理学(一级学科)0705、学科教学(地理)(专业学位)045110 、课程与教学论(地理方向)040102\n本科专业为：地理科学类(一级学科)0705","须在2025年7月31日前取得相应的教师资格证（在2025年7月31日前已经通过相应教师资格证笔试和面试考试未进行认定的，须在办理聘用备案手续前取得相应的教师资格证）","报名邮箱：504895474@qq.com\n报名电话：0431-84941448","0431-89680355"]
[225,"二道区","长春市二道区教育局","长春市第五十七中学校","初中美术教师","初级专业技术岗位","财政拨款",3,"不限","本科学历或硕士研究生及以上学历","与报名学历相对应的学位","研究生专业为：美术学(一级学科)1304 、设计学(一级学科)1305、艺术学理论(一级学科)1301、课程与教学论(美术方向)040102、美术与书法(专业学位)135600、设计（专业学位）135700、学科教学(美术)(专业学位)045113\n本科专业为：美术学类(一级学科)1304、设计学类(一级学科)1305、艺术学理论类(一级学科)1301、艺术教育040105","须在2025年7月31日前取得相应的教师资格证（在2025年7月31日前已经通过相应教师资格证笔试和面试考试未进行认定的，须在办理聘用备案手续前取得相应的教师资格证）","报名邮箱：504895474@qq.com\n报名电话：0431-84941448","0431-89680355"]
[226,"二道区","长春市二道区教育局","长春市第五十七中学校","初中音乐教师","初级专业技术岗位","财政拨款",1,"不限","本科学历或硕士研究生及以上学历","与报名学历相对应的学位","研究生专业为：学科教学(音乐)(专业学位)045111、音乐与舞蹈学(一级学科)1302、音乐(专业学位)135200、舞蹈(专业学位)135300、课程与教学论(音乐方向)040102\n本科专业为：音乐表演130201、音乐学130202、作曲与作曲技术理论130203、舞蹈表演130204、舞蹈学130205、舞蹈编导130206、舞蹈教育130207T","须在2025年7月31日前取得相应的教师资格证（在2025年7月31日前已经通过相应教师资格证笔试和面试考试未进行认定的，须在办理聘用备案手续前取得相应的教师资格证）","报名邮箱：504895474@qq.com\n报名电话：0431-84941448","0431-89680355"]
[227,"二道区","长春市二道区教育局","长春市第五十七中学校","初中历史教师","初级专业技术岗位","财政拨款",1,"不限","本科学历或硕士研究生及以上学历","与报名学历相对应的学位","研究生专业为：中国史(一级学科)0602、世界史(一级学科)0603、学科教学(历史)(专业学位)045109、课程与教学论(历史方向)040102\n本科专业为：历史学类(一级学科)0601","须在2025年7月31日前取得相应的教师资格证（在2025年7月31日前已经通过相应教师资格证笔试和面试考试未进行认定的，须在办理聘用备案手续前取得相应的教师资格证）","报名邮箱：504895474@qq.com\n报名电话：0431-84941448","0431-89680355"]
[228,"绿园区","长春市绿园区教育局","长春市第八十八中学","初中体育教师","初级专业技术岗位","财政拨款",2,"不限","本科学历或硕士研究生及以上学历","与报名学历相对应的学位","研究生专业为：体育学（一级学科）（0403）、学科教学（体育）（专业学位）（045112）、课程与教学论（体育方向）（040102）、体育（一级学科专业学位）（0452）               \n本科专业为：体育学类（一级学科）（0402）","须在2025年7月31日前取得相应的教师资格证（在2025年7月31日前已经通过相应教师资格证笔试和面试考试未进行认定的，须在办理聘用备案手续前取得相应的教师资格证）","报名邮箱：9125378@qq.com\n报名电话：0431-81178856","0431-87605043"]
[229,"绿园区","长春市绿园区教育局","长春市第八十九中学","初中体育教师","初级专业技术岗位","财政拨款",2,"不限","本科学历或硕士研究生及以上学历","与报名学历相对应的学位","研究生专业为：体育学（一级学科）（0403）、学科教学（体育）（专业学位）（045112）、课程与教学论（体育方向）（040102）、体育（一级学科专业学位）（0452）               \n本科专业为：体育学类（一级学科）（0402）","须在2025年7月31日前取得相应的教师资格证（在2025年7月31日前已经通过相应教师资格证笔试和面试考试未进行认定的，须在办理聘用备案手续前取得相应的教师资格证）","报名邮箱：9125378@qq.com\n报名电话：0431-81178856","0431-87605043"]
[230,"绿园区","长春市绿园区教育局","长春市第八十九中学","初中语文教师","初级专业技术岗位","财政拨款",1,"不限","本科学历或硕士研究生及以上学历","与报名学历相对应的学位","研究生专业为：中国语言文学（一级学科）（0501）、学科教学（语文）（专业学位）（045103）、课程与教学论（语文方向）（040102）、国际中文教育（一级学科专业学位）（0453）\n本科专业为：中国语言文学类（一级学科）（0501）","须在2025年7月31日前取得相应的教师资格证（在2025年7月31日前已经通过相应教师资格证笔试和面试考试未进行认定的，须在办理聘用备案手续前取得相应的教师资格证）","报名邮箱：9125378@qq.com\n报名电话：0431-81178856","0431-87605043"]
[231,"绿园区","长春市绿园区教育局","长春市第八十九中学","初中历史教师","初级专业技术岗位","财政拨款",1,"不限","本科学历或硕士研究生及以上学历","与报名学历相对应的学位","研究生专业为：中国史（一级学科）（0602）、世界史（一级学科）（0603）、学科教学（历史）（专业学位）（045109）、课程与教学论（历史方向）（040102）\n本科专业为：历史学类（一级学科）（0601）","须在2025年7月31日前取得相应的教师资格证（在2025年7月31日前已经通过相应教师资格证笔试和面试考试未进行认定的，须在办理聘用备案手续前取得相应的教师资格证）","报名邮箱：9125378@qq.com\n报名电话：0431-81178856","0431-87605043"]
[{"$f":"ROW()-2","v":232},"绿园区","长春市绿园区教育局","长春市第八十七中学","初中体育教师","初级专业技术岗位","财政拨款",2,"不限","本科学历或硕士研究生及以上学历","与报名学历相对应的学位","研究生专业为：体育学（一级学科）（0403）、学科教学（体育）（专业学位）（045112）、课程与教学论（体育方向）（040102）、体育（一级学科专业学位）（0452）               \n本科专业为：体育学类（一级学科）（0402）","须在2025年7月31日前取得相应的教师资格证（在2025年7月31日前已经通过相应教师资格证笔试和面试考试未进行认定的，须在办理聘用备案手续前取得相应的教师资格证）","报名邮箱：9125378@qq.com\n报名电话：0431-81178856","0431-87605043"]
[233,"绿园区","长春市绿园区教育局","长春市第八十七中学东校","初中体育教师","初级专业技术岗位","财政拨款",1,"不限","本科学历或硕士研究生及以上学历","与报名学历相对应的学位","研究生专业为：体育学（一级学科）（0403）、学科教学（体育）（专业学位）（045112）、课程与教学论（体育方向）（040102）、体育（一级学科专业学位）（0452）               \n本科专业为：体育学类（一级学科）（0402）","须在2025年7月31日前取得相应的教师资格证（在2025年7月31日前已经通过相应教师资格证笔试和面试考试未进行认定的，须在办理聘用备案手续前取得相应的教师资格证）","报名邮箱：9125378@qq.com\n报名电话：0431-81178856","0431-87605043"]
[234,"绿园区","长春市绿园区教育局","长春市第二十八中学校","初中体育教师","初级专业技术岗位","财政拨款",1,"不限","本科学历或硕士研究生及以上学历","与报名学历相对应的学位","研究生专业为：体育学（一级学科）（0403）、学科教学（体育）（专业学位）（045112）、课程与教学论（体育方向）（040102）、体育（一级学科专业学位）（0452）               \n本科专业为：体育学类（一级学科）（0402）","须在2025年7月31日前取得相应的教师资格证（在2025年7月31日前已经通过相应教师资格证笔试和面试考试未进行认定的，须在办理聘用备案手续前取得相应的教师资格证）","报名邮箱：9125378@qq.com\n报名电话：0431-81178856","0431-87605043"]
[235,"绿园区","长春市绿园区教育局","长春市第二十八中学校","初中语文教师","初级专业技术岗位","财政拨款",1,"不限","本科学历或硕士研究生及以上学历","与报名学历相对应的学位","研究生专业为：中国语言文学（一级学科）（0501）、学科教学（语文）（专业学位）（045103）、课程与教学论（语文方向）（040102）、国际中文教育（一级学科专业学位）（0453）\n本科专业为：中国语言文学类（一级学科）（0501）","须在2025年7月31日前取得相应的教师资格证（在2025年7月31日前已经通过相应教师资格证笔试和面试考试未进行认定的，须在办理聘用备案手续前取得相应的教师资格证）","报名邮箱：9125378@qq.com\n报名电话：0431-81178856","0431-87605043"]
[236,"绿园区","长春市绿园区教育局","长春市第二十八中学校","初中数学教师","初级专业技术岗位","财政拨款",2,"不限","本科学历或硕士研究生及以上学历","与报名学历相对应的学位","研究生专业为：数学（一级学科）（0701）、统计学（一级学科）（0714）、学科教学（数学）（专业学位）（045104）、课程与教学论（数学方向）（040102）\n本科专业为：数学类（一级学科）（0701）、统计学类（一级学科）（0712）","须在2025年7月31日前取得相应的教师资格证（在2025年7月31日前已经通过相应教师资格证笔试和面试考试未进行认定的，须在办理聘用备案手续前取得相应的教师资格证）","报名邮箱：9125378@qq.com\n报名电话：0431-81178856","0431-87605043"]
[237,"绿园区","长春市绿园区教育局","长春市第二十八中学校","初中英语教师","初级专业技术岗位","财政拨款",2,"不限","本科学历或硕士研究生及以上学历","与报名学历相对应的学位","研究生专业为：英语语言文学（050201）、学科教学（英语）（专业学位）（045108）、课程与教学论（英语方向）（040102）、英语笔译（专业学位）（055101）、英语口译（专业学位）（055102）\n本科专业为：英语（050201）、商务英语（050262）、翻译（英语方向）（050261）","须在2025年7月31日前取得相应的教师资格证（在2025年7月31日前已经通过相应教师资格证笔试和面试考试未进行认定的，须在办理聘用备案手续前取得相应的教师资格证）","报名邮箱：9125378@qq.com\n报名电话：0431-81178856","0431-87605043"]
[238,"绿园区","长春市绿园区教育局","长春市第二十八中学校","初中道德与法治教师","初级专业技术岗位","财政拨款",1,"不限","本科学历或硕士研究生及以上学历","与报名学历相对应的学位","研究生专业为：政治学（一级学科）（0302）、马克思主义理论（一级学科）（0305）、马克思主义哲学（010101）、学科教学（思政方向）（专业学位）（045102）、课程与教学论（思政方向）（040102）\n本科专业为：政治学类（一级学科）（0302）、马克思主义理论类（一级学科）（0305）","须在2025年7月31日前取得相应的教师资格证（在2025年7月31日前已经通过相应教师资格证笔试和面试考试未进行认定的，须在办理聘用备案手续前取得相应的教师资格证）","报名邮箱：9125378@qq.com\n报名电话：0431-81178856","0431-87605043"]
[239,"绿园区","长春市绿园区教育局","长春市第二十八中学校","初中历史教师","初级专业技术岗位","财政拨款",2,"不限","本科学历或硕士研究生及以上学历","与报名学历相对应的学位","研究生专业为：中国史（一级学科）（0602）、世界史（一级学科）（0603）、学科教学（历史）（专业学位）（045109）、课程与教学论（历史方向）（040102）\n本科专业为：历史学类（一级学科）（0601）","须在2025年7月31日前取得相应的教师资格证（在2025年7月31日前已经通过相应教师资格证笔试和面试考试未进行认定的，须在办理聘用备案手续前取得相应的教师资格证）","报名邮箱：9125378@qq.com\n报名电话：0431-81178856","0431-87605043"]
[240,"绿园区","长春市绿园区教育局","长春市第二十八中学校","初中美术教师","初级专业技术岗位","财政拨款",1,"不限","本科学历或硕士研究生及以上学历","与报名学历相对应的学位","研究生专业为：艺术学（一级学科）（美术方向）（1301）、学科教学（美术）（专业学位）（045113）、课程与教学论（美术方向）（040102）、美术与书法（专业学位）（1356）          \n本科专业为：美术学类（一级学科）（1304）","须在2025年7月31日前取得相应的教师资格证（在2025年7月31日前已经通过相应教师资格证笔试和面试考试未进行认定的，须在办理聘用备案手续前取得相应的教师资格证）","报名邮箱：9125378@qq.com\n报名电话：0431-81178856","0431-87605043"]
[241,"绿园区","长春市绿园区教育局","长春市第七十八中学","初中物理教师","初级专业技术岗位","财政拨款",1,"不限","本科学历或硕士研究生及以上学历","与报名学历相对应的学位","研究生专业为：物理学（一级学科 ）（0702）、学科教学（物理）（专业学位）（045105）、课程与教学论（物理方向）（040102）\n本科专业为：物理学类（一级学科）（0702）","须在2025年7月31日前取得相应的教师资格证（在2025年7月31日前已经通过相应教师资格证笔试和面试考试未进行认定的，须在办理聘用备案手续前取得相应的教师资格证）","报名邮箱：9125378@qq.com\n报名电话：0431-81178856","0431-87605043"]
[{"$f":"ROW()-2","v":242},"绿园区","长春市绿园区教育局","长春市第七十八中学","初中英语教师","初级专业技术岗位","财政拨款",1,"不限","本科学历或硕士研究生及以上学历","与报名学历相对应的学位","研究生专业为：英语语言文学（050201）、学科教学（英语）（专业学位）（045108）、课程与教学论（英语方向）（040102）、英语笔译（专业学位）（055101）、英语口译（专业学位）（055102）\n本科专业为：英语（050201）、商务英语（050262）、翻译（英语方向）（050261）","须在2025年7月31日前取得相应的教师资格证（在2025年7月31日前已经通过相应教师资格证笔试和面试考试未进行认定的，须在办理聘用备案手续前取得相应的教师资格证）","报名邮箱：9125378@qq.com\n报名电话：0431-81178856","0431-87605043"]
[243,"绿园区","长春市绿园区教育局","长春市第七十八中学","初中数学教师","初级专业技术岗位","财政拨款",1,"不限","本科学历或硕士研究生及以上学历","与报名学历相对应的学位","研究生专业为：数学（一级学科）（0701）、统计学（一级学科）（0714）、学科教学（数学）（专业学位）（045104）、课程与教学论（数学方向）（040102）\n本科专业为：数学类（一级学科）（0701）、统计学类（一级学科）（0712）","须在2025年7月31日前取得相应的教师资格证（在2025年7月31日前已经通过相应教师资格证笔试和面试考试未进行认定的，须在办理聘用备案手续前取得相应的教师资格证）","报名邮箱：9125378@qq.com\n报名电话：0431-81178856","0431-87605043"]
[244,"绿园区","长春市绿园区教育局","长春市第一二六中学","初中美术教师","初级专业技术岗位","财政拨款",1,"不限","本科学历或硕士研究生及以上学历","与报名学历相对应的学位","研究生专业为：艺术学（一级学科）（美术方向）（1301）、学科教学（美术）（专业学位）（045113）、课程与教学论（美术方向）（040102）、美术与书法（专业学位）（1356）          \n本科专业为：美术学类（一级学科）（1304）","须在2025年7月31日前取得相应的教师资格证（在2025年7月31日前已经通过相应教师资格证笔试和面试考试未进行认定的，须在办理聘用备案手续前取得相应的教师资格证）","报名邮箱：9125378@qq.com\n报名电话：0431-81178856","0431-87605043"]
[245,"绿园区","长春市绿园区教育局","长春市第一二六中学","初中物理教师","初级专业技术岗位","财政拨款",1,"不限","本科学历或硕士研究生及以上学历","与报名学历相对应的学位","研究生专业为：物理学（一级学科 ）（0702）、学科教学（物理）（专业学位）（045105）、课程与教学论（物理方向）（040102）\n本科专业为：物理学类（一级学科）（0702）","须在2025年7月31日前取得相应的教师资格证（在2025年7月31日前已经通过相应教师资格证笔试和面试考试未进行认定的，须在办理聘用备案手续前取得相应的教师资格证）","报名邮箱：9125378@qq.com\n报名电话：0431-81178856","0431-87605043"]
[246,"绿园区","长春市绿园区教育局","长春市第一二六中学","初中语文教师","初级专业技术岗位","财政拨款",1,"不限","本科学历或硕士研究生及以上学历","与报名学历相对应的学位","研究生专业为：中国语言文学（一级学科）（0501）、学科教学（语文）（专业学位）（045103）、课程与教学论（语文方向）（040102）、国际中文教育（一级学科专业学位）（0453）\n本科专业为：中国语言文学类（一级学科）（0501）","须在2025年7月31日前取得相应的教师资格证（在2025年7月31日前已经通过相应教师资格证笔试和面试考试未进行认定的，须在办理聘用备案手续前取得相应的教师资格证）","报名邮箱：9125378@qq.com\n报名电话：0431-81178856","0431-87605043"]
[247,"绿园区","长春市绿园区教育局","长春市第一二六中学","初中历史教师","初级专业技术岗位","财政拨款",1,"不限","本科学历或硕士研究生及以上学历","与报名学历相对应的学位","研究生专业为：中国史（一级学科）（0602）、世界史（一级学科）（0603）、学科教学（历史）（专业学位）（045109）、课程与教学论（历史方向）（040102）\n本科专业为：历史学类（一级学科）（0601）","须在2025年7月31日前取得相应的教师资格证（在2025年7月31日前已经通过相应教师资格证笔试和面试考试未进行认定的，须在办理聘用备案手续前取得相应的教师资格证）","报名邮箱：9125378@qq.com\n报名电话：0431-81178856","0431-87605043"]
[248,"绿园区","长春市绿园区教育局","长春市第一二六中学","初中道德与法治教师","初级专业技术岗位","财政拨款",1,"不限","本科学历或硕士研究生及以上学历","与报名学历相对应的学位","研究生专业为：政治学（一级学科）（0302）、马克思主义理论（一级学科）（0305）、马克思主义哲学（010101）、学科教学（思政方向）（专业学位）（045102）、课程与教学论（思政方向）（040102）\n本科专业为：政治学类（一级学科）（0302）、马克思主义理论类（一级学科）（0305）","须在2025年7月31日前取得相应的教师资格证（在2025年7月31日前已经通过相应教师资格证笔试和面试考试未进行认定的，须在办理聘用备案手续前取得相应的教师资格证）","报名邮箱：9125378@qq.com\n报名电话：0431-81178856","0431-87605043"]
[249,"绿园区","长春市绿园区教育局","长春市绿园区实验学校","小学音乐教师","初级专业技术岗位","财政拨款",1,"不限","本科学历或硕士研究生及以上学历","与报名学历相对应的学位","研究生专业为：艺术学（一级学科）（音乐方向）（舞蹈方向）（1301）、学科教学（音乐）（专业学位）（045111）、课程与教学论（音乐方向）（040102）、音乐（专业学位）（1352）、舞蹈（专业学位）（1353）\n本科专业为：音乐表演（130201）、音乐学（130202）、作曲与作曲技术理论（130203）、舞蹈表演（130204）、舞蹈学（130205）、舞蹈编导（130206）、舞蹈教育（130207T）、流行音乐（130209T）、流行舞蹈（130211T）、音乐教育（130212T）","须在2025年7月31日前取得相应的教师资格证（在2025年7月31日前已经通过相应教师资格证笔试和面试考试未进行认定的，须在办理聘用备案手续前取得相应的教师资格证）","报名邮箱：9125378@qq.com\n报名电话：0431-81178856","0431-87605043"]
[250,"绿园区","长春市绿园区教育局","长春市绿园区实验学校","初中语文教师","初级专业技术岗位","财政拨款",1,"不限","本科学历或硕士研究生及以上学历","与报名学历相对应的学位","研究生专业为：中国语言文学（一级学科）（0501）、学科教学（语文）（专业学位）（045103）、课程与教学论（语文方向）（040102）、国际中文教育（一级学科专业学位）（0453）\n本科专业为：中国语言文学类（一级学科）（0501）","须在2025年7月31日前取得相应的教师资格证（在2025年7月31日前已经通过相应教师资格证笔试和面试考试未进行认定的，须在办理聘用备案手续前取得相应的教师资格证）","报名邮箱：9125378@qq.com\n报名电话：0431-81178856","0431-87605043"]
[251,"绿园区","长春市绿园区教育局","长春市绿园区实验学校","初中数学教师","初级专业技术岗位","财政拨款",1,"不限","本科学历或硕士研究生及以上学历","与报名学历相对应的学位","研究生专业为：数学（一级学科）（0701）、统计学（一级学科）（0714）、学科教学（数学）（专业学位）（045104）、课程与教学论（数学方向）（040102）\n本科专业为：数学类（一级学科）（0701）、统计学类（一级学科）（0712）","须在2025年7月31日前取得相应的教师资格证（在2025年7月31日前已经通过相应教师资格证笔试和面试考试未进行认定的，须在办理聘用备案手续前取得相应的教师资格证）","报名邮箱：9125378@qq.com\n报名电话：0431-81178856","0431-87605043"]
[{"$f":"ROW()-2","v":252},"绿园区","长春市绿园区教育局","长春市绿园区实验学校","初中体育教师","初级专业技术岗位","财政拨款",2,"不限","本科学历或硕士研究生及以上学历","与报名学历相对应的学位","研究生专业为：体育学（一级学科）（0403）、学科教学（体育）（专业学位）（045112）、课程与教学论（体育方向）（040102）、体育（一级学科专业学位）（0452）               \n本科专业为：体育学类（一级学科）（0402）","须在2025年7月31日前取得相应的教师资格证（在2025年7月31日前已经通过相应教师资格证笔试和面试考试未进行认定的，须在办理聘用备案手续前取得相应的教师资格证）","报名邮箱：9125378@qq.com\n报名电话：0431-81178856","0431-87605043"]
[253,"绿园区","长春市绿园区教育局","长春市绿园区实验学校","初中美术教师","初级专业技术岗位","财政拨款",1,"不限","本科学历或硕士研究生及以上学历","与报名学历相对应的学位","研究生专业为：艺术学（一级学科）（美术方向）（1301）、学科教学（美术）（专业学位）（045113）、课程与教学论（美术方向）（040102）、美术与书法（专业学位）（1356）          \n本科专业为：美术学类（一级学科）（1304）","须在2025年7月31日前取得相应的教师资格证（在2025年7月31日前已经通过相应教师资格证笔试和面试考试未进行认定的，须在办理聘用备案手续前取得相应的教师资格证）","报名邮箱：9125378@qq.com\n报名电话：0431-81178856","0431-87605043"]
[254,"绿园区","长春市绿园区教育局","长春市绿园区双丰小学校","小学科学教师","初级专业技术岗位","财政拨款",4,"不限","本科学历或硕士研究生及以上学历","与报名学历相对应的学位","研究生专业为：化学（一级学科）（0703）、物理学（一级学科）（0702）、生物学（一级学科）（0710）、学科教学（化学）（专业学位）（045106）、课程与教学论（化学方向、物理方向、生物方向）（040102）、学科教学（物理）（专业学位）（045105）、学科教学（生物）（专业学位）（045107）、科学与技术教育（专业学位）（045117）\n本科专业为：化学类（一级学科）（0703）、物理学类（一级学科）（0702）、生物科学类（一级学科）（0710）、科学教育（040102）","须在2025年7月31日前取得相应的教师资格证（在2025年7月31日前已经通过相应教师资格证笔试和面试考试未进行认定的，须在办理聘用备案手续前取得相应的教师资格证）","报名邮箱：9125378@qq.com\n报名电话：0431-81178856","0431-87605043"]
[255,"绿园区","长春市绿园区教育局","长春市绿园区双丰小学校","小学音乐教师","初级专业技术岗位","财政拨款",2,"不限","本科学历或硕士研究生及以上学历","与报名学历相对应的学位","研究生专业为：艺术学（一级学科）（音乐方向）（舞蹈方向）（1301）、学科教学（音乐）（专业学位）（045111）、课程与教学论（音乐方向）（040102）、音乐（专业学位）（1352）、舞蹈（专业学位）（1353）\n本科专业为：音乐表演（130201）、音乐学（130202）、作曲与作曲技术理论（130203）、舞蹈表演（130204）、舞蹈学（130205）、舞蹈编导（130206）、舞蹈教育（130207T）、流行音乐（130209T）、流行舞蹈（130211T）、音乐教育（130212T）","须在2025年7月31日前取得相应的教师资格证（在2025年7月31日前已经通过相应教师资格证笔试和面试考试未进行认定的，须在办理聘用备案手续前取得相应的教师资格证）","报名邮箱：9125378@qq.com\n报名电话：0431-81178856","0431-87605043"]
[256,"绿园区","长春市绿园区教育局","长春市绿园区双丰小学校","小学美术教师","初级专业技术岗位","财政拨款",2,"不限","本科学历或硕士研究生及以上学历","与报名学历相对应的学位","研究生专业为：艺术学（一级学科）（美术方向）（1301）、学科教学（美术）（专业学位）（045113）、课程与教学论（美术方向）（040102）、美术与书法（专业学位）（1356）          \n本科专业为：美术学类（一级学科）（1304）","须在2025年7月31日前取得相应的教师资格证（在2025年7月31日前已经通过相应教师资格证笔试和面试考试未进行认定的，须在办理聘用备案手续前取得相应的教师资格证）","报名邮箱：9125378@qq.com\n报名电话：0431-81178856","0431-87605043"]
[257,"绿园区","长春市绿园区教育局","长春市绿园区双丰小学校","小学体育教师","初级专业技术岗位","财政拨款",1,"不限","本科学历或硕士研究生及以上学历","与报名学历相对应的学位","研究生专业为：体育学（一级学科）（0403）、学科教学（体育）（专业学位）（045112）、课程与教学论（体育方向）（040102）、体育（一级学科专业学位）（0452）               \n本科专业为：体育学类（一级学科）（0402）","须在2025年7月31日前取得相应的教师资格证（在2025年7月31日前已经通过相应教师资格证笔试和面试考试未进行认定的，须在办理聘用备案手续前取得相应的教师资格证）","报名邮箱：9125378@qq.com\n报名电话：0431-81178856","0431-87605043"]
[258,"绿园区","长春市绿园区教育局","长春市绿园区双丰小学校","小学信息技术教师","初级专业技术岗位","财政拨款",1,"不限","本科学历或硕士研究生及以上学历","与报名学历相对应的学位","研究生专业为：现代教育技术（专业学位）（045114）、计算机科学与技术（一级学科）（0775、0812）、计算机技术（专业学位）（085404）、软件工程（专业学位）（085405）、大数据技术与工程（专业学位）（085411）、网络与信息安全（专业学位）（085412）\n本科专业为：计算机类（一级学科）（0809）、教育技术学（040104）","须在2025年7月31日前取得相应的教师资格证（在2025年7月31日前已经通过相应教师资格证笔试和面试考试未进行认定的，须在办理聘用备案手续前取得相应的教师资格证）","报名邮箱：9125378@qq.com\n报名电话：0431-81178856","0431-87605043"]
[259,"绿园区","长春市绿园区教育局","长春市绿园区双丰小学校","小学英语教师","初级专业技术岗位","财政拨款",2,"不限","本科学历或硕士研究生及以上学历","与报名学历相对应的学位","研究生专业为：英语语言文学（050201）、学科教学（英语）（专业学位）（045108）、课程与教学论（英语方向）（040102）、英语笔译（专业学位）（055101）、英语口译（专业学位）（055102）、小学教育（英语方向）（专业学位）（045115）\n本科专业为：英语（050201）、商务英语（050262）、翻译（英语方向）（050261）、小学教育（英语方向）（040107）","须在2025年7月31日前取得相应的教师资格证（在2025年7月31日前已经通过相应教师资格证笔试和面试考试未进行认定的，须在办理聘用备案手续前取得相应的教师资格证）","报名邮箱：9125378@qq.com\n报名电话：0431-81178856","0431-87605043"]
[260,"绿园区","长春市绿园区教育局","长春市绿园区双丰小学校","小学语文教师","初级专业技术岗位","财政拨款",1,"不限","本科学历或硕士研究生及以上学历","与报名学历相对应的学位","研究生专业为：中国语言文学（一级学科）（0501）、学科教学（语文）（专业学位）（045103）、课程与教学论（语文方向）（040102）、国际中文教育（一级学科专业学位）（0453）、小学教育（语文方向）（专业学位）（045115）\n本科专业为：中国语言文学类（一级学科）（0501）、小学教育（语文方向）（040107）","须在2025年7月31日前取得相应的教师资格证（在2025年7月31日前已经通过相应教师资格证笔试和面试考试未进行认定的，须在办理聘用备案手续前取得相应的教师资格证）","报名邮箱：9125378@qq.com\n报名电话：0431-81178856","0431-87605043"]
[261,"绿园区","长春市绿园区教育局","长春市绿园区双丰小学校（同心小学）","小学体育教师","初级专业技术岗位","财政拨款",1,"不限","本科学历或硕士研究生及以上学历","与报名学历相对应的学位","研究生专业为：体育学（一级学科）（0403）、学科教学（体育）（专业学位）（045112）、课程与教学论（体育方向）（040102）、体育（一级学科专业学位）（0452）               \n本科专业为：体育学类（一级学科）（0402）","须在2025年7月31日前取得相应的教师资格证（在2025年7月31日前已经通过相应教师资格证笔试和面试考试未进行认定的，须在办理聘用备案手续前取得相应的教师资格证）","报名邮箱：9125378@qq.com\n报名电话：0431-81178856","0431-87605043"]
[{"$f":"ROW()-2","v":262},"绿园区","长春市绿园区教育局","长春市绿园区双丰小学校（同心小学）","小学美术教师","初级专业技术岗位","财政拨款",1,"不限","本科学历或硕士研究生及以上学历","与报名学历相对应的学位","研究生专业为：艺术学（一级学科）（美术方向）（1301）、学科教学（美术）（专业学位）（045113）、课程与教学论（美术方向）（040102）、美术与书法（专业学位）（1356）          \n本科专业为：美术学类（一级学科）（1304）","须在2025年7月31日前取得相应的教师资格证（在2025年7月31日前已经通过相应教师资格证笔试和面试考试未进行认定的，须在办理聘用备案手续前取得相应的教师资格证）","报名邮箱：9125378@qq.com\n报名电话：0431-81178856","0431-87605043"]
[263,"绿园区","长春市绿园区教育局","长春市绿园区新竹学校","初中语文教师","初级专业技术岗位","财政拨款",1,"不限","本科学历或硕士研究生及以上学历","与报名学历相对应的学位","研究生专业为：中国语言文学（一级学科）（0501）、学科教学（语文）（专业学位）（045103）、课程与教学论（语文方向）（040102）、国际中文教育（一级学科专业学位）（0453）\n本科专业为：中国语言文学类（一级学科）（0501）","须在2025年7月31日前取得相应的教师资格证（在2025年7月31日前已经通过相应教师资格证笔试和面试考试未进行认定的，须在办理聘用备案手续前取得相应的教师资格证）","报名邮箱：9125378@qq.com\n报名电话：0431-81178856","0431-87605043"]
[264,"绿园区","长春市绿园区教育局","长春市绿园区新竹学校","初中数学教师","初级专业技术岗位","财政拨款",1,"不限","本科学历或硕士研究生及以上学历","与报名学历相对应的学位","研究生专业为：数学（一级学科）（0701）、统计学（一级学科）（0714）、学科教学（数学）（专业学位）（045104）、课程与教学论（数学方向）（040102）\n本科专业为：数学类（一级学科）（0701）、统计学类（一级学科）（0712）","须在2025年7月31日前取得相应的教师资格证（在2025年7月31日前已经通过相应教师资格证笔试和面试考试未进行认定的，须在办理聘用备案手续前取得相应的教师资格证）","报名邮箱：9125378@qq.com\n报名电话：0431-81178856","0431-87605043"]
[265,"九台区","长春市九台区教育局","九台区第一中学","高中语文教师","初级专业技术岗位","财政拨款",3,"不限","本科学历或硕士研究生及以上学历","与报名学历相对应的学位","研究生专业为：中国语言文学（一级学科）（0501）、学科教学（语文）(专业学位)（045103）、课程与教学论（语文方向）（040102）\n本科专业为：中国语言文学类（一级学科）（0501）","须在2025年7月31日前取得相应的教师资格证（在2025年7月31日前已经通过相应教师资格证笔试和面试考试未进行认定的，须在办理聘用备案手续前取得相应的教师资格证）","报名邮箱：jtedurs@163.com\n报名电话：0431-82324039","0431-82323932"]
[266,{"$f":"B267","v":"九台区"},"长春市九台区教育局","九台区第一中学","高中数学教师","初级专业技术岗位","财政拨款",2,"不限","本科学历或硕士研究生及以上学历","与报名学历相对应的学位","研究生专业为：数学（一级学科）(0701)、学科教学（数学）(专业学位)(045104)、课程与教学论（数学方向）(040102）\n本科专业为：数学类（一级学科）（0701)","须在2025年7月31日前取得相应的教师资格证（在2025年7月31日前已经通过相应教师资格证笔试和面试考试未进行认定的，须在办理聘用备案手续前取得相应的教师资格证）","报名邮箱：jtedurs@163.com\n报名电话：0431-82324039","0431-82323932"]
[267,"九台区","长春市九台区教育局","九台区第一中学","高中英语教师","初级专业技术岗位","财政拨款",2,"不限","本科学历或硕士研究生及以上学历","与报名学历相对应的学位","研究生专业为：英语语言文学(050201)、学科教学（英语）(专业学位)(045108)、英语笔译（专业学位）(055101)、 英语口译（专业学位）(055102)、课程与教学论（英语方向）(040102)\n本科专业为：英语(050201)","须在2025年7月31日前取得相应的教师资格证（在2025年7月31日前已经通过相应教师资格证笔试和面试考试未进行认定的，须在办理聘用备案手续前取得相应的教师资格证）","报名邮箱：jtedurs@163.com\n报名电话：0431-82324039","0431-82323932"]
[268,"九台区","长春市九台区教育局","九台区第一中学","高中物理教师","初级专业技术岗位","财政拨款",1,"不限","本科学历或硕士研究生及以上学历","与报名学历相对应的学位","研究生专业为：物理学（一级学科）(0702)、学科教学（物理）(专业学位)(045105)、课程与教学论（物理方向）(040102)\n本科专业为：物理学类（一级学科）(0702)","须在2025年7月31日前取得相应的教师资格证（在2025年7月31日前已经通过相应教师资格证笔试和面试考试未进行认定的，须在办理聘用备案手续前取得相应的教师资格证）","报名邮箱：jtedurs@163.com\n报名电话：0431-82324039","0431-82323932"]
[269,"九台区","长春市九台区教育局","九台区第一中学","高中化学教师","初级专业技术岗位","财政拨款",1,"不限","本科学历或硕士研究生及以上学历","与报名学历相对应的学位","研究生专业为：化学(一级学科)（0703）、学科教学(化学)(专业学位)（045106）、课程与教学论（化学方向）(040102)\n本科专业为：化学类(一级学科)（0703）","须在2025年7月31日前取得相应的教师资格证（在2025年7月31日前已经通过相应教师资格证笔试和面试考试未进行认定的，须在办理聘用备案手续前取得相应的教师资格证）","报名邮箱：jtedurs@163.com\n报名电话：0431-82324039","0431-82323932"]
[270,"九台区","长春市九台区教育局","九台区实验高中","高中生物教师","初级专业技术岗位","财政拨款",1,"不限","本科学历或硕士研究生及以上学历","与报名学历相对应的学位","研究生专业为：生物学（一级学科）(0710)、学科教学（生物）(专业学位)(045107)、课程与教学论（生物方向）(040102)\n本科专业为：生物科学类（一级学科）(0710)","须在2025年7月31日前取得相应的教师资格证（在2025年7月31日前已经通过相应教师资格证笔试和面试考试未进行认定的，须在办理聘用备案手续前取得相应的教师资格证）","报名邮箱：jtedurs@163.com\n报名电话：0431-82324039","0431-82323932"]
[271,"九台区","长春市九台区教育局","九台区青少年活动中心","初中音乐教师","初级专业技术岗位","财政拨款",1,"不限","本科学历或硕士研究生及以上学历","与报名学历相对应的学位","研究生专业为：艺术学（一级学科）（音乐方向、舞蹈方向）（1301）、学科教学（音乐）(专业学位)(045111)、音乐（一级学科（专业学位）(1352)、舞蹈（一级学科）（专业学位）(1353)）、课程与教学论（音乐方向）(040102)\n本科专业为：音乐与舞蹈学类（一级学科）(1302)","须在2025年7月31日前取得相应的教师资格证（在2025年7月31日前已经通过相应教师资格证笔试和面试考试未进行认定的，须在办理聘用备案手续前取得相应的教师资格证）","报名邮箱：jtedurs@163.com\n报名电话：0431-82324039","0431-82323932"]
[{"$f":"ROW()-2","v":272},"九台区","长春市九台区教育局","九台区青少年活动中心","初中美术教师","初级专业技术岗位","财政拨款",1,"不限","本科学历或硕士研究生及以上学历","与报名学历相对应的学位","研究生专业为：学科教学(美术)(专业学位)（045113）、课程与教学论（美术方向）（040102）、艺术学（一级学科）（美术方向）（1301）、\n本科专业为：美术学类（一级学科）（1304)、艺术教育(040105)","须在2025年7月31日前取得相应的教师资格证（在2025年7月31日前已经通过相应教师资格证笔试和面试考试未进行认定的，须在办理聘用备案手续前取得相应的教师资格证）","报名邮箱：jtedurs@163.com\n报名电话：0431-82324039","0431-82323932"]
[273,"公主岭市","公主岭市教育局","公主岭市第一中学校","高中数学教师","初级专业技术岗位","财政拨款",2,"不限","硕士研究生及以上学历","与报名学历相对应的学位","研究生专业为：数学（一级学科）（0701 ）、学科教学（数学）(专业学位)（045104）、课程与教学论（数学方向）（040102）","须在2025年7月31日前取得相应的教师资格证（在2025年7月31日前已经通过相应教师资格证笔试和面试考试未进行认定的，须在办理聘用备案手续前取得相应的教师资格证）","报名邮箱：4057411@qq.com\n报名电话：0434-6297509","0434-6297517"]
[274,{"$f":"B275","v":"公主岭市"},"公主岭市教育局","公主岭市第一中学校","高中语文教师","初级专业技术岗位","财政拨款",1,"不限","硕士研究生及以上学历","与报名学历相对应的学位","研究生专业为：中国语言文学（一级学科）（0501）、学科教学（语文）(专业学位)（045103）、课程与教学论（语文方向）（040102）","须在2025年7月31日前取得相应的教师资格证（在2025年7月31日前已经通过相应教师资格证笔试和面试考试未进行认定的，须在办理聘用备案手续前取得相应的教师资格证）","报名邮箱：4057411@qq.com\n报名电话：0434-6297509","0434-6297517"]
[275,"公主岭市","公主岭市教育局","公主岭市第一中学校","高中英语教师","初级专业技术岗位","财政拨款",1,"不限","硕士研究生及以上学历","与报名学历相对应的学位","研究生专业为：英语语言文学(050201)、学科教学（英语）(专业学位)(045108)、英语笔译（专业学位）(055101)、 英语口译（专业学位）(055102)、课程与教学论（英语方向）(040102)","须在2025年7月31日前取得相应的教师资格证（在2025年7月31日前已经通过相应教师资格证笔试和面试考试未进行认定的，须在办理聘用备案手续前取得相应的教师资格证）","报名邮箱：4057411@qq.com\n报名电话：0434-6297509","0434-6297517"]
[276,"公主岭市","公主岭市教育局","公主岭市第一中学校","高中物理教师","初级专业技术岗位","财政拨款",2,"不限","硕士研究生及以上学历","与报名学历相对应的学位","研究生专业为：物理学（一级学科）(0702)、学科教学（物理）(专业学位)(045105)、课程与教学论（物理方向）(040102)","须在2025年7月31日前取得相应的教师资格证（在2025年7月31日前已经通过相应教师资格证笔试和面试考试未进行认定的，须在办理聘用备案手续前取得相应的教师资格证）","报名邮箱：4057411@qq.com\n报名电话：0434-6297509","0434-6297517"]
[277,"公主岭市","公主岭市教育局","公主岭市第三中学校","高中语文教师","初级专业技术岗位","财政拨款",2,"不限","本科学历或硕士研究生及以上学历","与报名学历相对应的学位","研究生专业为：中国语言文学（一级学科）（0501）、学科教学（语文）(专业学位)（045103）、课程与教学论（语文方向）（040102）\n本科专业为：中国语言文学类（一级学科）（0501）","须在2025年7月31日前取得相应的教师资格证（在2025年7月31日前已经通过相应教师资格证笔试和面试考试未进行认定的，须在办理聘用备案手续前取得相应的教师资格证）","报名邮箱：4057411@qq.com\n报名电话：0434-6297509","0434-6297517"]
[278,"公主岭市","公主岭市教育局","公主岭市第三中学校","高中数学教师","初级专业技术岗位","财政拨款",1,"不限","本科学历或硕士研究生及以上学历","与报名学历相对应的学位","研究生专业为：数学（一级学科）(0701)、学科教学（数学）(专业学位)(045104)、课程与教学论（数学方向）(040102）\n本科专业为：数学类（一级学科）（0701)、统计学(071201)","须在2025年7月31日前取得相应的教师资格证（在2025年7月31日前已经通过相应教师资格证笔试和面试考试未进行认定的，须在办理聘用备案手续前取得相应的教师资格证）","报名邮箱：4057411@qq.com\n报名电话：0434-6297509","0434-6297517"]
[279,"公主岭市","公主岭市教育局","公主岭市第三中学校","高中英语教师","初级专业技术岗位","财政拨款",2,"不限","本科学历或硕士研究生及以上学历","与报名学历相对应的学位","研究生专业为：英语语言文学(050201)、学科教学（英语）(专业学位)(045108)、英语笔译（专业学位）(055101)、 英语口译（专业学位）(055102)、课程与教学论（英语方向）(040102)\n本科专业为：英语(050201)","须在2025年7月31日前取得相应的教师资格证（在2025年7月31日前已经通过相应教师资格证笔试和面试考试未进行认定的，须在办理聘用备案手续前取得相应的教师资格证）","报名邮箱：4057411@qq.com\n报名电话：0434-6297509","0434-6297517"]
[280,"公主岭市","公主岭市教育局","公主岭市第六中学校","高中语文教师","初级专业技术岗位","财政拨款",1,"不限","本科学历或硕士研究生及以上学历","与报名学历相对应的学位","研究生专业为：中国语言文学（一级学科）（0501）、学科教学（语文）(专业学位)（045103）、课程与教学论（语文方向）（040102）\n本科专业为：中国语言文学类（一级学科）（0501）","须在2025年7月31日前取得相应的教师资格证（在2025年7月31日前已经通过相应教师资格证笔试和面试考试未进行认定的，须在办理聘用备案手续前取得相应的教师资格证）","报名邮箱：4057411@qq.com\n报名电话：0434-6297509","0434-6297517"]
[281,"公主岭市","公主岭市教育局","公主岭市第六中学校","高中政治教师","初级专业技术岗位","财政拨款",1,"不限","本科学历或硕士研究生及以上学历","与报名学历相对应的学位","研究生专业为：学科教学（思政）(专业学位)（045102）、政治学（一级学科）（0302）、马克思主义理论（一级学科）（0305）、课程与教学论（思政方向）（040102）、马克思主义哲学（010101）\n本科专业为：政治学类（一级学科）（0302）、马克思主义理论类（一级学科）（0305）、哲学（010101）","须在2025年7月31日前取得相应的教师资格证（在2025年7月31日前已经通过相应教师资格证笔试和面试考试未进行认定的，须在办理聘用备案手续前取得相应的教师资格证）","报名邮箱：4057411@qq.com\n报名电话：0434-6297509","0434-6297517"]
[{"$f":"ROW()-2","v":282},"公主岭市","公主岭市教育局","公主岭市第六中学校","高中物理教师","初级专业技术岗位","财政拨款",1,"不限","本科学历或硕士研究生及以上学历","与报名学历相对应的学位","研究生专业为：物理学（一级学科）(0702)、学科教学（物理）(专业学位)(045105)、课程与教学论（物理方向）(040102)\n本科专业为：物理学类（一级学科）(0702)","须在2025年7月31日前取得相应的教师资格证（在2025年7月31日前已经通过相应教师资格证笔试和面试考试未进行认定的，须在办理聘用备案手续前取得相应的教师资格证）","报名邮箱：4057411@qq.com\n报名电话：0434-6297509","0434-6297517"]
[283,"公主岭市","公主岭市教育局","公主岭市第六中学校","初中道德与法治教师","初级专业技术岗位","财政拨款",1,"不限","本科学历或硕士研究生及以上学历","与报名学历相对应的学位","研究生专业为：学科教学（思政）(专业学位)（045102）、政治学（一级学科）（0302）、马克思主义理论（一级学科）（0305）、课程与教学论（思政方向）（040102）、马克思主义哲学（010101）\n本科专业为：政治学类（一级学科）（0302）、马克思主义理论类（一级学科）（0305）、哲学（010101）","须在2025年7月31日前取得相应的教师资格证（在2025年7月31日前已经通过相应教师资格证笔试和面试考试未进行认定的，须在办理聘用备案手续前取得相应的教师资格证）","报名邮箱：4057411@qq.com\n报名电话：0434-6297509","0434-6297517"]
[284,"公主岭市","公主岭市教育局","公主岭市范家屯镇第一中学校","高中政治教师","初级专业技术岗位","财政拨款",2,"不限","本科学历或硕士研究生及以上学历","与报名学历相对应的学位","研究生专业为：学科教学（思政）(专业学位)（045102）、政治学（一级学科）（0302）、马克思主义理论（一级学科）（0305）、课程与教学论（思政方向）（040102）、马克思主义哲学（010101）\n本科专业为：政治学类（一级学科）（0302）、马克思主义理论类（一级学科）（0305）、哲学（010101）","须在2025年7月31日前取得相应的教师资格证（在2025年7月31日前已经通过相应教师资格证笔试和面试考试未进行认定的，须在办理聘用备案手续前取得相应的教师资格证）","报名邮箱：4057411@qq.com\n报名电话：0434-6297509","0434-6297517"]
[285,"公主岭市","公主岭市教育局","公主岭市第四中学校","初中数学教师","初级专业技术岗位","财政拨款",1,"不限","本科学历或硕士研究生及以上学历","与报名学历相对应的学位","研究生专业为：数学（一级学科）(0701)、学科教学（数学）(专业学位)(045104)、课程与教学论（数学方向）(040102）\n本科专业为：数学类（一级学科）（0701)、统计学(071201)","须在2025年7月31日前取得相应的教师资格证（在2025年7月31日前已经通过相应教师资格证笔试和面试考试未进行认定的，须在办理聘用备案手续前取得相应的教师资格证）","报名邮箱：4057411@qq.com\n报名电话：0434-6297509","0434-6297517"]
[286,"公主岭市","公主岭市教育局","公主岭市第四中学校","初中道德与法治教师","初级专业技术岗位","财政拨款",2,"不限","本科学历或硕士研究生及以上学历","与报名学历相对应的学位","研究生专业为：学科教学（思政）(专业学位)（045102）、政治学（一级学科）（0302）、马克思主义理论（一级学科）（0305）、课程与教学论（思政方向）（040102）、马克思主义哲学（010101）\n本科专业为：政治学类（一级学科）（0302）、马克思主义理论类（一级学科）（0305）、哲学（010101）","须在2025年7月31日前取得相应的教师资格证（在2025年7月31日前已经通过相应教师资格证笔试和面试考试未进行认定的，须在办理聘用备案手续前取得相应的教师资格证）","报名邮箱：4057411@qq.com\n报名电话：0434-6297509","0434-6297517"]
[287,"公主岭市","公主岭市教育局","公主岭市第四中学校","初中历史教师","初级专业技术岗位","财政拨款",2,"不限","本科学历或硕士研究生及以上学历","与报名学历相对应的学位","研究生专业为：历史学（门类）(06)、学科教学（历史）(专业学位)(045109)、课程与教学论（历史方向）(040102)\n本科专业为：历史学类（一级学科）(0601)","须在2025年7月31日前取得相应的教师资格证（在2025年7月31日前已经通过相应教师资格证笔试和面试考试未进行认定的，须在办理聘用备案手续前取得相应的教师资格证）","报名邮箱：4057411@qq.com\n报名电话：0434-6297509","0434-6297517"]
[288,"公主岭市","公主岭市教育局","公主岭市第四中学校","初中地理教师","初级专业技术岗位","财政拨款",2,"不限","本科学历或硕士研究生及以上学历","与报名学历相对应的学位","研究生专业为：地理学（一级学科）（0705）、学科教学（地理）(专业学位)（045110）、课程与教学论（地理方向）（040102)\n本科专业为：地理科学类（一级学科）(0705)","须在2025年7月31日前取得相应的教师资格证（在2025年7月31日前已经通过相应教师资格证笔试和面试考试未进行认定的，须在办理聘用备案手续前取得相应的教师资格证）","报名邮箱：4057411@qq.com\n报名电话：0434-6297509","0434-6297517"]
[289,"公主岭市","公主岭市教育局","公主岭市第四中学校","初中物理教师","初级专业技术岗位","财政拨款",2,"不限","本科学历或硕士研究生及以上学历","与报名学历相对应的学位","研究生专业为：物理学（一级学科）(0702)、学科教学（物理）(专业学位)(045105)、课程与教学论（物理方向）(040102)\n本科专业为：物理学类（一级学科）(0702)","须在2025年7月31日前取得相应的教师资格证（在2025年7月31日前已经通过相应教师资格证笔试和面试考试未进行认定的，须在办理聘用备案手续前取得相应的教师资格证）","报名邮箱：4057411@qq.com\n报名电话：0434-6297509","0434-6297517"]
[290,"公主岭市","公主岭市教育局","公主岭市第四中学校","初中生物教师","初级专业技术岗位","财政拨款",2,"不限","本科学历或硕士研究生及以上学历","与报名学历相对应的学位","研究生专业为：生物学（一级学科）(0710)、学科教学（生物）(专业学位)(045107)、课程与教学论（生物方向）(040102)\n本科专业为：生物科学类（一级学科）(0710)","须在2025年7月31日前取得相应的教师资格证（在2025年7月31日前已经通过相应教师资格证笔试和面试考试未进行认定的，须在办理聘用备案手续前取得相应的教师资格证）","报名邮箱：4057411@qq.com\n报名电话：0434-6297509","0434-6297517"]
[291,"公主岭市","公主岭市教育局","公主岭市第四中学实验学校","初中数学教师","初级专业技术岗位","财政拨款",2,"不限","本科学历或硕士研究生及以上学历","与报名学历相对应的学位","研究生专业为：数学（一级学科）(0701)、学科教学（数学）(专业学位)(045104)、课程与教学论（数学方向）(040102）\n本科专业为：数学类（一级学科）（0701)、统计学(071201)","须在2025年7月31日前取得相应的教师资格证（在2025年7月31日前已经通过相应教师资格证笔试和面试考试未进行认定的，须在办理聘用备案手续前取得相应的教师资格证）","报名邮箱：4057411@qq.com\n报名电话：0434-6297509","0434-6297517"]
[{"$f":"ROW()-2","v":292},"公主岭市","公主岭市教育局","公主岭市第四中学实验学校","初中语文教师","初级专业技术岗位","财政拨款",2,"不限","本科学历或硕士研究生及以上学历","与报名学历相对应的学位","研究生专业为：中国语言文学（一级学科）（0501）、学科教学（语文）(专业学位)（045103）、课程与教学论（语文方向）（040102）\n本科专业为：中国语言文学类（一级学科）（0501）","须在2025年7月31日前取得相应的教师资格证（在2025年7月31日前已经通过相应教师资格证笔试和面试考试未进行认定的，须在办理聘用备案手续前取得相应的教师资格证）","报名邮箱：4057411@qq.com\n报名电话：0434-6297509","0434-6297517"]
[293,"公主岭市","公主岭市教育局","公主岭市第四中学实验学校","初中英语教师","初级专业技术岗位","财政拨款",3,"不限","本科学历或硕士研究生及以上学历","与报名学历相对应的学位","研究生专业为：英语语言文学(050201)、学科教学（英语）(专业学位)(045108)、英语笔译（专业学位）(055101)、 英语口译（专业学位）(055102)、课程与教学论（英语方向）(040102)\n本科专业为：英语(050201)","须在2025年7月31日前取得相应的教师资格证（在2025年7月31日前已经通过相应教师资格证笔试和面试考试未进行认定的，须在办理聘用备案手续前取得相应的教师资格证）","报名邮箱：4057411@qq.com\n报名电话：0434-6297509","0434-6297517"]
[294,"公主岭市","公主岭市教育局","公主岭市第四中学实验学校","初中物理教师","初级专业技术岗位","财政拨款",1,"不限","本科学历或硕士研究生及以上学历","与报名学历相对应的学位","研究生专业为：物理学（一级学科）(0702)、学科教学（物理）(专业学位)(045105)、课程与教学论（物理方向）(040102)\n本科专业为：物理学类（一级学科）(0702)","须在2025年7月31日前取得相应的教师资格证（在2025年7月31日前已经通过相应教师资格证笔试和面试考试未进行认定的，须在办理聘用备案手续前取得相应的教师资格证）","报名邮箱：4057411@qq.com\n报名电话：0434-6297509","0434-6297517"]
[295,"公主岭市","公主岭市教育局","公主岭市第四中学实验学校","初中历史教师","初级专业技术岗位","财政拨款",2,"不限","本科学历或硕士研究生及以上学历","与报名学历相对应的学位","研究生专业为：历史学（门类）(06)、学科教学（历史）(专业学位)(045109)、课程与教学论（历史方向）(040102)\n本科专业为：历史学类（一级学科）(0601)","须在2025年7月31日前取得相应的教师资格证（在2025年7月31日前已经通过相应教师资格证笔试和面试考试未进行认定的，须在办理聘用备案手续前取得相应的教师资格证）","报名邮箱：4057411@qq.com\n报名电话：0434-6297509","0434-6297517"]
[296,"公主岭市","公主岭市教育局","公主岭市第四中学实验学校","初中体育与健康教师","初级专业技术岗位","财政拨款",2,"不限","本科学历或硕士研究生及以上学历","与报名学历相对应的学位","研究生专业为：学科教学（体育）(专业学位)(045112)、体育学(一级学科）(0403)、课程与教学论（体育方向）(040102)\n本科专业为：体育学类（一级学科）(0402)","须在2025年7月31日前取得相应的教师资格证（在2025年7月31日前已经通过相应教师资格证笔试和面试考试未进行认定的，须在办理聘用备案手续前取得相应的教师资格证）","报名邮箱：4057411@qq.com\n报名电话：0434-6297509","0434-6297517"]
[297,"公主岭市","公主岭市教育局","公主岭市第七中学校","初中生物教师","初级专业技术岗位","财政拨款",1,"不限","本科学历或硕士研究生及以上学历","与报名学历相对应的学位","研究生专业为：生物学（一级学科）(0710)、学科教学（生物）(专业学位)(045107)、课程与教学论（生物方向）(040102)\n本科专业为：生物科学类（一级学科）(0710)","须在2025年7月31日前取得相应的教师资格证（在2025年7月31日前已经通过相应教师资格证笔试和面试考试未进行认定的，须在办理聘用备案手续前取得相应的教师资格证）","报名邮箱：4057411@qq.com\n报名电话：0434-6297509","0434-6297517"]
[298,"公主岭市","公主岭市教育局","公主岭市第七中学校","初中体育与健康教师","初级专业技术岗位","财政拨款",1,"不限","本科学历或硕士研究生及以上学历","与报名学历相对应的学位","研究生专业为：学科教学（体育）(专业学位)(045112)、体育学(一级学科）(0403)、课程与教学论（体育方向）(040102)\n本科专业为：体育学类（一级学科）(0402)","须在2025年7月31日前取得相应的教师资格证（在2025年7月31日前已经通过相应教师资格证笔试和面试考试未进行认定的，须在办理聘用备案手续前取得相应的教师资格证）","报名邮箱：4057411@qq.com\n报名电话：0434-6297509","0434-6297517"]
[299,"公主岭市","公主岭市教育局","公主岭市第八中学校","初中生物教师","初级专业技术岗位","财政拨款",1,"不限","本科学历或硕士研究生及以上学历","与报名学历相对应的学位","研究生专业为：生物学（一级学科）(0710)、学科教学（生物）(专业学位)(045107)、课程与教学论（生物方向）(040102)\n本科专业为：生物科学类（一级学科）(0710)","须在2025年7月31日前取得相应的教师资格证（在2025年7月31日前已经通过相应教师资格证笔试和面试考试未进行认定的，须在办理聘用备案手续前取得相应的教师资格证）","报名邮箱：4057411@qq.com\n报名电话：0434-6297509","0434-6297517"]
[300,"公主岭市","公主岭市教育局","公主岭市站前小学校","小学语文教师","初级专业技术岗位","财政拨款",1,"不限","本科学历或硕士研究生及以上学历","与报名学历相对应的学位","研究生专业为：中国语言文学（一级学科）（0501）、学科教学（语文）(专业学位)（045103）、课程与教学论（语文方向）（040102）\n本科专业为：中国语言文学类（一级学科）（0501）、小学教育（040107）","须在2025年7月31日前取得相应的教师资格证（在2025年7月31日前已经通过相应教师资格证笔试和面试考试未进行认定的，须在办理聘用备案手续前取得相应的教师资格证）","报名邮箱：4057411@qq.com\n报名电话：0434-6297509","0434-6297517"]
[301,"公主岭市","公主岭市教育局","公主岭市胜利小学校","小学体育教师","初级专业技术岗位","财政拨款",3,"不限","本科学历或硕士研究生及以上学历","与报名学历相对应的学位","研究生专业为：学科教学（体育）(专业学位)(045112)、体育学(一级学科）(0403)、课程与教学论（体育方向）(040102)\n本科专业为：体育学类（一级学科）(0402)","须在2025年7月31日前取得相应的教师资格证（在2025年7月31日前已经通过相应教师资格证笔试和面试考试未进行认定的，须在办理聘用备案手续前取得相应的教师资格证）","报名邮箱：4057411@qq.com\n报名电话：0434-6297509","0434-6297517"]
[{"$f":"ROW()-2","v":302},"公主岭市","公主岭市教育局","公主岭市胜利小学校","小学英语教师","初级专业技术岗位","财政拨款",1,"不限","本科学历或硕士研究生及以上学历","与报名学历相对应的学位","研究生专业为：英语语言文学(050201)、学科教学（英语）(专业学位)(045108)、英语笔译（专业学位）(055101)、 英语口译（专业学位）(055102)、课程与教学论（英语方向）(040102)\n本科专业为：英语(050201)、小学教育（英语）（040107）","须在2025年7月31日前取得相应的教师资格证（在2025年7月31日前已经通过相应教师资格证笔试和面试考试未进行认定的，须在办理聘用备案手续前取得相应的教师资格证）","报名邮箱：4057411@qq.com\n报名电话：0434-6297509","0434-6297517"]
[303,"公主岭市","公主岭市教育局","公主岭市胜利小学校","小学道德与法治教师","初级专业技术岗位","财政拨款",2,"不限","本科学历或硕士研究生及以上学历","与报名学历相对应的学位","研究生专业为：学科教学（思政）(专业学位)（045102）、政治学（一级学科）（0302）、马克思主义理论（一级学科）（0305）、课程与教学论（思政方向）（040102）、马克思主义哲学（010101）\n本科专业为：政治学类（一级学科）（0302）、马克思主义理论类（一级学科）（0305）、哲学（010101）","须在2025年7月31日前取得相应的教师资格证（在2025年7月31日前已经通过相应教师资格证笔试和面试考试未进行认定的，须在办理聘用备案手续前取得相应的教师资格证）","报名邮箱：4057411@qq.com\n报名电话：0434-6297509","0434-6297517"]
[304,"公主岭市","公主岭市教育局","公主岭市第二实验小学校","小学体育教师","初级专业技术岗位","财政拨款",1,"不限","本科学历或硕士研究生及以上学历","与报名学历相对应的学位","研究生专业为：学科教学（体育）(专业学位)(045112)、体育学(一级学科）(0403)、课程与教学论（体育方向）(040102)\n本科专业为：体育学类（一级学科）(0402)","须在2025年7月31日前取得相应的教师资格证（在2025年7月31日前已经通过相应教师资格证笔试和面试考试未进行认定的，须在办理聘用备案手续前取得相应的教师资格证）","报名邮箱：4057411@qq.com\n报名电话：0434-6297509","0434-6297517"]
[305,"公主岭市","公主岭市教育局","公主岭市第二实验小学校","小学语文教师","初级专业技术岗位","财政拨款",1,"不限","本科学历或硕士研究生及以上学历","与报名学历相对应的学位","研究生专业为：中国语言文学（一级学科）（0501）、学科教学（语文）(专业学位)（045103）、课程与教学论（语文方向）（040102）\n本科专业为：中国语言文学类（一级学科）（0501）、小学教育（040107）","须在2025年7月31日前取得相应的教师资格证（在2025年7月31日前已经通过相应教师资格证笔试和面试考试未进行认定的，须在办理聘用备案手续前取得相应的教师资格证）","报名邮箱：4057411@qq.com\n报名电话：0434-6297509","0434-6297517"]
[306,"公主岭市","公主岭市教育局","公主岭市岭西小学校","小学美术教师","初级专业技术岗位","财政拨款",1,"不限","本科学历或硕士研究生及以上学历","与报名学历相对应的学位","研究生专业为：艺术学（一级学科）（美术与书法方向）（1301）、美术与书法（一级学科专业学位）（1356）、学科教学(美术)(专业学位)（045113）、课程与教学论（美术方向）（040102）\n本科专业为：美术学类（一级学科）（1304)、设计学类（一级学科）(1305)、艺术教育(040105)","须在2025年7月31日前取得相应的教师资格证（在2025年7月31日前已经通过相应教师资格证笔试和面试考试未进行认定的，须在办理聘用备案手续前取得相应的教师资格证）","报名邮箱：4057411@qq.com\n报名电话：0434-6297509","0434-6297517"]
[307,"公主岭市","公主岭市教育局","公主岭市实验小学校","小学体育教师","初级专业技术岗位","财政拨款",1,"不限","本科学历或硕士研究生及以上学历","与报名学历相对应的学位","研究生专业为：学科教学（体育）(专业学位)(045112)、体育学(一级学科）(0403)、课程与教学论（体育方向）(040102)\n本科专业为：体育学类（一级学科）(0402)","须在2025年7月31日前取得相应的教师资格证（在2025年7月31日前已经通过相应教师资格证笔试和面试考试未进行认定的，须在办理聘用备案手续前取得相应的教师资格证）","报名邮箱：4057411@qq.com\n报名电话：0434-6297509","0434-6297517"]
[308,"公主岭市","公主岭市教育局","公主岭市实验小学校","小学音乐教师","初级专业技术岗位","财政拨款",1,"不限","本科学历或硕士研究生及以上学历","与报名学历相对应的学位","研究生专业为：艺术学（一级学科）（音乐方向、舞蹈方向）（1301）、音乐（一级学科专业学位）（1352）、舞蹈（一级学科专业学位）（1353）、学科教学（音乐）(专业学位)(045111)、课程与教学论（音乐方向）(040102)\n本科专业为：音乐与舞蹈学类（一级学科）(1302)","须在2025年7月31日前取得相应的教师资格证（在2025年7月31日前已经通过相应教师资格证笔试和面试考试未进行认定的，须在办理聘用备案手续前取得相应的教师资格证）","报名邮箱：4057411@qq.com\n报名电话：0434-6297509","0434-6297517"]
[309,"榆树市","榆树市教育局","榆树市实验高级中学校","高中语文教师","初级专业技术岗位","财政拨款",1,"不限","本科学历或硕士研究生及以上学历","与报名学历相对应的学位","研究生专业为：中国语言文学(一级学科)（0501）、学科教学(语文)(专业学位)（045103）、课程与教学论（语文方向）（040102）\n本科专业为：中国语言文学类(一级学科)（0501）","须在2025年7月31日前取得相应的教师资格证（在2025年7月31日前已经通过相应教师资格证笔试和面试考试未进行认定的，须在办理聘用备案手续前取得相应的教师资格证）","报名邮箱：234141142@qq.com\n报名电话：15044390088","0431-83618086"]
[310,{"$f":"B311","v":"榆树市"},"榆树市教育局","榆树市实验高级中学校","高中物理教师","初级专业技术岗位","财政拨款",1,"不限","本科学历或硕士研究生及以上学历","与报名学历相对应的学位","研究生专业为：物理学（一级学科）(0702)、学科教学（物理）(专业学位)(045105)、课程与教学论（物理方向）(040102)\n本科专业为：物理学类（一级学科）(0702)","须在2025年7月31日前取得相应的教师资格证（在2025年7月31日前已经通过相应教师资格证笔试和面试考试未进行认定的，须在办理聘用备案手续前取得相应的教师资格证）","报名邮箱：234141142@qq.com\n报名电话：15044390088","0431-83618086"]
[311,"榆树市","榆树市教育局","榆树市实验高级中学校","高中政治教师","初级专业技术岗位","财政拨款",1,"不限","本科学历或硕士研究生及以上学历","与报名学历相对应的学位","研究生专业为：哲学（一级学科）（0101）、政治学(一级学科)（0302）、马克思主义理论(一级学科)（0305）、学科教学(思政)(专业学位)（045102）、课程与教学论（思政方向）（040102）\n本科专业为：哲学类（一级学科）（0101）、政治学类(一级学科)（0302）、马克思主义理论类(一级学科)（0305）","须在2025年7月31日前取得相应的教师资格证（在2025年7月31日前已经通过相应教师资格证笔试和面试考试未进行认定的，须在办理聘用备案手续前取得相应的教师资格证）","报名邮箱：234141142@qq.com\n报名电话：15044390088","0431-83618086"]
[{"$f":"ROW()-2","v":312},"榆树市","榆树市教育局","榆树市第一高级中学校","高中政治教师","初级专业技术岗位","财政拨款",1,"不限","本科学历或硕士研究生及以上学历","与报名学历相对应的学位","研究生专业为：哲学（一级学科）（0101）、政治学(一级学科)（0302）、马克思主义理论(一级学科)（0305）、学科教学(思政)(专业学位)（045102）、课程与教学论（思政方向）（040102）\n本科专业为：哲学类（一级学科）（0101）、政治学类(一级学科)（0302）、马克思主义理论类(一级学科)（0305）","须在2025年7月31日前取得相应的教师资格证（在2025年7月31日前已经通过相应教师资格证笔试和面试考试未进行认定的，须在办理聘用备案手续前取得相应的教师资格证）","报名邮箱：234141142@qq.com\n报名电话：15044390088","0431-83618086"]
[313,"榆树市","榆树市教育局","榆树市第一高级中学校","高中物理教师","初级专业技术岗位","财政拨款",1,"不限","本科学历或硕士研究生及以上学历","与报名学历相对应的学位","研究生专业为：物理学（一级学科）(0702)、学科教学（物理）(专业学位)(045105)、课程与教学论（物理方向）(040102)\n本科专业为：物理学类（一级学科）(0702)","须在2025年7月31日前取得相应的教师资格证（在2025年7月31日前已经通过相应教师资格证笔试和面试考试未进行认定的，须在办理聘用备案手续前取得相应的教师资格证）","报名邮箱：234141142@qq.com\n报名电话：15044390088","0431-83618086"]
[314,"榆树市","榆树市教育局","榆树市第一高级中学校","高中地理教师","初级专业技术岗位","财政拨款",1,"不限","本科学历或硕士研究生及以上学历","与报名学历相对应的学位","研究生专业为：地理学(一级学科)（0705）、学科教学(地理)(专业学位)（045110）、课程与教学论（地理方向）（040102)\n本科专业为：地理科学类(一级学科)（0705）","须在2025年7月31日前取得相应的教师资格证（在2025年7月31日前已经通过相应教师资格证笔试和面试考试未进行认定的，须在办理聘用备案手续前取得相应的教师资格证）","报名邮箱：234141142@qq.com\n报名电话：15044390088","0431-83618086"]
[315,"榆树市","榆树市教育局","长春市榆树高级中学","高中政治教师","初级专业技术岗位","财政拨款",1,"不限","本科学历或硕士研究生及以上学历","与报名学历相对应的学位","研究生专业为：哲学（一级学科）（0101）、政治学(一级学科)（0302）、马克思主义理论(一级学科)（0305）、学科教学(思政)(专业学位)（045102）、课程与教学论（思政方向）（040102）\n本科专业为：哲学类（一级学科）（0101）、政治学类(一级学科)（0302）、马克思主义理论类(一级学科)（0305）","须在2025年7月31日前取得相应的教师资格证（在2025年7月31日前已经通过相应教师资格证笔试和面试考试未进行认定的，须在办理聘用备案手续前取得相应的教师资格证）","报名邮箱：234141142@qq.com\n报名电话：15044390088","0431-83618086"]
[316,"榆树市","榆树市教育局","长春市榆树高级中学","高中物理教师","初级专业技术岗位","财政拨款",1,"不限","本科学历或硕士研究生及以上学历","与报名学历相对应的学位","研究生专业为：物理学（一级学科）(0702)、学科教学（物理）(专业学位)(045105)、课程与教学论（物理方向）(040102)\n本科专业为：物理学类（一级学科）(0702)","须在2025年7月31日前取得相应的教师资格证（在2025年7月31日前已经通过相应教师资格证笔试和面试考试未进行认定的，须在办理聘用备案手续前取得相应的教师资格证）","报名邮箱：234141142@qq.com\n报名电话：15044390088","0431-83618086"]
[317,"榆树市","榆树市教育局","榆树市弓棚高级中学","高中物理教师","初级专业技术岗位","财政拨款",1,"不限","本科学历或硕士研究生及以上学历","与报名学历相对应的学位","研究生专业为：物理学（一级学科）(0702)、学科教学（物理）(专业学位)(045105)、课程与教学论（物理方向）(040102)\n本科专业为：物理学类（一级学科）(0702)","须在2025年7月31日前取得相应的教师资格证（在2025年7月31日前已经通过相应教师资格证笔试和面试考试未进行认定的，须在办理聘用备案手续前取得相应的教师资格证）","报名邮箱：234141142@qq.com\n报名电话：15044390088","0431-83618086"]
[318,"榆树市","榆树市教育局","榆树市弓棚高级中学","高中数学教师","初级专业技术岗位","财政拨款",1,"不限","本科学历或硕士研究生及以上学历","与报名学历相对应的学位","研究生专业为：数学(一级学科)（0701）、学科教学(数学)(专业学位)（045104）、课程与教学论（数学方向）（040102）\n本科专业为：数学类(一级学科)（0701）","须在2025年7月31日前取得相应的教师资格证（在2025年7月31日前已经通过相应教师资格证笔试和面试考试未进行认定的，须在办理聘用备案手续前取得相应的教师资格证）","报名邮箱：234141142@qq.com\n报名电话：15044390088","0431-83618086"]
[319,"德惠市","德惠市教育局","德惠市实验中学","高中英语教师","初级专业技术岗位","财政拨款",1,"不限","本科学历或硕士研究生及以上学历","与报名学历相对应的学位","研究生专业为：英语语言文学（050201）、学科教学（英语）(专业学位)（045108）、英语笔译（专业学位）（055101）、英语口译（专业学位）（055102）\n本科专业为：英语（050201）","须在2025年7月31日前取得相应的教师资格证（在2025年7月31日前已经通过相应教师资格证笔试和面试考试未进行认定的，须在办理聘用备案手续前取得相应的教师资格证）","报名邮箱：446083263@qq.com\n报名电话：0431-87385009、19969572005","0431-87388899"]
[320,{"$f":"B321","v":"德惠市"},"德惠市教育局","德惠市实验中学","高中体育教师","初级专业技术岗位","财政拨款",1,"不限","本科学历或硕士研究生及以上学历","与报名学历相对应的学位","研究生专业为：体育学(一级学科)（0403）、学科教学(体育)(专业学位)（045112）、体育教学(专业学位)（045201）\n本科专业为：体育学类(一级学科)（0402）","须在2025年7月31日前取得相应的教师资格证（在2025年7月31日前已经通过相应教师资格证笔试和面试考试未进行认定的，须在办理聘用备案手续前取得相应的教师资格证）","报名邮箱：446083263@qq.com\n报名电话：0431-87385009、19969572005","0431-87388899"]
[321,"德惠市","德惠市教育局","德惠市实验中学","高中政治教师","初级专业技术岗位","财政拨款",1,"不限","本科学历或硕士研究生及以上学历","与报名学历相对应的学位","研究生专业为：学科教学(思政)(专业学位)（045102）、政治学(一级学科)（0302）、马克思主义理论(一级学科)（0305）\n本科专业为：政治学类(一级学科)（0302）、马克思主义理论类(一级学科)（0305）","须在2025年7月31日前取得相应的教师资格证（在2025年7月31日前已经通过相应教师资格证笔试和面试考试未进行认定的，须在办理聘用备案手续前取得相应的教师资格证）","报名邮箱：446083263@qq.com\n报名电话：0431-87385009、19969572005","0431-87388899"]
[{"$f":"ROW()-2","v":322},"德惠市","德惠市教育局","德惠市第一中学","高中历史教师","初级专业技术岗位","财政拨款",2,"不限","本科学历或硕士研究生及以上学历","与报名学历相对应的学位","研究生专业为：中国史（一级学科）（0602）、世界史（一级学科）（0603）、学科教学(历史)(专业学位)（045109）\n本科专业为：历史学类（一级学科）（0601）","须在2025年7月31日前取得相应的教师资格证（在2025年7月31日前已经通过相应教师资格证笔试和面试考试未进行认定的，须在办理聘用备案手续前取得相应的教师资格证）","报名邮箱：446083263@qq.com\n报名电话：0431-87385009、19969572005","0431-87388899"]
[323,"德惠市","德惠市教育局","德惠市第一中学","高中生物教师","初级专业技术岗位","财政拨款",1,"不限","本科学历或硕士研究生及以上学历","与报名学历相对应的学位","研究生专业为：生物学(一级学科)（0710）、生态学(一级学科)（0713）、学科教学(生物)(专业学位)（045107）\n本科专业为：生物科学类(一级学科)（0710）","须在2025年7月31日前取得相应的教师资格证（在2025年7月31日前已经通过相应教师资格证笔试和面试考试未进行认定的，须在办理聘用备案手续前取得相应的教师资格证）","报名邮箱：446083263@qq.com\n报名电话：0431-87385009、19969572005","0431-87388899"]
[324,"德惠市","德惠市教育局","德惠市第四中学","高中语文教师","初级专业技术岗位","财政拨款",1,"不限","本科学历或硕士研究生及以上学历","与报名学历相对应的学位","研究生专业为：中国语言文学(一级学科)（0501）、学科教学(语文)(专业学位)（045103）\n本科专业为：中国语言文学类(一级学科)（0501）","须在2025年7月31日前取得相应的教师资格证（在2025年7月31日前已经通过相应教师资格证笔试和面试考试未进行认定的，须在办理聘用备案手续前取得相应的教师资格证）","报名邮箱：446083263@qq.com\n报名电话：0431-87385009、19969572005","0431-87388899"]
[325,"德惠市","德惠市教育局","德惠市第四中学","高中生物教师","初级专业技术岗位","财政拨款",1,"不限","本科学历或硕士研究生及以上学历","与报名学历相对应的学位","研究生专业为：生物学(一级学科)（0710）、生态学(一级学科)（0713）、学科教学(生物)(专业学位)（045107）\n本科专业为：生物科学类(一级学科)（0710）","须在2025年7月31日前取得相应的教师资格证（在2025年7月31日前已经通过相应教师资格证笔试和面试考试未进行认定的，须在办理聘用备案手续前取得相应的教师资格证）","报名邮箱：446083263@qq.com\n报名电话：0431-87385009、19969572005","0431-87388899"]
[326,"德惠市","德惠市教育局","德惠市第三中学","初中数学教师","初级专业技术岗位","财政拨款",2,"不限","本科学历或硕士研究生及以上学历","与报名学历相对应的学位","研究生专业为：学科教学(数学)(专业学位)（045104）、数学(一级学科)（0701）\n本科专业为：数学类(一级学科)（0701）","须在2025年7月31日前取得相应的教师资格证（在2025年7月31日前已经通过相应教师资格证笔试和面试考试未进行认定的，须在办理聘用备案手续前取得相应的教师资格证）","报名邮箱：446083263@qq.com\n报名电话：0431-87385009、19969572005","0431-87388899"]
[327,"德惠市","德惠市教育局","德惠市第三中学","初中历史教师","初级专业技术岗位","财政拨款",1,"不限","本科学历或硕士研究生及以上学历","与报名学历相对应的学位","研究生专业为：中国史（一级学科）（0602）、世界史（一级学科）（0603）、学科教学(历史)(专业学位)（045109）\n本科专业为：历史学类（一级学科）（0601）","须在2025年7月31日前取得相应的教师资格证（在2025年7月31日前已经通过相应教师资格证笔试和面试考试未进行认定的，须在办理聘用备案手续前取得相应的教师资格证）","报名邮箱：446083263@qq.com\n报名电话：0431-87385009、19969572005","0431-87388899"]
[328,"德惠市","德惠市教育局","德惠市第三中学","初中地理教师","初级专业技术岗位","财政拨款",1,"不限","本科学历或硕士研究生及以上学历","与报名学历相对应的学位","研究生专业为：地理学(一级学科)（0705）、学科教学(地理)(专业学位)（045110）\n本科专业为：地理科学类(一级学科)（0705）","须在2025年7月31日前取得相应的教师资格证（在2025年7月31日前已经通过相应教师资格证笔试和面试考试未进行认定的，须在办理聘用备案手续前取得相应的教师资格证）","报名邮箱：446083263@qq.com\n报名电话：0431-87385009、19969572005","0431-87388899"]
[329,"德惠市","德惠市教育局","德惠市第五中学","初中语文教师","初级专业技术岗位","财政拨款",1,"不限","本科学历或硕士研究生及以上学历","与报名学历相对应的学位","研究生专业为：中国语言文学(一级学科)（0501）、学科教学(语文)(专业学位)（045103）\n本科专业为：中国语言文学类(一级学科)（0501）","须在2025年7月31日前取得相应的教师资格证（在2025年7月31日前已经通过相应教师资格证笔试和面试考试未进行认定的，须在办理聘用备案手续前取得相应的教师资格证）","报名邮箱：446083263@qq.com\n报名电话：0431-87385009、19969572005","0431-87388899"]
[330,"德惠市","德惠市教育局","德惠市第五中学","初中地理教师","初级专业技术岗位","财政拨款",1,"不限","本科学历或硕士研究生及以上学历","与报名学历相对应的学位","研究生专业为：地理学(一级学科)（0705）、学科教学(地理)(专业学位)（045110）\n本科专业为：地理科学类(一级学科)（0705）","须在2025年7月31日前取得相应的教师资格证（在2025年7月31日前已经通过相应教师资格证笔试和面试考试未进行认定的，须在办理聘用备案手续前取得相应的教师资格证）","报名邮箱：446083263@qq.com\n报名电话：0431-87385009、19969572005","0431-87388899"]
[331,"德惠市","德惠市教育局","德惠市第二十九中学","初中数学教师","初级专业技术岗位","财政拨款",2,"不限","本科学历或硕士研究生及以上学历","与报名学历相对应的学位","研究生专业为：学科教学(数学)(专业学位)（045104）、数学(一级学科)（0701）\n本科专业为：数学类(一级学科)（0701）","须在2025年7月31日前取得相应的教师资格证（在2025年7月31日前已经通过相应教师资格证笔试和面试考试未进行认定的，须在办理聘用备案手续前取得相应的教师资格证）","报名邮箱：446083263@qq.com\n报名电话：0431-87385009、19969572005","0431-87388899"]
[{"$f":"ROW()-2","v":332},"德惠市","德惠市教育局","德惠市第二十九中学","初中地理教师","初级专业技术岗位","财政拨款",1,"不限","本科学历或硕士研究生及以上学历","与报名学历相对应的学位","研究生专业为：地理学(一级学科)（0705）、学科教学(地理)(专业学位)（045110）\n本科专业为：地理科学类(一级学科)（0705）","须在2025年7月31日前取得相应的教师资格证（在2025年7月31日前已经通过相应教师资格证笔试和面试考试未进行认定的，须在办理聘用备案手续前取得相应的教师资格证）","报名邮箱：446083263@qq.com\n报名电话：0431-87385009、19969572005","0431-87388899"]
[333,"德惠市","德惠市教育局","德惠市实验小学","小学数学教师","初级专业技术岗位","财政拨款",1,"不限","本科学历或硕士研究生及以上学历","与报名学历相对应的学位","研究生专业为：数学(一级学科)（0701）、小学教育(专业学位)（045115）、学科教学(数学)(专业学位)（045104）\n本科专业为：数学类(一级学科)（0701）、小学教育（040107）","须在2025年7月31日前取得相应的教师资格证（在2025年7月31日前已经通过相应教师资格证笔试和面试考试未进行认定的，须在办理聘用备案手续前取得相应的教师资格证）","报名邮箱：446083263@qq.com\n报名电话：0431-87385009、19969572005","0431-87388899"]
[334,"德惠市","德惠市教育局","德惠市第二实验小学","小学音乐教师","初级专业技术岗位","财政拨款",1,"不限","本科学历或硕士研究生及以上学历","与报名学历相对应的学位","研究生专业为：艺术学（一级学科）（音乐方向、舞蹈方向）（1301）、学科教学(音乐)(专业学位)（045111）、音乐（一级学科专业学位）（1352）、舞蹈（一级学科专业学位）（1353）\n本科专业为：音乐与舞蹈学类(一级学科)（1302）","须在2025年7月31日前取得相应的教师资格证（在2025年7月31日前已经通过相应教师资格证笔试和面试考试未进行认定的，须在办理聘用备案手续前取得相应的教师资格证）","报名邮箱：446083263@qq.com\n报名电话：0431-87385009、19969572005","0431-87388899"]
[335,"德惠市","德惠市教育局","德惠市第一小学","小学音乐教师","初级专业技术岗位","财政拨款",1,"不限","本科学历或硕士研究生及以上学历","与报名学历相对应的学位","研究生专业为：艺术学（一级学科）（音乐方向、舞蹈方向）（1301）、学科教学(音乐)(专业学位)（045111）、音乐（一级学科专业学位）（1352）、舞蹈（一级学科专业学位）（1353）\n本科专业为：音乐与舞蹈学类(一级学科)（1302）","须在2025年7月31日前取得相应的教师资格证（在2025年7月31日前已经通过相应教师资格证笔试和面试考试未进行认定的，须在办理聘用备案手续前取得相应的教师资格证）","报名邮箱：446083263@qq.com\n报名电话：0431-87385009、19969572005","0431-87388899"]
[336,"德惠市","德惠市教育局","德惠市第四小学","小学美术教师","初级专业技术岗位","财政拨款",1,"不限","本科学历或硕士研究生及以上学历","与报名学历相对应的学位","研究生专业为：艺术学（一级学科）（美术与书法方向）（1301）、美术与书法（一级学科专业学位）（1356）、学科教学(美术)(专业学位)（045113）\n本科专业为：美术学类(一级学科)（1304）","须在2025年7月31日前取得相应的教师资格证（在2025年7月31日前已经通过相应教师资格证笔试和面试考试未进行认定的，须在办理聘用备案手续前取得相应的教师资格证）","报名邮箱：446083263@qq.com\n报名电话：0431-87385009、19969572005","0431-87388899"]
[337,"德惠市","德惠市教育局","德惠市第六小学","小学美术教师","初级专业技术岗位","财政拨款",1,"不限","本科学历或硕士研究生及以上学历","与报名学历相对应的学位","研究生专业为：艺术学（一级学科）（美术与书法方向）（1301）、美术与书法（一级学科专业学位）（1356）、学科教学(美术)(专业学位)（045113）\n本科专业为：美术学类(一级学科)（1304）","须在2025年7月31日前取得相应的教师资格证（在2025年7月31日前已经通过相应教师资格证笔试和面试考试未进行认定的，须在办理聘用备案手续前取得相应的教师资格证）","报名邮箱：446083263@qq.com\n报名电话：0431-87385009、19969572005","0431-87388899"]
[338,"德惠市","德惠市教育局","德惠市幼儿园","幼儿教师","初级专业技术岗位","财政拨款",2,"不限","本科学历或硕士研究生及以上学历","与报名学历相对应的学位","研究生专业为：学前教育(专业学位)（045118）、学前教育学（040105）\n本科专业为：学前教育（040106）","须在2025年7月31日前取得相应的教师资格证（在2025年7月31日前已经通过相应教师资格证笔试和面试考试未进行认定的，须在办理聘用备案手续前取得相应的教师资格证）","报名邮箱：446083263@qq.com\n报名电话：0431-87385009、19969572005","0431-87388899"]
[339,"德惠市","德惠市教育局","德惠市第二幼儿园","幼儿教师","初级专业技术岗位","财政拨款",2,"不限","本科学历或硕士研究生及以上学历","与报名学历相对应的学位","研究生专业为：学前教育(专业学位)（045118）、学前教育学（040105）\n本科专业为：学前教育（040106）","须在2025年7月31日前取得相应的教师资格证（在2025年7月31日前已经通过相应教师资格证笔试和面试考试未进行认定的，须在办理聘用备案手续前取得相应的教师资格证）","报名邮箱：446083263@qq.com\n报名电话：0431-87385009、19969572005","0431-87388899"]
[340,"德惠市","德惠市教育局","德惠市第三幼儿园","幼儿教师","初级专业技术岗位","财政拨款",2,"不限","本科学历或硕士研究生及以上学历","与报名学历相对应的学位","研究生专业为：学前教育(专业学位)（045118）、学前教育学（040105）\n本科专业为：学前教育（040106）","须在2025年7月31日前取得相应的教师资格证（在2025年7月31日前已经通过相应教师资格证笔试和面试考试未进行认定的，须在办理聘用备案手续前取得相应的教师资格证）","报名邮箱：446083263@qq.com\n报名电话：0431-87385009、19969572005","0431-87388899"]
[341,"德惠市","德惠市教育局","德惠市第四幼儿园","幼儿教师","初级专业技术岗位","财政拨款",2,"不限","本科学历或硕士研究生及以上学历","与报名学历相对应的学位","研究生专业为：学前教育(专业学位)（045118）、学前教育学（040105）\n本科专业为：学前教育（040106）","须在2025年7月31日前取得相应的教师资格证（在2025年7月31日前已经通过相应教师资格证笔试和面试考试未进行认定的，须在办理聘用备案手续前取得相应的教师资格证）","报名邮箱：446083263@qq.com\n报名电话：0431-87385009、19969572005","0431-87388899"]
[{"$f":"ROW()-2","v":342},"莲花山","长春莲花山生态旅游度假区教育卫生健康局","长春市第85中学","初中语文教师","初级专业技术岗位","财政拨款",1,"不限","本科学历或硕士研究生及以上学历","与报名学历相对应的学位","研究生专业为：中国语言文学(一级学科)（0501）、学科教学(语文)(专业学位)（045103）\n本科专业为：中国语言文学类(一级学科)（0501）","须在2025年7月31日前取得相应的教师资格证（在2025年7月31日前已经通过相应教师资格证笔试和面试考试未进行认定的，须在办理聘用备案手续前取得相应的教师资格证）","报名邮箱：cclhsjyj@163.com\n报名电话：0431-82536047、0431-82536043","0431-81331234"]
[343,"莲花山","长春莲花山生态旅游度假区教育卫生健康局","长春市第85中学","初中数学教师","初级专业技术岗位","财政拨款",1,"不限","本科学历或硕士研究生及以上学历","与报名学历相对应的学位","研究生专业为：数学（一级学科）（0701）、学科教学（数学）（专业学位）（045104）\n本科专业为：数学类（一级学科）(0701)","须在2025年7月31日前取得相应的教师资格证（在2025年7月31日前已经通过相应教师资格证笔试和面试考试未进行认定的，须在办理聘用备案手续前取得相应的教师资格证）","报名邮箱：cclhsjyj@163.com\n报名电话：0431-82536047、0431-82536043","0431-81331234"]
[344,"莲花山","长春莲花山生态旅游度假区教育卫生健康局","长春市第85中学","初中英语教师","初级专业技术岗位","财政拨款",1,"不限","本科学历或硕士研究生及以上学历","与报名学历相对应的学位","研究生专业为：英语语言文学（050201）、外国语言学及应用语言学(英语方向)（050211）、英语笔译(专业学位)（055101）、英语口译(专业学位)（055102）、学科教学(英语)(专业学位)（045108）\n本科专业为：英语（050201）","须在2025年7月31日前取得相应的教师资格证（在2025年7月31日前已经通过相应教师资格证笔试和面试考试未进行认定的，须在办理聘用备案手续前取得相应的教师资格证）","报名邮箱：cclhsjyj@163.com\n报名电话：0431-82536047、0431-82536043","0431-81331234"]
[345,"莲花山","长春莲花山生态旅游度假区教育卫生健康局","长春市第85中学","初中历史教师","初级专业技术岗位","财政拨款",1,"不限","本科学历或硕士研究生及以上学历","与报名学历相对应的学位","研究生专业为：中国史（一级学科）（0602）、世界史（一级学科）（0603）、学科教学(历史)(专业学位)（045109）\n本科专业为：历史学类（一级学科）（0601）","须在2025年7月31日前取得相应的教师资格证（在2025年7月31日前已经通过相应教师资格证笔试和面试考试未进行认定的，须在办理聘用备案手续前取得相应的教师资格证）","报名邮箱：cclhsjyj@163.com\n报名电话：0431-82536047、0431-82536043","0431-81331234"]
[346,"莲花山","长春莲花山生态旅游度假区教育卫生健康局","长春市第一0五中学","初中音乐教师","初级专业技术岗位","财政拨款",1,"不限","本科学历或硕士研究生及以上学历","与报名学历相对应的学位","研究生专业为：艺术学(音乐方向)(一级学科)（1301）、音乐(专业学位一级学科)（1352）、学科教学(音乐)(专业学位)（045111）                                                   \n本科专业为：音乐表演（130201）、音乐学（130202）、作曲与作曲技术理论（130203）、音乐教育（130212T)","须在2025年7月31日前取得相应的教师资格证（在2025年7月31日前已经通过相应教师资格证笔试和面试考试未进行认定的，须在办理聘用备案手续前取得相应的教师资格证）","报名邮箱：cclhsjyj@163.com\n报名电话：0431-82536047、0431-82536043","0431-81331234"]
[347,"汽开区","长春汽车经济技术开发区教育局","长春汽车经济技术开发区第三中学","高中政治教师","初级专业技术岗位","财政拨款",1,"不限","本科学历或硕士研究生及以上学历","与报名学历相对应的学位","研究生专业为：哲学(一级学科)（0101）、政治学(一级学科)（0302）、马克思主义理论(一级学科)（0305）、学科教学(思政)(专业学位)（045102）、课程与教学论(思政方向)（040102）\n本科专业为：哲学类(一级学科)（0101）、政治学类(一级学科)（0302）、马克思主义理论类(一级学科)（0305）","须在2025年7月31日前取得相应的教师资格证（在2025年7月31日前已经通过相应教师资格证笔试和面试考试未进行认定的，须在办理聘用备案手续前取得相应的教师资格证）","报名邮箱：35713060@qq.com\n报名电话：0431-85905162、85901901","0431-81501849"]
[348,"汽开区","长春汽车经济技术开发区教育局","长春汽车经济技术开发区第三中学","高中语文教师","初级专业技术岗位","财政拨款",1,"不限","本科学历或硕士研究生及以上学历","与报名学历相对应的学位","研究生专业为：中国语言文学(一级学科)（0501）、学科教学(语文)(专业学位)（045103）、课程与教学论(语文方向)（040102）、 汉语国际教育（045174）、国际中文教育（专业学位一级学科）（0453）\n本科专业为：中国语言文学类(一级学科)（0501）、教育学(语文方向)（040101）","须在2025年7月31日前取得相应的教师资格证（在2025年7月31日前已经通过相应教师资格证笔试和面试考试未进行认定的，须在办理聘用备案手续前取得相应的教师资格证）","报名邮箱：35713060@qq.com\n报名电话：0431-85905162、85901901","0431-81501849"]
[349,"汽开区","长春汽车经济技术开发区教育局","长春汽车经济技术开发区第六中学","高中数学教师","初级专业技术岗位","财政拨款",2,"不限","本科学历或硕士研究生及以上学历","与报名学历相对应的学位","研究生专业为：数学(一级学科)（0701）、学科教学(数学)(专业学位)（045104）、课程与教学论(数学方向)（040102）\n本科专业为：数学类(一级学科)（0701）、教育学(数学方向)（040101）","须在2025年7月31日前取得相应的教师资格证（在2025年7月31日前已经通过相应教师资格证笔试和面试考试未进行认定的，须在办理聘用备案手续前取得相应的教师资格证）","报名邮箱：35713060@qq.com\n报名电话：0431-85905162、85901901","0431-81501849"]
[350,"汽开区","长春汽车经济技术开发区教育局","长春汽车经济技术开发区第六中学","高中英语教师","初级专业技术岗位","财政拨款",1,"不限","本科学历或硕士研究生及以上学历","与报名学历相对应的学位","研究生专业为：英语语言文学（050201）、英语笔译(专业学位)（055101）、英语口译(专业学位)（055102）、学科教学(英语)(专业学位)（045108）、 课程与教学论(英语方向)（040102）\n本科专业为：英语（050201）、翻译(英语方向)（050261）、商务英语（050262）","须在2025年7月31日前取得相应的教师资格证（在2025年7月31日前已经通过相应教师资格证笔试和面试考试未进行认定的，须在办理聘用备案手续前取得相应的教师资格证）","报名邮箱：35713060@qq.com\n报名电话：0431-85905162、85901901","0431-81501849"]
[351,"汽开区","长春汽车经济技术开发区教育局","长春汽车经济技术开发区第六中学","高中物理教师","初级专业技术岗位","财政拨款",1,"不限","本科学历或硕士研究生及以上学历","与报名学历相对应的学位","研究生专业为：物理学(一级学科)（0702）、学科教学(物理)(专业学位)（045105）、课程与教学论(物理方向)（040102）\n本科专业为：物理学类(一级学科)（0702）","须在2025年7月31日前取得相应的教师资格证（在2025年7月31日前已经通过相应教师资格证笔试和面试考试未进行认定的，须在办理聘用备案手续前取得相应的教师资格证）","报名邮箱：35713060@qq.com\n报名电话：0431-85905162、85901901","0431-81501849"]
[{"$f":"ROW()-2","v":352},"汽开区","长春汽车经济技术开发区教育局","长春汽车经济技术开发区第四中学","初中语文教师","初级专业技术岗位","财政拨款",1,"不限","本科学历或硕士研究生及以上学历","与报名学历相对应的学位","研究生专业为：中国语言文学(一级学科)（0501）、学科教学(语文)(专业学位)（045103）、课程与教学论(语文方向)（040102）、 汉语国际教育（045174）、国际中文教育（专业学位一级学科）（0453）\n本科专业为：中国语言文学类(一级学科)（0501）、教育学(语文方向)（040101）","须在2025年7月31日前取得相应的教师资格证（在2025年7月31日前已经通过相应教师资格证笔试和面试考试未进行认定的，须在办理聘用备案手续前取得相应的教师资格证）","报名邮箱：35713060@qq.com\n报名电话：0431-85905162、85901901","0431-81501849"]
[353,"汽开区","长春汽车经济技术开发区教育局","长春汽车经济技术开发区第四中学","初中地理教师","初级专业技术岗位","财政拨款",1,"不限","本科学历或硕士研究生及以上学历","与报名学历相对应的学位","研究生专业为：地理学（一级学科）（0705）、学科教学（地理）（045110） \n本科专业为：地理科学类(一级学科）（0705）","须在2025年7月31日前取得相应的教师资格证（在2025年7月31日前已经通过相应教师资格证笔试和面试考试未进行认定的，须在办理聘用备案手续前取得相应的教师资格证）","报名邮箱：35713060@qq.com\n报名电话：0431-85905162、85901901","0431-81501849"]
[354,"汽开区","长春汽车经济技术开发区教育局","长春汽车经济技术开发区第四中学","初中化学教师","初级专业技术岗位","财政拨款",1,"不限","本科学历或硕士研究生及以上学历","与报名学历相对应的学位","研究生专业为：化学(一级学科)（0703）、学科教学(化学)(专业学位)（045106）、课程与教学论(化学方向)（040102）\n本科专业为：化学类(一级学科)（0703）","须在2025年7月31日前取得相应的教师资格证（在2025年7月31日前已经通过相应教师资格证笔试和面试考试未进行认定的，须在办理聘用备案手续前取得相应的教师资格证）","报名邮箱：35713060@qq.com\n报名电话：0431-85905162、85901901","0431-81501849"]
[355,"汽开区","长春汽车经济技术开发区教育局","长春汽车经济技术开发区实验学校","初中历史教师","初级专业技术岗位","财政拨款",1,"不限","本科学历或硕士研究生及以上学历","与报名学历相对应的学位","研究生专业为：历史学(门类)（06）、学科教学(历史)(专业学位)（045109）\n本科专业为：历史学类(一级学科)（0601）","须在2025年7月31日前取得相应的教师资格证（在2025年7月31日前已经通过相应教师资格证笔试和面试考试未进行认定的，须在办理聘用备案手续前取得相应的教师资格证）","报名邮箱：35713060@qq.com\n报名电话：0431-85905162、85901901","0431-81501849"]
[356,"汽开区","长春汽车经济技术开发区教育局","长春汽车经济技术开发区实验学校","初中道德与法治教师","初级专业技术岗位","财政拨款",1,"不限","本科学历或硕士研究生及以上学历","与报名学历相对应的学位","研究生专业为：哲学(一级学科)（0101）、政治学(一级学科)（0302）、马克思主义理论(一级学科)（0305）、学科教学(思政)(专业学位)（045102）、课程与教学论(思政方向)（040102）\n本科专业为：哲学类(一级学科)（0101）、政治学类(一级学科)（0302）、马克思主义理论类(一级学科)（0305）","须在2025年7月31日前取得相应的教师资格证（在2025年7月31日前已经通过相应教师资格证笔试和面试考试未进行认定的，须在办理聘用备案手续前取得相应的教师资格证）","报名邮箱：35713060@qq.com\n报名电话：0431-85905162、85901901","0431-81501849"]
[357,"汽开区","长春汽车经济技术开发区教育局","长春汽车经济技术开发区第九中学","初中历史教师","初级专业技术岗位","财政拨款",1,"不限","本科学历或硕士研究生及以上学历","与报名学历相对应的学位","研究生专业为：历史学(门类)（06）、学科教学(历史)(专业学位)（045109）\n本科专业为：历史学类(一级学科)（0601）","须在2025年7月31日前取得相应的教师资格证（在2025年7月31日前已经通过相应教师资格证笔试和面试考试未进行认定的，须在办理聘用备案手续前取得相应的教师资格证）","报名邮箱：35713060@qq.com\n报名电话：0431-85905162、85901901","0431-81501849"]
[358,"汽开区","长春汽车经济技术开发区教育局","长春汽车经济技术开发区第九中学","初中体育教师","初级专业技术岗位","财政拨款",1,"不限","本科学历或硕士研究生及以上学历","与报名学历相对应的学位","研究生专业为：体育学(一级学科)（0403）、学科教学(体育)(专业学位)（045112）、体育(专业学位一级学科)（0452）、课程与教学论(体育方向)（040102）\n本科专业为：体育教育（040201）、运动训练（040202K）、社会体育指导与管理（040203）、武术与民族传统体育（040204K）、运动人体科学（040205）、运动康复（040206T）、休闲体育（040207T）","须在2025年7月31日前取得相应的教师资格证（在2025年7月31日前已经通过相应教师资格证笔试和面试考试未进行认定的，须在办理聘用备案手续前取得相应的教师资格证）","报名邮箱：35713060@qq.com\n报名电话：0431-85905162、85901901","0431-81501849"]
[359,"汽开区","长春汽车经济技术开发区教育局","长春汽车经济技术开发区第二实验学校","初中信息技术教师","初级专业技术岗位","财政拨款",1,"不限","本科学历或硕士研究生及以上学历","与报名学历相对应的学位","研究生专业为：计算机科学与技术(一级学科)（0775、0812）、计算机技术(专业学位)（085404）、现代教育技术(专业学位)（045114）、课程与教学论(计算机方向)（040102）\n本科专业为：计算机类(一级学科)（0809）、教育技术学（040104）","须在2025年7月31日前取得相应的教师资格证（在2025年7月31日前已经通过相应教师资格证笔试和面试考试未进行认定的，须在办理聘用备案手续前取得相应的教师资格证）","报名邮箱：35713060@qq.com\n报名电话：0431-85905162、85901901","0431-81501849"]
[360,"汽开区","长春汽车经济技术开发区教育局","长春汽车经济技术开发区第二实验学校","初中体育教师","初级专业技术岗位","财政拨款",1,"不限","本科学历或硕士研究生及以上学历","与报名学历相对应的学位","研究生专业为：体育学(一级学科)（0403）、学科教学(体育)(专业学位)（045112）、体育(专业学位一级学科)（0452）、课程与教学论(体育方向)（040102）\n本科专业为：体育教育（040201）、运动训练（040202K）、社会体育指导与管理（040203）、武术与民族传统体育（040204K）、运动人体科学（040205）、运动康复（040206T）、休闲体育（040207T）","须在2025年7月31日前取得相应的教师资格证（在2025年7月31日前已经通过相应教师资格证笔试和面试考试未进行认定的，须在办理聘用备案手续前取得相应的教师资格证）","报名邮箱：35713060@qq.com\n报名电话：0431-85905162、85901901","0431-81501849"]
[361,"汽开区","长春汽车经济技术开发区教育局","长春汽车经济技术开发区东风学校","初中英语教师","初级专业技术岗位","财政拨款",1,"不限","本科学历或硕士研究生及以上学历","与报名学历相对应的学位","研究生专业为：英语语言文学（050201）、英语笔译(专业学位)（055101）、英语口译(专业学位)（055102）、学科教学(英语)(专业学位)（045108）、 课程与教学论(英语方向)（040102）\n本科专业为：英语（050201）、翻译(英语方向)（050261）、商务英语（050262）","须在2025年7月31日前取得相应的教师资格证（在2025年7月31日前已经通过相应教师资格证笔试和面试考试未进行认定的，须在办理聘用备案手续前取得相应的教师资格证）","报名邮箱：35713060@qq.com\n报名电话：0431-85905162、85901901","0431-81501849"]
[{"$f":"ROW()-2","v":362},"汽开区","长春汽车经济技术开发区教育局","长春汽车经济技术开发区长沈路学校","小学语文教师","初级专业技术岗位","财政拨款",3,"不限","本科学历或硕士研究生及以上学历","与报名学历相对应的学位","研究生专业为：中国语言文学(一级学科)（0501）、学科教学(语文)(专业学位)（045103）、课程与教学论(语文方向)（040102）、 汉语国际教育（045174）、国际中文教育（专业学位一级学科）（0453）、小学教育（专业学位）（045115）\n本科专业为：中国语言文学类(一级学科)（0501）、教育学(语文方向)（040101）、小学教育（040107）","须在2025年7月31日前取得相应的教师资格证（在2025年7月31日前已经通过相应教师资格证笔试和面试考试未进行认定的，须在办理聘用备案手续前取得相应的教师资格证）","报名邮箱：35713060@qq.com\n报名电话：0431-85905162、85901901","0431-81501849","报考此岗位需服从主管部门调配。"]
[363,"汽开区","长春汽车经济技术开发区教育局","长春汽车经济技术开发区长沈路学校","小学数学教师","初级专业技术岗位","财政拨款",3,"不限","本科学历或硕士研究生及以上学历","与报名学历相对应的学位","研究生专业为：数学(一级学科)（0701）、学科教学(数学)(专业学位)（045104）、课程与教学论(数学方向)（040102）、小学教育（专业学位）（045115）\n本科专业为：数学类(一级学科)（0701）、教育学(数学方向)（040101）、小学教育（040107）","须在2025年7月31日前取得相应的教师资格证（在2025年7月31日前已经通过相应教师资格证笔试和面试考试未进行认定的，须在办理聘用备案手续前取得相应的教师资格证）","报名邮箱：35713060@qq.com\n报名电话：0431-85905162、85901901","0431-81501849","报考此岗位需服从主管部门调配。"]
[364,"汽开区","长春汽车经济技术开发区教育局","长春汽车经济技术开发区长沈路学校","初中语文教师","初级专业技术岗位","财政拨款",3,"不限","本科学历或硕士研究生及以上学历","与报名学历相对应的学位","研究生专业为：中国语言文学(一级学科)（0501）、学科教学(语文)(专业学位)（045103）、课程与教学论(语文方向)（040102）、 汉语国际教育（045174）、国际中文教育（专业学位一级学科）（0453）\n本科专业为：中国语言文学类(一级学科)（0501）、教育学(语文方向)（040101）","须在2025年7月31日前取得相应的教师资格证（在2025年7月31日前已经通过相应教师资格证笔试和面试考试未进行认定的，须在办理聘用备案手续前取得相应的教师资格证）","报名邮箱：35713060@qq.com\n报名电话：0431-85905162、85901901","0431-81501849","报考此岗位需服从主管部门调配。"]
[365,"汽开区","长春汽车经济技术开发区教育局","长春汽车经济技术开发区长沈路学校","初中数学教师","初级专业技术岗位","财政拨款",3,"不限","本科学历或硕士研究生及以上学历","与报名学历相对应的学位","研究生专业为：数学(一级学科)（0701）、学科教学(数学)(专业学位)（045104）、课程与教学论(数学方向)（040102）\n本科专业为：数学类(一级学科)（0701）、教育学(数学方向)（040101）","须在2025年7月31日前取得相应的教师资格证（在2025年7月31日前已经通过相应教师资格证笔试和面试考试未进行认定的，须在办理聘用备案手续前取得相应的教师资格证）","报名邮箱：35713060@qq.com\n报名电话：0431-85905162、85901901","0431-81501849","报考此岗位需服从主管部门调配。"]
[366,"汽开区","长春汽车经济技术开发区教育局","长春汽车经济技术开发区长沈路学校","初中英语教师","初级专业技术岗位","财政拨款",2,"不限","本科学历或硕士研究生及以上学历","与报名学历相对应的学位","研究生专业为：英语语言文学（050201）、英语笔译(专业学位)（055101）、英语口译(专业学位)（055102）、学科教学(英语)(专业学位)（045108）、 课程与教学论(英语方向)（040102）\n本科专业为：英语（050201）、翻译(英语方向)（050261）、商务英语（050262）","须在2025年7月31日前取得相应的教师资格证（在2025年7月31日前已经通过相应教师资格证笔试和面试考试未进行认定的，须在办理聘用备案手续前取得相应的教师资格证）","报名邮箱：35713060@qq.com\n报名电话：0431-85905162、85901901","0431-81501849","报考此岗位需服从主管部门调配。"]
[367,"汽开区","长春汽车经济技术开发区教育局","长春汽车经济技术开发区长沈路学校","初中物理教师","初级专业技术岗位","财政拨款",1,"不限","本科学历或硕士研究生及以上学历","与报名学历相对应的学位","研究生专业为：物理学(一级学科)（0702）、学科教学(物理)(专业学位)（045105）、课程与教学论(物理方向)（040102）\n本科专业为：物理学类(一级学科)（0702）","须在2025年7月31日前取得相应的教师资格证（在2025年7月31日前已经通过相应教师资格证笔试和面试考试未进行认定的，须在办理聘用备案手续前取得相应的教师资格证）","报名邮箱：35713060@qq.com\n报名电话：0431-85905162、85901901","0431-81501849"]
[368,"汽开区","长春汽车经济技术开发区教育局","长春汽车经济技术开发区长沈路学校","初中体育教师","初级专业技术岗位","财政拨款",1,"不限","本科学历或硕士研究生及以上学历","与报名学历相对应的学位","研究生专业为：体育学(一级学科)（0403）、学科教学(体育)(专业学位)（045112）、体育(专业学位一级学科)（0452）、课程与教学论(体育方向)（040102）\n本科专业为：体育教育（040201）、运动训练（040202K）、社会体育指导与管理（040203）、武术与民族传统体育（040204K）、运动人体科学（040205）、运动康复（040206T）、休闲体育（040207T）","须在2025年7月31日前取得相应的教师资格证（在2025年7月31日前已经通过相应教师资格证笔试和面试考试未进行认定的，须在办理聘用备案手续前取得相应的教师资格证）","报名邮箱：35713060@qq.com\n报名电话：0431-85905162、85901901","0431-81501849","报考此岗位需服从主管部门调配。"]
[369,"汽开区","长春汽车经济技术开发区教育局","长春汽车经济技术开发区长沈路学校","初中信息技术教师","初级专业技术岗位","财政拨款",1,"不限","本科学历或硕士研究生及以上学历","与报名学历相对应的学位","研究生专业为：计算机科学与技术(一级学科)（0775、0812）、计算机技术(专业学位)（085404）、现代教育技术(专业学位)（045114）、课程与教学论(计算机方向)（040102）\n本科专业为：计算机类(一级学科)（0809）、教育技术学（040104）","须在2025年7月31日前取得相应的教师资格证（在2025年7月31日前已经通过相应教师资格证笔试和面试考试未进行认定的，须在办理聘用备案手续前取得相应的教师资格证）","报名邮箱：35713060@qq.com\n报名电话：0431-85905162、85901901","0431-81501849","报考此岗位需服从主管部门调配。"]
[370,"汽开区","长春汽车经济技术开发区教育局","长春汽车经济技术开发区长沈路学校","初中道德与法治教师","初级专业技术岗位","财政拨款",2,"不限","本科学历或硕士研究生及以上学历","与报名学历相对应的学位","研究生专业为：哲学(一级学科)（0101）、政治学(一级学科)（0302）、马克思主义理论(一级学科)（0305）、学科教学(思政)(专业学位)（045102）、课程与教学论(思政方向)（040102）\n本科专业为：哲学类(一级学科)（0101）、政治学类(一级学科)（0302）、马克思主义理论类(一级学科)（0305）","须在2025年7月31日前取得相应的教师资格证（在2025年7月31日前已经通过相应教师资格证笔试和面试考试未进行认定的，须在办理聘用备案手续前取得相应的教师资格证）","报名邮箱：35713060@qq.com\n报名电话：0431-85905162、85901901","0431-81501849","报考此岗位需服从主管部门调配。"]
[371,"汽开区","长春汽车经济技术开发区教育局","长春汽车经济技术开发区西湖实验学校","初中英语教师","初级专业技术岗位","财政拨款",1,"不限","本科学历或硕士研究生及以上学历","与报名学历相对应的学位","研究生专业为：英语语言文学（050201）、英语笔译(专业学位)（055101）、英语口译(专业学位)（055102）、学科教学(英语)(专业学位)（045108）、 课程与教学论(英语方向)（040102）\n本科专业为：英语（050201）、翻译(英语方向)（050261）、商务英语（050262）","须在2025年7月31日前取得相应的教师资格证（在2025年7月31日前已经通过相应教师资格证笔试和面试考试未进行认定的，须在办理聘用备案手续前取得相应的教师资格证）","报名邮箱：35713060@qq.com\n报名电话：0431-85905162、85901901","0431-81501849"]
[{"$f":"ROW()-2","v":372},"汽开区","长春汽车经济技术开发区教育局","长春汽车经济技术开发区西湖实验学校","初中物理教师","初级专业技术岗位","财政拨款",1,"不限","本科学历或硕士研究生及以上学历","与报名学历相对应的学位","研究生专业为：物理学(一级学科)（0702）、学科教学(物理)(专业学位)（045105）、课程与教学论(物理方向)（040102）\n本科专业为：物理学类(一级学科)（0702）","须在2025年7月31日前取得相应的教师资格证（在2025年7月31日前已经通过相应教师资格证笔试和面试考试未进行认定的，须在办理聘用备案手续前取得相应的教师资格证）","报名邮箱：35713060@qq.com\n报名电话：0431-85905162、85901901","0431-81501849"]
[373,"汽开区","长春汽车经济技术开发区教育局","长春汽车经济技术开发区西湖实验学校","初中体育教师","初级专业技术岗位","财政拨款",1,"不限","本科学历或硕士研究生及以上学历","与报名学历相对应的学位","研究生专业为：体育学(一级学科)（0403）、学科教学(体育)(专业学位)（045112）、体育(专业学位一级学科)（0452）、课程与教学论(体育方向)（040102）\n本科专业为：体育教育（040201）、运动训练（040202K）、社会体育指导与管理（040203）、武术与民族传统体育（040204K）、运动人体科学（040205）、运动康复（040206T）、休闲体育（040207T）","须在2025年7月31日前取得相应的教师资格证（在2025年7月31日前已经通过相应教师资格证笔试和面试考试未进行认定的，须在办理聘用备案手续前取得相应的教师资格证）","报名邮箱：35713060@qq.com\n报名电话：0431-85905162、85901901","0431-81501849"]
[374,"汽开区","长春汽车经济技术开发区教育局","长春汽车经济技术开发区西湖实验学校","初中化学教师","初级专业技术岗位","财政拨款",1,"不限","本科学历或硕士研究生及以上学历","与报名学历相对应的学位","研究生专业为：化学(一级学科)（0703）、学科教学(化学)(专业学位)（045106）、课程与教学论(化学方向)（040102）\n本科专业为：化学类(一级学科)（0703）","须在2025年7月31日前取得相应的教师资格证（在2025年7月31日前已经通过相应教师资格证笔试和面试考试未进行认定的，须在办理聘用备案手续前取得相应的教师资格证）","报名邮箱：35713060@qq.com\n报名电话：0431-85905162、85901901","0431-81501849"]
[375,"汽开区","长春汽车经济技术开发区教育局","长春汽车经济技术开发区西湖实验学校","初中信息技术教师","初级专业技术岗位","财政拨款",1,"不限","本科学历或硕士研究生及以上学历","与报名学历相对应的学位","研究生专业为：计算机科学与技术(一级学科)（0775、0812）、计算机技术(专业学位)（085404）、现代教育技术(专业学位)（045114）、课程与教学论(计算机方向)（040102）\n本科专业为：计算机类(一级学科)（0809）、教育技术学（040104）","须在2025年7月31日前取得相应的教师资格证（在2025年7月31日前已经通过相应教师资格证笔试和面试考试未进行认定的，须在办理聘用备案手续前取得相应的教师资格证）","报名邮箱：35713060@qq.com\n报名电话：0431-85905162、85901901","0431-81501849"]
[376,"汽开区","长春汽车经济技术开发区教育局","长春汽车经济技术开发区西湖实验学校","小学语文教师","初级专业技术岗位","财政拨款",4,"不限","本科学历或硕士研究生及以上学历","与报名学历相对应的学位","研究生专业为：中国语言文学(一级学科)（0501）、学科教学(语文)(专业学位)（045103）、课程与教学论(语文方向)（040102）、 汉语国际教育（045174）、国际中文教育（专业学位一级学科）（0453）、小学教育（专业学位）（045115）\n本科专业为：中国语言文学类(一级学科)（0501）、教育学(语文方向)（040101）、小学教育（040107）","须在2025年7月31日前取得相应的教师资格证（在2025年7月31日前已经通过相应教师资格证笔试和面试考试未进行认定的，须在办理聘用备案手续前取得相应的教师资格证）","报名邮箱：35713060@qq.com\n报名电话：0431-85905162、85901901","0431-81501849"]
[377,"汽开区","长春汽车经济技术开发区教育局","长春汽车经济技术开发区西湖实验学校","小学数学教师","初级专业技术岗位","财政拨款",4,"不限","本科学历或硕士研究生及以上学历","与报名学历相对应的学位","研究生专业为：数学(一级学科)（0701）、学科教学(数学)(专业学位)（045104）、课程与教学论(数学方向)（040102）、小学教育（专业学位）（045115）\n本科专业为：数学类(一级学科)（0701）、教育学(数学方向)（040101）、小学教育（040107）","须在2025年7月31日前取得相应的教师资格证（在2025年7月31日前已经通过相应教师资格证笔试和面试考试未进行认定的，须在办理聘用备案手续前取得相应的教师资格证）","报名邮箱：35713060@qq.com\n报名电话：0431-85905162、85901901","0431-81501849"]
[378,"经开区","长春经济技术开发区文化体育和教育局","长春经济技术开发区博远学校","初中数学教师","初级专业技术岗位","财政拨款",2,"不限","本科学历或硕士研究生及以上学历","与报名学历相对应的学位","研究生专业为：数学（一级学科）（0701）、学科教学（数学）（专业学位）（045104）、课程与教学论（数学方向）（040102） \n本科专业为：数学类（一级学科）（0701）","须在2025年7月31日前取得相应的教师资格证（在2025年7月31日前已经通过相应教师资格证笔试和面试考试未进行认定的，须在办理聘用备案手续前取得相应的教师资格证）","报名邮箱：314849203@qq.com\n报名电话：0431-84612890","0431-84612890"]
[379,"经开区","长春经济技术开发区文化体育和教育局","长春经济技术开发区博远学校","初中英语教师","初级专业技术岗位","财政拨款",1,"不限","本科学历或硕士研究生及以上学历","与报名学历相对应的学位","研究生专业为：英语语言文学（050201）、学科教学(英语)(专业学位 )（045108）、课程与教学论(英语方向)（040102）、英语笔译(专业学位（055101）、英语口译(专业学位（055102）\n本科专业为：英语（050201）","须在2025年7月31日前取得相应的教师资格证（在2025年7月31日前已经通过相应教师资格证笔试和面试考试未进行认定的，须在办理聘用备案手续前取得相应的教师资格证）","报名邮箱：314849203@qq.com\n报名电话：0431-84612890","0431-84612890"]
[380,"经开区","长春经济技术开发区文化体育和教育局","长春经济技术开发区博远学校","小学体育教师","初级专业技术岗位","财政拨款",1,"不限","本科学历或硕士研究生及以上学历","与报名学历相对应的学位","研究生专业为：体育学(一级学科)（0403）、体育(专业学位一级学科)（0452）、学科教学（体育）(专业学位)(045112)、课程与教学论(体育方向)(040102)\n本科专业为：体育学类(一级学科)(0402)","须在2025年7月31日前取得相应的教师资格证（在2025年7月31日前已经通过相应教师资格证笔试和面试考试未进行认定的，须在办理聘用备案手续前取得相应的教师资格证）","报名邮箱：314849203@qq.com\n报名电话：0431-84612890","0431-84612890"]
[381,"经开区","长春经济技术开发区文化体育和教育局","长春经济技术开发区博远学校","小学美术教师","初级专业技术岗位","财政拨款",1,"不限","本科学历或硕士研究生及以上学历","与报名学历相对应的学位","研究生专业为：艺术学(一级学科)(美术与书法方向)(1301)、美术与书法（专业学位)（一级学科）(1356)、学科教学(美术)(专业学位)(045113)\n本科专业为：美术学(130401)、绘画(130402)、中国画(130406T)、漫画(130410T)、美术教育(130413TK)","须在2025年7月31日前取得相应的教师资格证（在2025年7月31日前已经通过相应教师资格证笔试和面试考试未进行认定的，须在办理聘用备案手续前取得相应的教师资格证）","报名邮箱：314849203@qq.com\n报名电话：0431-84612890","0431-84612890"]
[{"$f":"ROW()-2","v":382},"经开区","长春经济技术开发区文化体育和教育局","长春经济技术开发区博远学校","小学科学教师","初级专业技术岗位","财政拨款",2,"不限","本科学历或硕士研究生及以上学历","与报名学历相对应的学位","研究生专业为：物理学(一级学科)(0702)、化学(一级学科)(0703)、生物学(一级学科)(0710)、学科教学(物理)(专业学位)(045105)、学科教学(化学)(专业学位)(045106)、学科教学(生物)(专业学位)(045107)、科学与技术教育(专业学位)(045117)\n本科专业为：物理学类(一级学科)(0702)、化学类(一级学科)(0703)、生物科学类(一级学科)(0710)、科学教育(040102)","须在2025年7月31日前取得相应的教师资格证（在2025年7月31日前已经通过相应教师资格证笔试和面试考试未进行认定的，须在办理聘用备案手续前取得相应的教师资格证）","报名邮箱：314849203@qq.com\n报名电话：0431-84612890","0431-84612890"]
[383,"经开区","长春经济技术开发区文化体育和教育局","长春经济技术开发区博远学校","小学音乐教师","初级专业技术岗位","财政拨款",1,"不限","本科学历或硕士研究生及以上学历","与报名学历相对应的学位","研究生专业为：音乐(专业学位一级学科)(1352)、学科教学(音乐)(专业学位)(045111)\n本科专业为：音乐学(130202)","须在2025年7月31日前取得相应的教师资格证（在2025年7月31日前已经通过相应教师资格证笔试和面试考试未进行认定的，须在办理聘用备案手续前取得相应的教师资格证）","报名邮箱：314849203@qq.com\n报名电话：0431-84612890","0431-84612890"]
[384,"经开区","长春经济技术开发区文化体育和教育局","东北师范大学附属实验学校（经开）","初中体育教师","初级专业技术岗位","财政拨款",1,"不限","本科学历或硕士研究生及以上学历","与报名学历相对应的学位","研究生专业为：体育学(一级学科)(0403)、体育(专业学位 一级学科)(0452)、学科教学（体育）(专业学位)(045112)、课程与教学论(体育方向) (专业学位)(040102)\n本科专业为：体育学类(一级学科)(0402)","须在2025年7月31日前取得相应的教师资格证（在2025年7月31日前已经通过相应教师资格证笔试和面试考试未进行认定的，须在办理聘用备案手续前取得相应的教师资格证）","报名邮箱：422346076@qq.com\n报名电话：0431-89337755","0431-84612890"]
[385,"经开区","长春经济技术开发区文化体育和教育局","东北师范大学附属实验学校（经开）","初中道德与法治教师","初级专业技术岗位","财政拨款",1,"不限","本科学历或硕士研究生及以上学历","与报名学历相对应的学位","研究生专业为：政治学（一级学科）(0302)、马克思主义理论（一级学科）(0305)、学科教学（思政）(专业学位)(045102)、课程与教学论(思政方向)(040102)\n本科专业为：政治学类(一级学科)(0302)、马克思主义理论类(一级学科)(0305)","须在2025年7月31日前取得相应的教师资格证（在2025年7月31日前已经通过相应教师资格证笔试和面试考试未进行认定的，须在办理聘用备案手续前取得相应的教师资格证）","报名邮箱：422346076@qq.com\n报名电话：0431-89337755","0431-84612890"]
[386,"经开区","长春经济技术开发区文化体育和教育局","东北师范大学附属实验学校（经开）","小学语文教师","初级专业技术岗位","财政拨款",1,"不限","本科学历或硕士研究生及以上学历","与报名学历相对应的学位","研究生专业为：中国语言文学（一级学科）(0501)、教育学（一级学科）(0401)、国际中文教育（专业学位 一级学科）(0453)、学科教学（语文）（专业学位）(045103)、课程与教学论(语文方向)(040102)、小学教育(专业学位)(045115)、教育管理(045101)、教育史(040103)\n本科专业为：中国语言文学类(一级学科)(0501)、教育学类（一级学科）(0401)","须在2025年7月31日前取得相应的教师资格证（在2025年7月31日前已经通过相应教师资格证笔试和面试考试未进行认定的，须在办理聘用备案手续前取得相应的教师资格证）","报名邮箱：66237715@qq．com\n报名电话：0431-88453398","0431-84612890"]
[387,"经开区","长春经济技术开发区文化体育和教育局","东北师范大学附属实验学校（经开）","小学音乐教师","初级专业技术岗位","财政拨款",1,"不限","本科学历或硕士研究生及以上学历","与报名学历相对应的学位","研究生专业为：音乐(专业学位一级学科)(1352)、学科教学(音乐)(专业学位)(045111)\n本科专业为：音乐学(130202)","须在2025年7月31日前取得相应的教师资格证（在2025年7月31日前已经通过相应教师资格证笔试和面试考试未进行认定的，须在办理聘用备案手续前取得相应的教师资格证）","报名邮箱：66237715@qq．com\n报名电话：0431-88453398","0431-84612890"]
[388,"经开区","长春经济技术开发区文化体育和教育局","东北师范大学附属实验学校（经开）","小学体育教师","初级专业技术岗位","财政拨款",1,"不限","本科学历或硕士研究生及以上学历","与报名学历相对应的学位","研究生专业为：体育学(一级学科)(0403)、体育(专业学位一级学科)(0452)、学科教学（体育）(专业学位)(045112)、课程与教学论(体育方向)(040102)\n本科专业为：体育学类(一级学科)(0402)","须在2025年7月31日前取得相应的教师资格证（在2025年7月31日前已经通过相应教师资格证笔试和面试考试未进行认定的，须在办理聘用备案手续前取得相应的教师资格证）","报名邮箱：66237715@qq．com\n报名电话：0431-88453398","0431-84612890"]
[389,"新区","长春新区教育局","长春新区北辰学校","初中语文教师","初级专业技术岗位","财政拨款",1,"不限","本科学历或硕士研究生及以上学历","与报名学历相对应的学位","研究生专业为：中国语言文学(一级学科)(0501)、学科教学(语文)(专业学位)(045103)、国际中文教育(专业学位)(一级学科)(0453)\n本科专业为：汉语言文学(050101)、汉语言(050102)、汉语国际教育(050103)、应用语言学(050106T)、中国语言与文化(050108T)","须在2025年7月31日前取得相应的教师资格证（在2025年7月31日前已经通过相应教师资格证笔试和面试考试未进行认定的，须在办理聘用备案手续前取得相应的教师资格证）","报名邮箱：1486125993@qq.com\n报名电话：0431-81962917","0431-81337330"]
[390,"新区","长春新区教育局","长春新区北辰学校","初中数学教师","初级专业技术岗位","财政拨款",1,"不限","本科学历或硕士研究生及以上学历","与报名学历相对应的学位","研究生专业为：数学(一级学科)(0701)、学科教学(数学)(专业学位)(045104)\n本科专业为：数学类(一级学科)(0701)","须在2025年7月31日前取得相应的教师资格证（在2025年7月31日前已经通过相应教师资格证笔试和面试考试未进行认定的，须在办理聘用备案手续前取得相应的教师资格证）","报名邮箱：1486125993@qq.com\n报名电话：0431-81962917","0431-81337330"]
[391,"新区","长春新区教育局","长春新区北辰学校","初中英语教师","初级专业技术岗位","财政拨款",1,"不限","本科学历或硕士研究生及以上学历","与报名学历相对应的学位","研究生专业为：英语语言文学(050201)、外国语言学及应用语言学(英语方向)(050211)、英语笔译(专业学位)(055101)、英语口译(专业学位)(055102)、学科教学(英语)(专业学位)(045108)\n本科专业为：英语(050201)、商务英语(050262)","须在2025年7月31日前取得相应的教师资格证（在2025年7月31日前已经通过相应教师资格证笔试和面试考试未进行认定的，须在办理聘用备案手续前取得相应的教师资格证）","报名邮箱：1486125993@qq.com\n报名电话：0431-81962917","0431-81337330"]
[{"$f":"ROW()-2","v":392},"新区","长春新区教育局","长春高新技术产业开发区慧谷学校","初中语文教师","初级专业技术岗位","财政拨款",1,"不限","本科学历或硕士研究生及以上学历","与报名学历相对应的学位","研究生专业为：中国语言文学(一级学科)(0501)、学科教学(语文)(专业学位)(045103)、课程与教学论(语文方向)(040102)\n本科专业为：中国语言文学类(一级学科)(0501)","须在2025年7月31日前取得相应的教师资格证（在2025年7月31日前已经通过相应教师资格证笔试和面试考试未进行认定的，须在办理聘用备案手续前取得相应的教师资格证）","报名邮箱：604381135@qq.com  \n报名电话：13756500569 ","0431-81337330"]
[393,"新区","长春新区教育局","长春高新技术产业开发区慧谷学校","初中数学教师","初级专业技术岗位","财政拨款",1,"不限","本科学历或硕士研究生及以上学历","与报名学历相对应的学位","研究生专业为：数学(一级学科)(0701)、学科教学(数学)(专业学位)(045104)、课程与教学论(数学方向)                                                                                                                (040102)\n本科专业为：数学类(一级学科)(0701)","须在2025年7月31日前取得相应的教师资格证（在2025年7月31日前已经通过相应教师资格证笔试和面试考试未进行认定的，须在办理聘用备案手续前取得相应的教师资格证）","报名邮箱：604381135@qq.com  \n报名电话：13756500569 ","0431-81337330"]
[394,"新区","长春新区教育局","长春高新技术产业开发区慧谷学校","初中英语教师","初级专业技术岗位","财政拨款",1,"不限","本科学历或硕士研究生及以上学历","与报名学历相对应的学位","研究生专业为：外国语言文学(英语方向)(一级学科)(0502)、翻译(英语方向)(专业学位)(一级学科)(0551)、学科教学(英语)(专业学位)(045108)、课程与教学论(英语方向)(040102)                                                                                          本科专业为：英语(050201)","须在2025年7月31日前取得相应的教师资格证（在2025年7月31日前已经通过相应教师资格证笔试和面试考试未进行认定的，须在办理聘用备案手续前取得相应的教师资格证）","报名邮箱：604381135@qq.com  \n报名电话：13756500569 ","0431-81337330"]
[395,"新区","长春新区教育局","长春高新技术产业开发区慧谷学校","初中物理教师","初级专业技术岗位","财政拨款",1,"不限","本科学历或硕士研究生及以上学历","与报名学历相对应的学位","研究生专业为：物理学(一级学科)(0702)、学科教学(物理)(专业学位) (045105)\n本科专业为：物理学类(一级学科)(0702)","须在2025年7月31日前取得相应的教师资格证（在2025年7月31日前已经通过相应教师资格证笔试和面试考试未进行认定的，须在办理聘用备案手续前取得相应的教师资格证）","报名邮箱：604381135@qq.com  \n报名电话：13756500569 ","0431-81337330"]
[396,"新区","长春新区教育局","长春高新技术产业开发区慧谷学校","初中生物教师","初级专业技术岗位","财政拨款",1,"不限","本科学历或硕士研究生及以上学历","与报名学历相对应的学位","研究生专业为：生物学(一级学科)(0710)、学科教学(生物)(专业学位)(045107)、课程与教学论(生物方向)(040102)\n本科专业为：生物科学类(一级学科)(0710)","须在2025年7月31日前取得相应的教师资格证（在2025年7月31日前已经通过相应教师资格证笔试和面试考试未进行认定的，须在办理聘用备案手续前取得相应的教师资格证）","报名邮箱：604381135@qq.com  \n报名电话：13756500569 ","0431-81337330"]
[397,"新区","长春新区教育局","长春高新技术产业开发区慧谷学校","初中地理教师","初级专业技术岗位","财政拨款",1,"不限","本科学历或硕士研究生及以上学历","与报名学历相对应的学位","研究生专业为：学科教学(地理)(专业学位)(045110)、地理学(一级学科)(0705)、课程与教学论(地理方向)                                                                               (040102)\n本科专业为：地理科学类(一级学科)(0705)","须在2025年7月31日前取得相应的教师资格证（在2025年7月31日前已经通过相应教师资格证笔试和面试考试未进行认定的，须在办理聘用备案手续前取得相应的教师资格证）","报名邮箱：604381135@qq.com  \n报名电话：13756500569 ","0431-81337330"]
[398,"新区","长春新区教育局","长春高新技术产业开发区慧谷学校","初中道德与法治教师","初级专业技术岗位","财政拨款",2,"不限","本科学历或硕士研究生及以上学历","与报名学历相对应的学位","研究生专业为：政治学(一级学科)(0302)、马克思主义理论(一级学科)(0305)、学科教学(思政)(专业学位)(045102)、课程与教学论(思政方向)(040102)\n本科专业为：政治学类(一级学科)(0302)、马克思主义理论类(一级学科)(0305)","须在2025年7月31日前取得相应的教师资格证（在2025年7月31日前已经通过相应教师资格证笔试和面试考试未进行认定的，须在办理聘用备案手续前取得相应的教师资格证）","报名邮箱：604381135@qq.com  \n报名电话：13756500569 ","0431-81337330"]
[399,"新区","长春新区教育局","长春高新技术产业开发区慧谷学校","初中历史教师","初级专业技术岗位","财政拨款",2,"不限","本科学历或硕士研究生及以上学历","与报名学历相对应的学位","研究生专业为：中国史(一级学科)(0602)、世界史(一级学科)(0603)、学科教学(历史)(专业学位)(045109)、课程与教学论(历史方向)(040102)                                                                   \n本科专业为：历史学类(一级学科)(0601)","须在2025年7月31日前取得相应的教师资格证（在2025年7月31日前已经通过相应教师资格证笔试和面试考试未进行认定的，须在办理聘用备案手续前取得相应的教师资格证）","报名邮箱：604381135@qq.com  \n报名电话：13756500569 ","0431-81337330"]
[400,"新区","长春新区教育局","长春新区兴港学校","小学语文教师","初级专业技术岗位","财政拨款",1,"不限","本科学历或硕士研究生及以上学历","与报名学历相对应的学位","研究生专业为：中国语言文学(一级学科)(0501)、国际中文教育(专业学位)(一级学科)(0453)、学科教学(语文)(专业学位)(045103)、课程与教学论(语文方向)(040102)、小学教育(专业学位)(045115)\n本科专业为：中国语言文学类(一级学科)(0501)、教育学(语文方向)(040101)、小学教育(040107)","须在2025年7月31日前取得相应的教师资格证（在2025年7月31日前已经通过相应教师资格证笔试和面试考试未进行认定的，须在办理聘用备案手续前取得相应的教师资格证）","报名邮箱：1339199032@qq.com\n报名电话：13214484082","0431-81337330"]
[401,"新区","长春新区教育局","长春新区致远学校","初中数学教师","初级专业技术岗位","财政拨款",1,"不限","本科学历或硕士研究生及以上学历","与报名学历相对应的学位","研究生专业为：数学(一级学科)(0701)、学科教学(数学)(专业学位)(045104)、课程与教学论(数学方向)                                                                                                                (040102)、小学教育(专业学位)(045115)\n本科专业为：数学类(一级学科)(0701)","须在2025年7月31日前取得相应的教师资格证（在2025年7月31日前已经通过相应教师资格证笔试和面试考试未进行认定的，须在办理聘用备案手续前取得相应的教师资格证）","报名邮箱：2317472239@qq.com\n报名电话：13324469237","0431-81337330"]
[{"$f":"ROW()-2","v":402},"新区","长春新区教育局","长春新区致远学校","初中语文教师","初级专业技术岗位","财政拨款",1,"不限","本科学历或硕士研究生及以上学历","与报名学历相对应的学位","研究生专业为：语言学及应用语言学(050102)、汉语言文字学(050103)、中国古典文献学(050104)、中国古代文学(050105)、学科教学(语文)(专业学位)(045103)\n本科专业为：汉语言文学(050101)、汉语言(050102)、古典文献学(050105)、中国语言与文化(050108T)","须在2025年7月31日前取得相应的教师资格证（在2025年7月31日前已经通过相应教师资格证笔试和面试考试未进行认定的，须在办理聘用备案手续前取得相应的教师资格证）","报名邮箱：2317472239@qq.com\n报名电话：13324469237","0431-81337330"]
[403,"新区","长春新区教育局","长春高新技术产业开发区慧仁学校","初中语文教师","初级专业技术岗位","财政拨款",2,"不限","本科学历或硕士研究生及以上学历","与报名学历相对应的学位","研究生专业为：中国语言文学(一级学科)(0501)、学科教学(语文)(专业学位)(045103)\n本科专业为：汉语言文学(050101)、汉语言(050102)、应用语言学(050106T)、中国语言与文化(050108T)","须在2025年7月31日前取得相应的教师资格证（在2025年7月31日前已经通过相应教师资格证笔试和面试考试未进行认定的，须在办理聘用备案手续前取得相应的教师资格证）","报名邮箱：414153184@qq.com\n报名电话：0431-82537019","0431-81337330"]
[404,"新区","长春新区教育局","长春高新技术产业开发区慧仁学校","初中英语教师","初级专业技术岗位","财政拨款",1,"不限","本科学历或硕士研究生及以上学历","与报名学历相对应的学位","研究生专业为：英语语言文学(050201)、学科教学(英语)(专业学位)(045108)、英语笔译(专业学位)(055101)、英语口译(专业学位)(055102)\n本科专业为：英语(050201)","须在2025年7月31日前取得相应的教师资格证（在2025年7月31日前已经通过相应教师资格证笔试和面试考试未进行认定的，须在办理聘用备案手续前取得相应的教师资格证）","报名邮箱：414153184@qq.com\n报名电话：0431-82537019","0431-81337330"]
[405,"新区","长春新区教育局","长春高新技术产业开发区慧仁学校","初中化学教师","初级专业技术岗位","财政拨款",1,"不限","本科学历或硕士研究生及以上学历","与报名学历相对应的学位","研究生专业为：化学(一级学科)(0703)、学科教学(化学)(专业学位)(045106)\n本科专业为：化学类(一级学科)(0703)","须在2025年7月31日前取得相应的教师资格证（在2025年7月31日前已经通过相应教师资格证笔试和面试考试未进行认定的，须在办理聘用备案手续前取得相应的教师资格证）","报名邮箱：414153184@qq.com\n报名电话：0431-82537019","0431-81337330"]
[406,"新区","长春新区教育局","长春高新技术产业开发区慧仁学校","初中物理教师","初级专业技术岗位","财政拨款",1,"不限","本科学历或硕士研究生及以上学历","与报名学历相对应的学位","研究生专业为：物理学(一级学科)(0702)、学科教学(物理)(专业学位)(045105)\n本科专业为：物理学(070201)，应用物理学(070202)","须在2025年7月31日前取得相应的教师资格证（在2025年7月31日前已经通过相应教师资格证笔试和面试考试未进行认定的，须在办理聘用备案手续前取得相应的教师资格证）","报名邮箱：414153184@qq.com\n报名电话：0431-82537019","0431-81337330"]
[407,"新区","长春新区教育局","长春高新技术产业开发区慧仁学校","初中地理教师","初级专业技术岗位","财政拨款",1,"不限","本科学历或硕士研究生及以上学历","与报名学历相对应的学位","研究生专业为：地理学(一级学科)(0705)、学科教学(地理)(专业学位)(045110)\n本科专业为：地理科学类(一级学科)(0705)","须在2025年7月31日前取得相应的教师资格证（在2025年7月31日前已经通过相应教师资格证笔试和面试考试未进行认定的，须在办理聘用备案手续前取得相应的教师资格证）","报名邮箱：414153184@qq.com\n报名电话：0431-82537019","0431-81337330"]
[408,"新区","长春新区教育局","长春高新技术产业开发区尚德学校","初中语文教师","初级专业技术岗位","财政拨款",1,"不限","本科学历或硕士研究生及以上学历","与报名学历相对应的学位","研究生专业为：中国语言文学(一级学科)(0501)、学科教学(语文)(专业学位)(045103)、国际中文教育(专业学位一级学科)(0453)、课程与教学论(语文方向)(040102)\n本科专业为：中国语言文学类(一级学科)(0501)","须在2025年7月31日前取得相应的教师资格证（在2025年7月31日前已经通过相应教师资格证笔试和面试考试未进行认定的，须在办理聘用备案手续前取得相应的教师资格证）","报名邮箱：851886036@qq.com\n报名电话：0431-82538547","0431-81337330"]
[409,"新区","长春新区教育局","长春高新技术产业开发区尚德学校","初中数学教师","初级专业技术岗位","财政拨款",1,"不限","本科学历或硕士研究生及以上学历","与报名学历相对应的学位","研究生专业为：数学(一级学科)(0701)、学科教学(数学)(专业学位)(045104)、课程与教学论(数学方向)                                                                                                                (040102)\n本科专业为：数学类(一级学科)(0701)","须在2025年7月31日前取得相应的教师资格证（在2025年7月31日前已经通过相应教师资格证笔试和面试考试未进行认定的，须在办理聘用备案手续前取得相应的教师资格证）","报名邮箱：851886036@qq.com\n报名电话：0431-82538547","0431-81337330"]
[410,"新区","长春新区教育局","长春高新技术产业开发区尚德学校","初中英语教师","初级专业技术岗位","财政拨款",1,"不限","本科学历或硕士研究生及以上学历","与报名学历相对应的学位","研究生专业为：英语语言文学(050201)、外国语言学及应用语言学(英语方向)(050211)、英语笔译(专业学位)(055101)、英语口译(专业学位)(055102)、学科教学(英语)(专业学位)(045108)、课程与教学论(英语方向)(040102)\n本科专业为：英语(050201)","须在2025年7月31日前取得相应的教师资格证（在2025年7月31日前已经通过相应教师资格证笔试和面试考试未进行认定的，须在办理聘用备案手续前取得相应的教师资格证）","报名邮箱：851886036@qq.com\n报名电话：0431-82538547","0431-81337330"]
[411,"新区","长春新区教育局","长春高新技术产业开发区尚德学校","初中物理教师","初级专业技术岗位","财政拨款",2,"不限","本科学历或硕士研究生及以上学历","与报名学历相对应的学位","研究生专业为：物理学(一级学科)(0702)、学科教学(物理)(专业学位)(045105)、课程与教学论(物理方向)(040102)\n本科专业为：物理学类(一级学科)(0702)","须在2025年7月31日前取得相应的教师资格证（在2025年7月31日前已经通过相应教师资格证笔试和面试考试未进行认定的，须在办理聘用备案手续前取得相应的教师资格证）","报名邮箱：851886036@qq.com\n报名电话：0431-82538547","0431-81337330"]
[{"$f":"ROW()-2","v":412},"新区","长春新区教育局","长春高新技术产业开发区尚德学校","初中道德与法治教师","初级专业技术岗位","财政拨款",2,"不限","本科学历或硕士研究生及以上学历","与报名学历相对应的学位","研究生专业为：政治学(一级学科)(0302)、马克思主义理论(一级学科)(0305)、哲学(一级学科)(0101)、学科教学(思政)(专业学位)(045102)、课程与教学论(思政方向)(040102)\n本科专业为：政治学类(一级学科)(0302)、马克思主义理论类(一级学科)(0305)、哲学类(一级学科)(0101)","须在2025年7月31日前取得相应的教师资格证（在2025年7月31日前已经通过相应教师资格证笔试和面试考试未进行认定的，须在办理聘用备案手续前取得相应的教师资格证）","报名邮箱：851886036@qq.com\n报名电话：0431-82538547","0431-81337330"]
[413,"新区","长春新区教育局","长春高新技术产业开发区尚德学校","初中历史教师","初级专业技术岗位","财政拨款",1,"不限","本科学历或硕士研究生及以上学历","与报名学历相对应的学位","研究生专业为：中国史(一级学科)(0602)、世界史(一级学科)(0603)、学科教学(历史)(专业学位)(045109)、课程与教学论(历史方向)(040102)\n本科专业为：历史学类(一级学科)(0601)","须在2025年7月31日前取得相应的教师资格证（在2025年7月31日前已经通过相应教师资格证笔试和面试考试未进行认定的，须在办理聘用备案手续前取得相应的教师资格证）","报名邮箱：851886036@qq.com\n报名电话：0431-82538547","0431-81337330"]
[414,"新区","长春新区教育局","长春高新技术产业开发区尚德学校","初中地理教师","初级专业技术岗位","财政拨款",1,"不限","本科学历或硕士研究生及以上学历","与报名学历相对应的学位","研究生专业为：地理学(一级学科)(0705)、学科教学(地理)(专业学位)(045110)、课程与教学论(地理方向)(040102)\n本科专业为：地理科学类(一级学科)(0705)","须在2025年7月31日前取得相应的教师资格证（在2025年7月31日前已经通过相应教师资格证笔试和面试考试未进行认定的，须在办理聘用备案手续前取得相应的教师资格证）","报名邮箱：851886036@qq.com\n报名电话：0431-82538547","0431-81337330"]
[415,"新区","长春新区教育局","长春高新技术产业开发区尚德学校","初中生物教师","初级专业技术岗位","财政拨款",1,"不限","本科学历或硕士研究生及以上学历","与报名学历相对应的学位","研究生专业为：生物学(一级学科)(0710)、学科教学(生物)(专业学位)(045107)、课程与教学论(生物方向)(040102)\n本科专业为：生物科学类(一级学科)(0710)","须在2025年7月31日前取得相应的教师资格证（在2025年7月31日前已经通过相应教师资格证笔试和面试考试未进行认定的，须在办理聘用备案手续前取得相应的教师资格证）","报名邮箱：851886036@qq.com\n报名电话：0431-82538547","0431-81337330"]
[416,"新区","长春新区教育局","长春新区正德学校","初中语文教师","初级专业技术岗位","财政拨款",1,"不限","本科学历或硕士研究生及以上学历","与报名学历相对应的学位","研究生专业为：中国语言文学(一级学科)(0501)、学科教学(语文)(专业学位)(045103)、国际中文教育(专业学位一级学科)(0453)、课程与教学论(语文方向)(040102)\n本科专业为：中国语言文学类(一级学科)(0501)","须在2025年7月31日前取得相应的教师资格证（在2025年7月31日前已经通过相应教师资格证笔试和面试考试未进行认定的，须在办理聘用备案手续前取得相应的教师资格证）","报名邮箱：851886036@qq.com\n报名电话：0431-82538547","0431-81337330"]
[417,"新区","长春新区教育局","长春新区正德学校","初中数学教师","初级专业技术岗位","财政拨款",1,"不限","本科学历或硕士研究生及以上学历","与报名学历相对应的学位","研究生专业为：数学(一级学科)(0701)、统计学(一级学科)(0714)、学科教学(数学)(专业学位)(045104)、课程与教学论(数学方向)(040102)                                                                                                             \n本科专业为：数学类(一级学科)(0701)","须在2025年7月31日前取得相应的教师资格证（在2025年7月31日前已经通过相应教师资格证笔试和面试考试未进行认定的，须在办理聘用备案手续前取得相应的教师资格证）","报名邮箱：851886036@qq.com\n报名电话：0431-82538547","0431-81337330"]
[418,"新区","长春新区教育局","长春新区北湖实验学校","小学语文教师","初级专业技术岗位","财政拨款",1,"不限","本科学历或硕士研究生及以上学历","与报名学历相对应的学位","研究生专业为：中国语言文学(一级学科)(0501)、学科教学(语文)(专业学位)(045103) 、课程与教学论(语文方向)(040102)、小学教育(专业学位)(045115)\n本科专业为：汉语言文学(050101)、汉语言(050102)、古典文献学(050105)、小学教育(040107)","须在2025年7月31日前取得相应的教师资格证（在2025年7月31日前已经通过相应教师资格证笔试和面试考试未进行认定的，须在办理聘用备案手续前取得相应的教师资格证）","报名邮箱：BHSYXX2024@163.com\n报名电话：0431-81100301","0431-81337330"]
[419,"新区","长春新区教育局","长春新区北湖实验学校","小学数学教师","初级专业技术岗位","财政拨款",1,"不限","本科学历或硕士研究生及以上学历","与报名学历相对应的学位","研究生专业为：数学(一级学科)(0701)、学科教学(数学)(专业学位)(045104)、课程与教学论(数学方向)                                                                                                                (040102)、小学教育(专业学位)(045115)\n本科专业为：数学与应用数学(070101)、信息与计算科学(070102)、数理基础科学(070103T)、小学教育(040107)","须在2025年7月31日前取得相应的教师资格证（在2025年7月31日前已经通过相应教师资格证笔试和面试考试未进行认定的，须在办理聘用备案手续前取得相应的教师资格证）","报名邮箱：BHSYXX2024@163.com\n报名电话：0431-81100301","0431-81337330"]
[420,"新区","长春新区教育局","长春新区北湖实验学校","小学道德与法治教师","初级专业技术岗位","财政拨款",1,"不限","本科学历或硕士研究生及以上学历","与报名学历相对应的学位","研究生专业为：政治学(一级学科)(0302)、学科教学(思政)(专业学位)(045102)、课程与教学论(思政方向)(040102)、马克思主义理论(一级学科)(0305)\n本科专业为：政治学类(一级学科)(0302)、马克思主义理论类(一级学科)(0305)","须在2025年7月31日前取得相应的教师资格证（在2025年7月31日前已经通过相应教师资格证笔试和面试考试未进行认定的，须在办理聘用备案手续前取得相应的教师资格证）","报名邮箱：BHSYXX2024@163.com\n报名电话：0431-81100301","0431-81337330"]
[421,"新区","长春新区教育局","长春新区北湖实验学校","小学心理教师","初级专业技术岗位","财政拨款",1,"不限","本科学历或硕士研究生及以上学历","与报名学历相对应的学位","研究生专业为：心理学(一级学科)(0402)、心理健康教育(专业学位)(045116)、应用心理(专业学位)(一级学科)(0454)、课程与教学论(心理方向)(040102)\n本科专业为：心理学类(一级学科)(0711)","须在2025年7月31日前取得相应的教师资格证（在2025年7月31日前已经通过相应教师资格证笔试和面试考试未进行认定的，须在办理聘用备案手续前取得相应的教师资格证）","报名邮箱：BHSYXX2024@163.com\n报名电话：0431-81100301","0431-81337330"]
[{"$f":"ROW()-2","v":422},"新区","长春新区教育局","长春新区北湖明达学校","初中美术教师","初级专业技术岗位","财政拨款",1,"不限","本科学历或硕士研究生及以上学历","与报名学历相对应的学位","研究生专业为：艺术学(美术与书法方向)(1301)，美术与书法(专业学位)(1356)，设计(专业学位)(1357)，学科教学(美术)(专业学位)(045113)；\n本科专业为：美术学类(一级学科)(1304)，设计学类(一级学科)(1305)","须在2025年7月31日前取得相应的教师资格证（在2025年7月31日前已经通过相应教师资格证笔试和面试考试未进行认定的，须在办理聘用备案手续前取得相应的教师资格证）","报名邮箱：946108029@qq.com\n报名电话：0431−86233925","0431-81337330"]
[423,"新区","长春新区教育局","长春新区北湖明达学校","初中体育与健康教师","初级专业技术岗位","财政拨款",1,"不限","本科学历或硕士研究生及以上学历","与报名学历相对应的学位","研究生专业为：体育学(一级学科)(0403)，体育(专业学位)(一级学科)(0452)，学科教学(体育)(专业学位)(045112)；\n本科专业为：体育学类(一级学科)(0402)","须在2025年7月31日前取得相应的教师资格证（在2025年7月31日前已经通过相应教师资格证笔试和面试考试未进行认定的，须在办理聘用备案手续前取得相应的教师资格证）","报名邮箱：946108029@qq.com\n报名电话：0431−86233925","0431-81337330"]
[424,"新区","长春新区教育局","长春新区北湖明达学校","初中道德与法治教师","初级专业技术岗位","财政拨款",1,"不限","本科学历或硕士研究生及以上学历","与报名学历相对应的学位","研究生专业为：哲学(一级学科)(0101)，马克思主义理论(一级学科)(0305)，政治学(一级学科)(0302)，学科教学(思政)(专业学位)(045102)  \n本科专业为：马克思主义理论类(一级学科)(0305)，政治学类(一级学科)(0302)","须在2025年7月31日前取得相应的教师资格证（在2025年7月31日前已经通过相应教师资格证笔试和面试考试未进行认定的，须在办理聘用备案手续前取得相应的教师资格证）","报名邮箱：946108029@qq.com\n报名电话：0431−86233925","0431-81337330"]
[425,"新区","长春新区教育局","长春新区北湖明达学校","初中语文教师","初级专业技术岗位","财政拨款",2,"不限","本科学历或硕士研究生及以上学历","与报名学历相对应的学位","研究生专业为：中国语言文学(一级学科)(0501)，学科教学(语文)(专业学位)(045103)，课程与教学论(语文方向) (040102)；      \n本科专业为：汉语言文学(050101)，汉语言(050102)","须在2025年7月31日前取得相应的教师资格证（在2025年7月31日前已经通过相应教师资格证笔试和面试考试未进行认定的，须在办理聘用备案手续前取得相应的教师资格证）","报名邮箱：946108029@qq.com\n报名电话：0431−86233925","0431-81337330"]
[426,"新区","长春新区教育局","长春新区北湖明达学校","初中数学教师","初级专业技术岗位","财政拨款",1,"不限","本科学历或硕士研究生及以上学历","与报名学历相对应的学位","研究生专业为：数学(一级学科)(0701)，学科教学(数学)(专业学位)(045104)\n本科专业为：数学类(一级学科)(0701)，统计学类(一级学科)(0712)","须在2025年7月31日前取得相应的教师资格证（在2025年7月31日前已经通过相应教师资格证笔试和面试考试未进行认定的，须在办理聘用备案手续前取得相应的教师资格证）","报名邮箱：946108029@qq.com\n报名电话：0431−86233925","0431-81337330"]
[427,"新区","长春新区教育局","长春新区北湖英才学校","初中英语教师","初级专业技术岗位","财政拨款",1,"不限","本科学历或硕士研究生及以上学历","与报名学历相对应的学位","研究生专业为：英语语言文学(050201)、外国语言学及应用语言学(英语方向)(050211)、英语笔译(专业学位)(055101)、英语口译(专业学位)(055102)、学科教学(英语)(专业学位)(045108)\n本科专业为：英语(050201)、翻译(050261)","须在2025年7月31日前取得相应的教师资格证（在2025年7月31日前已经通过相应教师资格证笔试和面试考试未进行认定的，须在办理聘用备案手续前取得相应的教师资格证）","报名邮箱：438224339@qq.com\n报名电话：0431-86257093","0431-81337330"]
[428,"新区","长春新区教育局","长春新区北湖英才学校","初中物理教师","初级专业技术岗位","财政拨款",1,"不限","本科学历或硕士研究生及以上学历","与报名学历相对应的学位","研究生专业为：物理学(一级学科)(0702)、学科教学(物理)(专业学位)(045105)\n本科专业为：物理学类(一级学科)(0702)","须在2025年7月31日前取得相应的教师资格证（在2025年7月31日前已经通过相应教师资格证笔试和面试考试未进行认定的，须在办理聘用备案手续前取得相应的教师资格证）","报名邮箱：438224339@qq.com\n报名电话：0431-86257093","0431-81337330"]
[429,"新区","长春新区教育局","长春新区北湖英才学校","初中生物教师","初级专业技术岗位","财政拨款",1,"不限","本科学历或硕士研究生及以上学历","与报名学历相对应的学位","研究生专业为：生物学(一级学科)(0710)、学科教学(生物)(专业学位)(045107)\n本科专业为：生物科学类(一级学科)(0710)","须在2025年7月31日前取得相应的教师资格证（在2025年7月31日前已经通过相应教师资格证笔试和面试考试未进行认定的，须在办理聘用备案手续前取得相应的教师资格证）","报名邮箱：438224339@qq.com\n报名电话：0431-86257093","0431-81337330"]
[430,"新区","长春新区教育局","长春新区崇文学校","初中地理教师","初级专业技术岗位","财政拨款",1,"不限","本科学历或硕士研究生及以上学历","与报名学历相对应的学位","研究生专业为：地理学(一级学科)(0705)、学科教学(地理)(专业学位)(045110)\n本科专业为：地理科学类(一级学科)(0705)","须在2025年7月31日前取得相应的教师资格证（在2025年7月31日前已经通过相应教师资格证笔试和面试考试未进行认定的，须在办理聘用备案手续前取得相应的教师资格证）","报名邮箱：438224339@qq.com\n报名电话：0431-86257093","0431-81337330"]
[431,"净月区","长春净月高新技术产业开发区教育局","长春市华蕴学校","小学科学教师","初级专业技术岗位","财政拨款",1,"不限","本科学历或硕士研究生及以上学历","与报名学历相对应的学位","研究生专业为：物理学(一级学科)(0702)、化学(一级学科)(0703)、生物学(一级学科)(0710)、学科教学(物理)(专业学位)(045105)、学科教学(化学)(专业学位)(045106)、学科教学(生物)(专业学位)(045107)、科学与技术教育(专业学位)(045117)\n本科专业为：物理学类(一级学科)(0702)、化学类(一级学科)(0703)、生物科学类(一级学科)(0710)、科学教育(040102)","须在2025年7月31日前取得相应的教师资格证（在2025年7月31日前已经通过相应教师资格证笔试和面试考试未进行认定的，须在办理聘用备案手续前取得相应的教师资格证）","报名邮箱：hyxx1232024@163.com\n报名电话：13596085033","0431-84527978"]
[{"$f":"ROW()-2","v":432},"净月区","长春净月高新技术产业开发区教育局","长春市华蕴学校","小学信息科技教师","初级专业技术岗位","财政拨款",1,"不限","本科学历或硕士研究生及以上学历","与报名学历相对应的学位","研究生专业为：现代教育技术(专业学位)(045114)、计算机科学与技术(一级学科)(0775、0812)、计算机技术(专业学位)(085404)、大数据技术与工程(专业学位)(085411)、网络与信息安全(专业学位)(085412)、教育技术学(040110)、软件工程(一级学科)(0835)、软件工程(专业学位)(085405)\n本科专业为：计算机类(一级学科)(0809)、教育技术学(040104)","须在2025年7月31日前取得相应的教师资格证（在2025年7月31日前已经通过相应教师资格证笔试和面试考试未进行认定的，须在办理聘用备案手续前取得相应的教师资格证）","报名邮箱：hyxx1232024@163.com\n报名电话：13596085033","0431-84527978"]
[433,"净月区","长春净月高新技术产业开发区教育局","长春市华蕴学校","初中语文教师","初级专业技术岗位","财政拨款",1,"不限","本科学历或硕士研究生及以上学历","与报名学历相对应的学位","研究生专业为：汉语国际教育(专业学位)(045174)、学科教学(语文)(专业学位)(045103)、国际中文教育(专业学位)(一级学科)(0453)、语言学及应用语言学(050102)、汉语言文字学(050103)、中国古代文学(050105)、中国现当代文学(050106)、比较文学与世界文学(050108)\n本科专业为：汉语言文学(050101)、汉语言(050102)、汉语国际教育(050103)","须在2025年7月31日前取得相应的教师资格证（在2025年7月31日前已经通过相应教师资格证笔试和面试考试未进行认定的，须在办理聘用备案手续前取得相应的教师资格证）","报名邮箱：hyxx1232024@163.com\n报名电话：13596085033","0431-84527978"]
[434,"净月区","长春净月高新技术产业开发区教育局","长春市华蕴学校","初中英语教师","初级专业技术岗位","财政拨款",1,"不限","本科学历或硕士研究生及以上学历","与报名学历相对应的学位","研究生专业为：学科教学(英语)(专业学位)(045108)、英语语言文学(050201)、外国语言学及应用语言学(英语方向)(050211)、英语笔译(专业学位)(055101)、英语口译(专业学位)(055102)\n本科专业为：英语(050201)、商务英语(050262)","须在2025年7月31日前取得相应的教师资格证（在2025年7月31日前已经通过相应教师资格证笔试和面试考试未进行认定的，须在办理聘用备案手续前取得相应的教师资格证）","报名邮箱：hyxx1232024@163.com\n报名电话：13596085033","0431-84527978"]
[435,"净月区","长春净月高新技术产业开发区教育局","长春市华蕴学校","初中物理教师","初级专业技术岗位","财政拨款",1,"不限","本科学历或硕士研究生及以上学历","与报名学历相对应的学位","研究生专业为：物理学(一级学科)(0702)、学科教学(物理)(专业学位)(045105)\n本科专业为：物理学类(一级学科)(0702)","须在2025年7月31日前取得相应的教师资格证（在2025年7月31日前已经通过相应教师资格证笔试和面试考试未进行认定的，须在办理聘用备案手续前取得相应的教师资格证）","报名邮箱：hyxx1232024@163.com\n报名电话：13596085033","0431-84527978"]
[436,"净月区","长春净月高新技术产业开发区教育局","长春市华蕴学校","初中化学教师","初级专业技术岗位","财政拨款",1,"不限","本科学历或硕士研究生及以上学历","与报名学历相对应的学位","研究生专业为：化学(一级学科)(0703)、应用化学(081704)、学科教学(化学)(专业学位)(045106)\n本科专业为：化学类(一级学科)(0703)","须在2025年7月31日前取得相应的教师资格证（在2025年7月31日前已经通过相应教师资格证笔试和面试考试未进行认定的，须在办理聘用备案手续前取得相应的教师资格证）","报名邮箱：hyxx1232024@163.com\n报名电话：13596085033","0431-84527978"]
[437,"净月区","长春净月高新技术产业开发区教育局","长春市华蕴学校","初中心理教师","初级专业技术岗位","财政拨款",1,"不限","本科学历或硕士研究生及以上学历","与报名学历相对应的学位","研究生专业为：心理学(一级学科)(0771、0402)、应用心理(专业学位)(一级学科)(0454)、心理健康教育(专业学位)(045116)\n本科专业为：心理学类(一级学科)(0711)","须在2025年7月31日前取得相应的教师资格证（在2025年7月31日前已经通过相应教师资格证笔试和面试考试未进行认定的，须在办理聘用备案手续前取得相应的教师资格证）","报名邮箱：hyxx1232024@163.com\n报名电话：13596085033","0431-84527978"]
[438,"净月区","长春净月高新技术产业开发区教育局","长春市华蕴学校","初中数学教师","初级专业技术岗位","财政拨款",1,"不限","本科学历或硕士研究生及以上学历","与报名学历相对应的学位","研究生专业为：数学(一级学科)(0701)、学科教学(数学)(专业学位)(045104)、统计学(020208)、统计学(一级学科)(0270、0714)、应用统计(专业学位)(一级学科)(0252)\n本科专业为：数学类(一级学科)(0701)、统计学类(一级学科)(0712)","须在2025年7月31日前取得相应的教师资格证（在2025年7月31日前已经通过相应教师资格证笔试和面试考试未进行认定的，须在办理聘用备案手续前取得相应的教师资格证）","报名邮箱：hyxx1232024@163.com\n报名电话：13596085033","0431-84527978"]
[439,"净月区","长春净月高新技术产业开发区教育局","长春市华蕴学校","初中信息科技教师","初级专业技术岗位","财政拨款",1,"不限","本科学历或硕士研究生及以上学历","与报名学历相对应的学位","研究生专业为：现代教育技术(专业学位)(045114)、计算机科学与技术(一级学科)(0775、0812)、计算机技术(专业学位)(085404)、大数据技术与工程(专业学位)(085411)、网络与信息安全(专业学位)(085412)、教育技术学(040110)、软件工程(一级学科)(0835)、软件工程(专业学位)(085405)\n本科专业为：计算机类(一级学科)(0809)、教育技术学(040104)","须在2025年7月31日前取得相应的教师资格证（在2025年7月31日前已经通过相应教师资格证笔试和面试考试未进行认定的，须在办理聘用备案手续前取得相应的教师资格证）","报名邮箱：hyxx1232024@163.com\n报名电话：13596085033","0431-84527978"]
[440,"净月区","长春净月高新技术产业开发区教育局","长春市华蕴学校","初中生物教师","初级专业技术岗位","财政拨款",1,"不限","本科学历或硕士研究生及以上学历","与报名学历相对应的学位","研究生专业为：生物学(一级学科)(0710)、学科教学(生物)(专业学位)(045107)\n本科专业为：生物科学类(一级学科)(0710)","须在2025年7月31日前取得相应的教师资格证（在2025年7月31日前已经通过相应教师资格证笔试和面试考试未进行认定的，须在办理聘用备案手续前取得相应的教师资格证）","报名邮箱：hyxx1232024@163.com\n报名电话：13596085033","0431-84527978"]
[441,"净月区","长春净月高新技术产业开发区教育局","长春市华蕴学校","初中音乐教师","初级专业技术岗位","财政拨款",1,"不限","本科学历或硕士研究生及以上学历","与报名学历相对应的学位","研究生专业为：艺术学(一级学科)(音乐、舞蹈方向)(1301)、音乐(专业学位)(1352)、 舞蹈(专业学位)(1353)、学科教学(音乐)(专业学位)(045111)\n本科专业为：音乐表演(130201)、音乐学(130202)、作曲与作曲技术理论(130203)、舞蹈表演(130204)、舞蹈学(130205)、舞蹈编导(130206)、舞蹈教育(130207T)、流行音乐(130209T)、流行舞蹈(130211T)、音乐教育(130212T)","须在2025年7月31日前取得相应的教师资格证（在2025年7月31日前已经通过相应教师资格证笔试和面试考试未进行认定的，须在办理聘用备案手续前取得相应的教师资格证）","报名邮箱：hyxx1232024@163.com\n报名电话：13596085033","0431-84527978"]
[{"$f":"ROW()-2","v":442},"净月区","长春净月高新技术产业开发区教育局","长春市华蕴学校","初中体育与健康教师","初级专业技术岗位","财政拨款",1,"不限","本科学历或硕士研究生及以上学历","与报名学历相对应的学位","研究生专业为：体育学(一级学科)(0403)、体育(专业学位)(一级学科)(0452)、学科教学(体育)(专业学位)(045112)\n本科专业为：体育学类(一级学科)(0402)","须在2025年7月31日前取得相应的教师资格证（在2025年7月31日前已经通过相应教师资格证笔试和面试考试未进行认定的，须在办理聘用备案手续前取得相应的教师资格证）","报名邮箱：hyxx1232024@163.com\n报名电话：13596085033","0431-84527978"]
[443,"净月区","长春净月高新技术产业开发区教育局","长春净月高新技术产业开发区新城大街小学","小学语文教师","初级专业技术岗位","财政拨款",1,"不限","本科学历或硕士研究生及以上学历","与报名学历相对应的学位","研究生专业为：汉语国际教育(专业学位)(045174)、学科教学(语文)(专业学位)(045103)、国际中文教育(专业学位)(一级学科)(0453)、语言学及应用语言学(050102)、汉语言文字学(050103)、中国古代文学(050105)、中国现当代文学(050106)、小学教育(语文方向)(专业学位)(045115)、比较文学与世界文学(050108)\n本科专业为：汉语言文学(050101)、汉语言(050102)、小学教育(040107)、汉语国际教育(050103)","须在2025年7月31日前取得相应的教师资格证（在2025年7月31日前已经通过相应教师资格证笔试和面试考试未进行认定的，须在办理聘用备案手续前取得相应的教师资格证）","报名邮箱：1623348672@qq.com\n报名电话：13204360027","0431-84527978"]
[444,"净月区","长春净月高新技术产业开发区教育局","长春净月高新技术产业开发区新城大街小学","小学数学教师","初级专业技术岗位","财政拨款",1,"不限","本科学历或硕士研究生及以上学历","与报名学历相对应的学位","研究生专业为：数学(一级学科)(0701)、学科教学(数学)(专业学位)(045104)、统计学(020208)、统计学(一级学科)(0270、0714)、应用统计(专业学位)(一级学科)(0252)、小学教育(数学方向)(专业学位)(045115)\n本科专业为：数学类(一级学科)(0701)、小学教育(040107)、统计学类(一级学科)(0712)","须在2025年7月31日前取得相应的教师资格证（在2025年7月31日前已经通过相应教师资格证笔试和面试考试未进行认定的，须在办理聘用备案手续前取得相应的教师资格证）","报名邮箱：1623348672@qq.com\n报名电话：13204360027","0431-84527978"]
[445,"净月区","长春净月高新技术产业开发区教育局","长春净月外国语实验学校","小学数学教师","初级专业技术岗位","财政拨款",1,"不限","本科学历或硕士研究生及以上学历","与报名学历相对应的学位","研究生专业为：数学(一级学科)(0701)、学科教学(数学)(专业学位)(045104)、统计学(020208)、统计学(一级学科)(0270、0714)、应用统计(专业学位)(一级学科)(0252)、小学教育(数学方向)(专业学位)(045115)\n本科专业为：数学类(一级学科)(0701)、小学教育(040107)、统计学类(一级学科)(0712)","须在2025年7月31日前取得相应的教师资格证（在2025年7月31日前已经通过相应教师资格证笔试和面试考试未进行认定的，须在办理聘用备案手续前取得相应的教师资格证）","报名邮箱：584661040@qq.com\n报名电话：13331672468","0431-84527978"]
[446,"净月区","长春净月高新技术产业开发区教育局","长春净月外国语实验学校","小学语文教师","初级专业技术岗位","财政拨款",1,"不限","本科学历或硕士研究生及以上学历","与报名学历相对应的学位","研究生专业为：汉语国际教育(专业学位)(045174)、学科教学(语文)(专业学位)(045103)、国际中文教育(专业学位)(一级学科)(0453)、语言学及应用语言学(050102)、汉语言文字学(050103)、中国古代文学(050105)、中国现当代文学(050106)、小学教育(语文方向)(专业学位)(045115)、比较文学与世界文学(050108)\n本科专业为：汉语言文学(050101)、汉语言(050102)、小学教育(040107)、汉语国际教育(050103)","须在2025年7月31日前取得相应的教师资格证（在2025年7月31日前已经通过相应教师资格证笔试和面试考试未进行认定的，须在办理聘用备案手续前取得相应的教师资格证）","报名邮箱：584661040@qq.com\n报名电话：13331672468","0431-84527978"]
[447,"净月区","长春净月高新技术产业开发区教育局","长春净月外国语实验学校","初中物理教师","初级专业技术岗位","财政拨款",2,"不限","本科学历或硕士研究生及以上学历","与报名学历相对应的学位","研究生专业为：物理学(一级学科)(0702)、学科教学(物理)(专业学位)(045105)\n本科专业为：物理学类(一级学科)(0702)","须在2025年7月31日前取得相应的教师资格证（在2025年7月31日前已经通过相应教师资格证笔试和面试考试未进行认定的，须在办理聘用备案手续前取得相应的教师资格证）","报名邮箱：584661040@qq.com\n报名电话：13331672468","0431-84527978"]
[448,"净月区","长春净月高新技术产业开发区教育局","长春净月外国语实验学校","初中数学教师","初级专业技术岗位","财政拨款",5,"不限","本科学历或硕士研究生及以上学历","与报名学历相对应的学位","研究生专业为：数学(一级学科)(0701)、学科教学(数学)(专业学位)(045104)、统计学(020208)、统计学(一级学科)(0270、0714)、应用统计(专业学位)(一级学科)(0252)\n本科专业为：数学类(一级学科)(0701)、统计学类(一级学科)(0712)","须在2025年7月31日前取得相应的教师资格证（在2025年7月31日前已经通过相应教师资格证笔试和面试考试未进行认定的，须在办理聘用备案手续前取得相应的教师资格证）","报名邮箱：584661040@qq.com\n报名电话：13331672468","0431-84527978"]
[449,"净月区","长春净月高新技术产业开发区教育局","长春净月外国语实验学校","初中体育与健康教师","初级专业技术岗位","财政拨款",3,"不限","本科学历或硕士研究生及以上学历","与报名学历相对应的学位","研究生专业为：体育学(一级学科)(0403)、体育(专业学位)(一级学科)(0452)、学科教学(体育)(专业学位)(045112)\n本科专业为：体育学类(一级学科)(0402)","须在2025年7月31日前取得相应的教师资格证（在2025年7月31日前已经通过相应教师资格证笔试和面试考试未进行认定的，须在办理聘用备案手续前取得相应的教师资格证）","报名邮箱：584661040@qq.com\n报名电话：13331672468","0431-84527978"]
[450,"净月区","长春净月高新技术产业开发区教育局","长春净月外国语实验学校","初中语文教师","初级专业技术岗位","财政拨款",5,"不限","本科学历或硕士研究生及以上学历","与报名学历相对应的学位","研究生专业为：汉语国际教育(专业学位)(045174)、学科教学(语文)(专业学位)(045103)、国际中文教育(专业学位)(一级学科)(0453)、语言学及应用语言学(050102)、汉语言文字学(050103)、中国古代文学(050105)、中国现当代文学(050106)、比较文学与世界文学(050108)\n本科专业为：汉语言文学(050101)、汉语言(050102)、汉语国际教育(050103)","须在2025年7月31日前取得相应的教师资格证（在2025年7月31日前已经通过相应教师资格证笔试和面试考试未进行认定的，须在办理聘用备案手续前取得相应的教师资格证）","报名邮箱：584661040@qq.com\n报名电话：13331672468","0431-84527978"]
[451,"净月区","长春净月高新技术产业开发区教育局","长春净月外国语实验学校","初中音乐教师","初级专业技术岗位","财政拨款",2,"不限","本科学历或硕士研究生及以上学历","与报名学历相对应的学位","研究生专业为：艺术学(一级学科)(音乐、舞蹈方向)(1301)、音乐(专业学位)(1352)、 舞蹈(专业学位)(1353)、学科教学(音乐)(专业学位)(045111)\n本科专业为：音乐表演(130201)、音乐学(130202)、作曲与作曲技术理论(130203)、舞蹈表演(130204)、舞蹈学(130205)、舞蹈编导(130206)、舞蹈教育(130207T)、流行音乐(130209T)、流行舞蹈(130211T)、音乐教育(130212T)","须在2025年7月31日前取得相应的教师资格证（在2025年7月31日前已经通过相应教师资格证笔试和面试考试未进行认定的，须在办理聘用备案手续前取得相应的教师资格证）","报名邮箱：584661040@qq.com\n报名电话：13331672468","0431-84527978"]
[452,"净月区","长春净月高新技术产业开发区教育局","长春净月外国语实验学校","初中美术教师","初级专业技术岗位","财政拨款",2,"不限","本科学历或硕士研究生及以上学历","与报名学历相对应的学位","研究生专业为：艺术学(一级学科)(美术与书法方向)(1301)、美术与书法（专业学位)（一级学科）(1356)、学科教学(美术)(专业学位)(045113)\n本科专业为：美术学(130401)、绘画(130402)、雕塑(130403)、中国画(130406T)、漫画(130410T)、美术教育(130413TK)","须在2025年7月31日前取得相应的教师资格证（在2025年7月31日前已经通过相应教师资格证笔试和面试考试未进行认定的，须在办理聘用备案手续前取得相应的教师资格证）","报名邮箱：584661040@qq.com\n报名电话：13331672468","0431-84527978"]
[453,"净月区","长春净月高新技术产业开发区教育局","长春净月外国语实验学校","初中英语教师","初级专业技术岗位","财政拨款",6,"不限","本科学历或硕士研究生及以上学历","与报名学历相对应的学位","研究生专业为：学科教学(英语)(专业学位)(045108)、英语语言文学(050201)、外国语言学及应用语言学(英语方向)(050211)、英语笔译(专业学位)(055101)、英语口译(专业学位)(055102)\n本科专业为：英语(050201)、商务英语(050262)","须在2025年7月31日前取得相应的教师资格证（在2025年7月31日前已经通过相应教师资格证笔试和面试考试未进行认定的，须在办理聘用备案手续前取得相应的教师资格证）","报名邮箱：584661040@qq.com\n报名电话：13331672468","0431-84527978"]